Workbook

Sheet Общий
H1: "Утверждаю"
H2: Главный врач СПб ГБУЗ ГМПБ №2
H3: Волчков В.А.
H5: ______________________________
H6: "30 мая 2020 года
A10: ФОРМУЛЯРНЫЙ ПЕРЕЧЕНЬ ЛЕКАРСТВЕННЫХ ПРЕПАРАТОВ НА 2021 ГОД
A12: АТХ | B12: Группа | C12: МНН | D12: Название | E12: ИФ | F12: ЖНиВЛП | G12: Ед.изм | H12: Кол-во | I12: Цена | J12: Сумма
A13: A Пищеварительный тракт и обмен веществ
A14: A01Стоматологические препараты
A15: A01AB11 | B15: противомикробное средство | C15: Метронидазол + Хлоргексидин | D15: Метрогил Дента гель стоматологический 20g №1 | E15: ПЛАТ | F15: Нет | G15: уп | H15: 20 | I15: 281,59 | J15: =H15*I15 -> 5,631.80
A16: A01AD11 | B16: НПВП | C16: Холина салицилат + Цеталкония хлорид | D16: Холисал гель стоматологический 10g | E16: ПЛАТ | F16: Нет | G16: уп | H16: 25 | I16: 417,43 | J16: =H16*I16 -> 10,435.75
A17: A01AВ11 | B17: противовоспалительное средство растительного происхождения | C17: ~ | D17: Стоматофит экстракт для местного применения, [жидкий] 100ml | E17: ПЛАТ | F17: Нет | G17: уп | H17: 20 | I17: 319,28 | J17: 6,385.60
A18: A02Препараты, применяемые при состояниях, связанных с нарушениями кислотности | J18: 0.00
A19: A02BA03 | B19: желез желудка секрецию понижающее средство - H2-гистаминовых рецепторов блокатор | C19: Фамотидин | D19: Фамотидин лиоф д/пр р-ра д/в/в вв 20mg+5ml №5 | E19: Бюджет | F19: Да | G19: уп | H19: 271 | I19: 310,43 | J19: 84,126.53
A20: A02BA03 | B20: желез желудка секрецию понижающее средство - H2-гистаминовых рецепторов блокатор | C20: Фамотидин | D20: Фамотидин лиоф д/пр р-ра д/в/в вв 20mg+5ml №5 | E20: ОМС | F20: Да | G20: уп | H20: 2453 | I20: 310,43 | J20: 761,484.79
A21: A02BA03 | B21: желез желудка секрецию понижающее средство - H2-гистаминовых рецепторов блокатор | C21: Фамотидин | D21: Фамотидин лиоф д/пр р-ра д/в/в вв 20mg+5ml №5 | E21: ПЛАТ | F21: Да | G21: уп | H21: 128 | I21: 310,43 | J21: 39,735.04
A22: A02BA03 | B22: желез желудка секрецию понижающее средство - H2-гистаминовых рецепторов блокатор | C22: Фамотидин | D22: Фамотидин табл п/п/о 20mg №20 | E22: Бюджет | F22: Да | G22: уп | H22: 20 | I22: 23,33 | J22: 466.60
A23: A02BA03 | B23: желез желудка секрецию понижающее средство - H2-гистаминовых рецепторов блокатор | C23: Фамотидин | D23: Фамотидин табл п/п/о 20mg №20 | E23: ОМС | F23: Да | G23: уп | H23: 395 | I23: 23,33 | J23: 9,215.35
A24: A02BA03 | B24: желез желудка секрецию понижающее средство - H2-гистаминовых рецепторов блокатор | C24: Фамотидин | D24: Фамотидин табл п/п/о 20mg №20 | E24: ПЛАТ | F24: Да | G24: уп | H24: 8 | I24: 23,33 | J24: 186.64
A25: A02BA03 | B25: желез желудка секрецию понижающее средство - H2-гистаминовых рецепторов блокатор | C25: Фамотидин | D25: Фамотидин табл п/п/о 20mg №30 | E25: Бюджет | F25: Да | G25: уп | H25: 100 | I25: 34,43 | J25: 3,443.00
A26: A02BA03 | B26: желез желудка секрецию понижающее средство - H2-гистаминовых рецепторов блокатор | C26: Фамотидин | D26: Фамотидин табл п/п/о 20mg №30 | E26: ОМС | F26: Да | G26: уп | H26: 2218 | I26: 34,43 | J26: 76,365.74
A27: A02BA03 | B27: желез желудка секрецию понижающее средство - H2-гистаминовых рецепторов блокатор | C27: Фамотидин | D27: Фамотидин табл п/п/о 20mg №30 | E27: ПЛАТ | F27: Да | G27: уп | H27: 25 | I27: 34,43 | J27: 860.75
A28: A02BC01 | B28: желез желудка секрецию понижающее средство - протонного насоса ингибитор | C28: Омепразол | D28: Омез лиоф-т д/пригот р-ра д/инф 40mg №1 | E28: Бюджет | F28: Да | G28: уп | H28: 50 | I28: 150,3 | J28: 7,515.00
A29: A02BC01 | B29: желез желудка секрецию понижающее средство - протонного насоса ингибитор | C29: Омепразол | D29: Омез лиоф-т д/пригот р-ра д/инф 40mg №1 | E29: ОМС | F29: Да | G29: уп | H29: 1225 | I29: 150,3 | J29: 184,117.50
A30: A02BC01 | B30: желез желудка секрецию понижающее средство - протонного насоса ингибитор | C30: Омепразол | D30: Омез лиоф-т д/пригот р-ра д/инф 40mg №1 | E30: ПЛАТ | F30: Да | G30: уп | H30: 108 | I30: 150,3 | J30: 16,232.40
A31: A02BC01 | B31: желез желудка секрецию понижающее средство - протонного насоса ингибитор | C31: Омепразол | D31: Омепразол капс к/раст 20mg №30 | E31: Бюджет | F31: Да | G31: уп | H31: 115 | I31: 32,94 | J31: 3,788.10
A32: A02BC01 | B32: желез желудка секрецию понижающее средство - протонного насоса ингибитор | C32: Омепразол | D32: Омепразол капс к/раст 20mg №30 | E32: ОМС | F32: Да | G32: уп | H32: 4968 | I32: 32,94 | J32: 163,645.92
A33: A02BC01 | B33: желез желудка секрецию понижающее средство - протонного насоса ингибитор | C33: Омепразол | D33: Омепразол капс к/раст 20mg №30 | E33: ПЛАТ | F33: Да | G33: уп | H33: 210 | I33: 32,94 | J33: 6,917.40
A34: A02BC01 | B34: желез желудка секрецию понижающее средство - протонного насоса ингибитор | C34: Омепразол | D34: Омепразол лиоф-т д/пригот р-ра д/инф 40mg №1 | E34: ОМС | F34: Да | G34: уп | H34: 101 | I34: 272,26 | J34: 27,498.26
A35: A02BC01 | B35: желез желудка секрецию понижающее средство - протонного насоса ингибитор | C35: Омепразол | D35: Ультоп капсулы 40mg №28 | E35: ОМС | F35: Да | G35: уп | H35: 19 | I35: 525,44 | J35: 9,983.36
A36: A02BC01 | B36: желез желудка секрецию понижающее средство - протонного насоса ингибитор | C36: Омепразол | D36: Ультоп капсулы 40mg №28 | E36: ПЛАТ | F36: Да | G36: уп | H36: 21 | I36: 525,44 | J36: 11,034.24
A37: А02BC02 | B37: желез желудка секрецию понижающее средство - протонного насоса ингибитор | C37: Пантопразол | D37: Нольпаза лиоф д/пр р-ра д/в/в вв 40mg №1 | E37: ОМС | F37: Нет | G37: уп | H37: 50 | I37: 301,45 | J37: 15,072.50
A38: А02BC02 | B38: желез желудка секрецию понижающее средство - протонного насоса ингибитор | C38: Пантопразол | D38: Нольпаза лиоф д/пр р-ра д/в/в вв 40mg №1 | E38: ПЛАТ | F38: Нет | G38: уп | H38: 61 | I38: 301,45 | J38: 18,388.45
A39: А02BC02 | B39: желез желудка секрецию понижающее средство - протонного насоса ингибитор | C39: Пантопразол | D39: Нольпаза табл п/к/р/о 40mg №14 | E39: ОМС | F39: Нет | G39: уп | H39: 298 | I39: 184,04 | J39: 54,843.92
A40: А02BC02 | B40: желез желудка секрецию понижающее средство - протонного насоса ингибитор | C40: Пантопразол | D40: Нольпаза табл п/к/р/о 40mg №14 | E40: ПЛАТ | F40: Нет | G40: уп | H40: 20 | I40: 184,04 | J40: 3,680.80
A41: A02BC04 | B41: желез желудка секрецию понижающее средство - протонного насоса ингибитор | C41: Рабепразол | D41: Зульбекс табл к/р п/п/о 20mg №28 | E41: ОМС | F41: Нет | G41: уп | H41: 20 | I41: 1680 | J41: 33,600.00
A42: A02BC04 | B42: желез желудка секрецию понижающее средство - протонного насоса ингибитор | C42: Рабепразол | D42: Зульбекс табл к/р п/п/о 20mg №28 | E42: ПЛАТ | F42: Нет | G42: уп | H42: 8 | I42: 1680 | J42: 13,440.00
A43: A02BC04 | B43: желез желудка секрецию понижающее средство - протонного насоса ингибитор | C43: Рабепразол | D43: Рабепразол-СЗ капсулы 20mg №28 | E43: ОМС | F43: Нет | G43: уп | H43: 20 | I43: 427,53 | J43: 8,550.60
A44: A02BC05 | B44: желез желудка секрецию понижающее средство - протонного насоса ингибитор | C44: Эзомепразол | D44: Эманера капс к/раст 20mg №14 | E44: ОМС | F44: Да | G44: уп | H44: 55 | I44: 242,17 | J44: 13,319.35
A45: A02BC05 | B45: желез желудка секрецию понижающее средство - протонного насоса ингибитор | C45: Эзомепразол | D45: Эманера капс к/раст 20mg №14 | E45: ПЛАТ | F45: Да | G45: уп | H45: 25 | I45: 242,17 | J45: 6,054.25
A46: A02BC05 | B46: желез желудка секрецию понижающее средство - протонного насоса ингибитор | C46: Эзомепразол | D46: Эманера капс к/раст 40mg №28 | E46: ОМС | F46: Да | G46: уп | H46: 29 | I46: 727,99 | J46: 21,111.71
A47: A02BC05 | B47: желез желудка секрецию понижающее средство - протонного насоса ингибитор | C47: Эзомепразол | D47: Эманера капс к/раст 40mg №28 | E47: ПЛАТ | F47: Да | G47: уп | H47: 15 | I47: 727,99 | J47: 10,919.85
A48: A02BX | B48: рефлюкс-эзофагита средство лечения | C48: ~ | D48: Гевискон Форте суспензия д/ приема внутрь (в компл.мерн.лож) 150ml №1 | E48: ОМС | F48: Нет | G48: уп | H48: 10 | I48: 346,8 | J48: 3,468.00
A49: A02BX | B49: рефлюкс-эзофагита средство лечения | C49: ~ | D49: Гевискон Форте суспензия д/ приема внутрь (в компл.мерн.лож) 150ml №1 | E49: ПЛАТ | F49: Нет | G49: уп | H49: 5 | I49: 346,8 | J49: 1,734.00
A50: A02BX05 | B50: антисептическое кишечное и вяжущее средство | C50: Висмута трикалия дицитрат | D50: Висмута трикалия дицитрат табл п/п/о 120mg № 56 | E50: ОМС | F50: Да | G50: уп | H50: 73 | I50: 440,62 | J50: 32,165.26
A51: A02BX05 | B51: антисептическое кишечное и вяжущее средство | C51: Висмута трикалия дицитрат | D51: Висмута трикалия дицитрат табл п/п/о 120mg № 56 | E51: ПЛАТ | F51: Да | G51: уп | H51: 15 | I51: 440,62 | J51: 6,609.30
A52: A02BX05 | B52: антисептическое кишечное и вяжущее средство | C52: Висмута трикалия дицитрат | D52: Улькавис табл п/п/о 120mg № 56 | E52: ПЛАТ | F52: Да | G52: уп | H52: 5 | I52: 413,7 | J52: 2,068.50
A53: A02АХ | B53: антацидное средство | C53: Алгелдрат+Магния гидроксид | D53: Алмагель суспензия д/ приема внутрь (в компл.мерн.лож) 170ml | E53: ОМС | F53: Нет | G53: уп | H53: 53 | I53: 266,66 | J53: 14,132.98
A54: A02АХ | B54: антацидное средство | C54: Алгелдрат+Магния гидроксид | D54: Алмагель суспензия д/ приема внутрь (в компл.мерн.лож) 170ml | E54: ПЛАТ | F54: Нет | G54: уп | H54: 2 | I54: 266,66 | J54: 533.32
A55: A03Препараты для лечения функциональных нарушений со стороны ЖКТ | J55: 0.00
A56: A03AA | B56: м-холиноблокатор | C56: Платифиллин | D56: Платифиллина гидротартрат раствор для п/к вв 2mg/ml 1ml №10 | E56: ОМС | F56: Да | G56: уп | H56: 241 | I56: 69,75 | J56: 16,809.75
A57: A03AA | B57: м-холиноблокатор | C57: Платифиллин | D57: Платифиллина гидротартрат раствор для п/к вв 2mg/ml 1ml №10 | E57: ПЛАТ | F57: Да | G57: уп | H57: 26 | I57: 69,75 | J57: 1,813.50
A58: A03AA04 | B58: спазмолитическое средство | C58: Мебеверин | D58: Спарекс капс пролонг/д-я 200mg №30 | E58: ОМС | F58: Да | G58: уп | H58: 165 | I58: 514,84 | J58: 84,948.60
A59: A03AA04 | B59: спазмолитическое средство | C59: Мебеверин | D59: Спарекс капс пролонг/д-я 200mg №30 | E59: ПЛАТ | F59: Да | G59: уп | H59: 45 | I59: 514,84 | J59: 23,167.80
A60: A03AD01 | B60: спазмолитическое средство | C60: Папаверин | D60: Папаверина гидрохлорид раствор для инъекций 20mg/ml 2ml №10 | E60: Б.Опк | F60: Нет | G60: уп | H60: 2 | I60: 273,06 | J60: 546.12
A61: A03AD01 | B61: спазмолитическое средство | C61: Папаверин | D61: Папаверина гидрохлорид раствор для инъекций 20mg/ml 2ml №10 | E61: Бюджет | F61: Нет | G61: уп | H61: 30 | I61: 273,06 | J61: 8,191.80
A62: A03AD01 | B62: спазмолитическое средство | C62: Папаверин | D62: Папаверина гидрохлорид раствор для инъекций 20mg/ml 2ml №10 | E62: ОМС | F62: Нет | G62: уп | H62: 315 | I62: 273,06 | J62: 86,013.90
A63: A03AD01 | B63: спазмолитическое средство | C63: Папаверин | D63: Папаверина гидрохлорид раствор для инъекций 20mg/ml 2ml №10 | E63: ПЛАТ | F63: Нет | G63: уп | H63: 10 | I63: 273,06 | J63: 2,730.60
A64: A03AD02 | B64: спазмолитическое средство | C64: Дротаверин | D64: Дротаверин раствор для инъекций 20mg/ml 2ml №10 | E64: Бюджет | F64: Да | G64: уп | H64: 105 | I64: 59,01 | J64: 6,196.05
A65: A03AD02 | B65: спазмолитическое средство | C65: Дротаверин | D65: Дротаверин раствор для инъекций 20mg/ml 2ml №10 | E65: ОМС | F65: Да | G65: уп | H65: 3134 | I65: 59,01 | J65: 184,937.34
A66: A03AD02 | B66: спазмолитическое средство | C66: Дротаверин | D66: Дротаверин раствор для инъекций 20mg/ml 2ml №10 | E66: ПЛАТ | F66: Да | G66: уп | H66: 58 | I66: 59,01 | J66: 3,422.58
A67: A03AD02 | B67: спазмолитическое средство | C67: Дротаверин | D67: Дротаверин табл 40mg №100 | E67: Бюджет | F67: Да | G67: уп | H67: 2 | I67: 58,25 | J67: 116.50
A68: A03AD02 | B68: спазмолитическое средство | C68: Дротаверин | D68: Дротаверин табл 40mg №100 | E68: ОМС | F68: Да | G68: уп | H68: 430 | I68: 58,25 | J68: 25,047.50
A69: A03AD02 | B69: спазмолитическое средство | C69: Дротаверин | D69: Дротаверин табл 40mg №100 | E69: ПЛАТ | F69: Да | G69: уп | H69: 23 | I69: 58,25 | J69: 1,339.75
A70: A03AD02 | B70: спазмолитическое средство | C70: Дротаверин | D70: Дротаверин табл 40mg №20 | E70: ОМС | F70: Да | G70: уп | H70: 57 | I70: 30,12 | J70: 1,716.84
A71: A03AD02 | B71: спазмолитическое средство | C71: Дротаверин | D71: Дротаверин табл 40mg №20 | E71: ПЛАТ | F71: Да | G71: уп | H71: 5 | I71: 30,12 | J71: 150.60
A72: A03BA01 | B72: м-холиноблокатор | C72: Атропин | D72: Атропин капли глазные 1% 5ml | E72: ОМС | F72: Да | G72: уп | H72: 63 | I72: 52,27 | J72: 3,293.01
A73: A03BA01 | B73: м-холиноблокатор | C73: Атропин | D73: Атропин капли глазные 1% 5ml | E73: ПЛАТ | F73: Да | G73: уп | H73: 4 | I73: 52,27 | J73: 209.08
A74: A03BA01 | B74: м-холиноблокатор | C74: Атропин | D74: Атропин раствор для инъекций 1mg/ml 1ml №5 | E74: ОМС | F74: Да | G74: уп | H74: 897 | I74: 12,01 | J74: 10,772.97
A75: A03BA01 | B75: м-холиноблокатор | C75: Атропин | D75: Атропин раствор для инъекций 1mg/ml 1ml №5 | E75: ПЛАТ | F75: Да | G75: уп | H75: 2 | I75: 12,01 | J75: 24.02
A76: A03BA01 | B76: м-холиноблокатор | C76: Атропин | D76: Атропина сульфат раствор для инъекций 1mg/ml 1ml №10 | E76: ОМС | F76: Да | G76: уп | H76: 1544 | I76: 28,39 | J76: 43,834.16
A77: A03FA01 | B77: противорвотное средство - дофаминовых рецепторов блокатор центральный | C77: Метоклопрамид | D77: Метоклопрамид раствор для в/в и в/м вв 5mg/ml 2ml №10 | E77: Бюджет | F77: Да | G77: уп | H77: 49 | I77: 123,89 | J77: 6,070.61
A78: A03FA01 | B78: противорвотное средство - дофаминовых рецепторов блокатор центральный | C78: Метоклопрамид | D78: Метоклопрамид раствор для в/в и в/м вв 5mg/ml 2ml №10 | E78: ОМС | F78: Да | G78: уп | H78: 1543 | I78: 123,89 | J78: 191,162.27
A79: A03FA01 | B79: противорвотное средство - дофаминовых рецепторов блокатор центральный | C79: Метоклопрамид | D79: Метоклопрамид раствор для в/в и в/м вв 5mg/ml 2ml №10 | E79: ПЛАТ | F79: Да | G79: уп | H79: 72 | I79: 123,89 | J79: 8,920.08
A80: A03FA01 | B80: противорвотное средство - дофаминовых рецепторов блокатор центральный | C80: Метоклопрамид | D80: Метоклопрамид табл 10mg №50 | E80: ОМС | F80: Да | G80: уп | H80: 69 | I80: 26,79 | J80: =H80*I80 -> 1,848.51
A81: A03FA01 | B81: противорвотное средство - дофаминовых рецепторов блокатор центральный | C81: Метоклопрамид | D81: Метоклопрамид табл 10mg №50 | E81: ПЛАТ | F81: Да | G81: уп | H81: 3 | I81: 26,79 | J81: 80.37
A82: A04Противорвотные препараты | J82: 0.00
A83: А04АА01 | B83: противорвотное средство - серотониновых рецепторов антагонист | C83: Ондансетрон | D83: Латран раствор для в/в и в/м вв 2mg/ml 2ml №5 | E83: Бюджет | F83: Да | G83: уп | H83: 10 | I83: 456,12 | J83: 4,561.20
A84: А04АА01 | B84: противорвотное средство - серотониновых рецепторов антагонист | C84: Ондансетрон | D84: Латран раствор для в/в и в/м вв 2mg/ml 2ml №5 | E84: ОМС | F84: Да | G84: уп | H84: 90 | I84: 456,12 | J84: 41,050.80
A85: А04АА01 | B85: противорвотное средство - серотониновых рецепторов антагонист | C85: Ондансетрон | D85: Латран раствор для в/в и в/м вв 2mg/ml 2ml №5 | E85: ПЛАТ | F85: Да | G85: уп | H85: 21 | I85: 456,12 | J85: 9,578.52
A86: A05Препараты для лечения заболеваний печени и желчевыводящих путей | J86: 0.00
A87: А05АА02 | B87: гепатопротекторное средство | C87: Урсодезоксихолевая кислота | D87: Урсодезоксихолевая кислота капсулы 250mg №50 | E87: ОМС | F87: Да | G87: уп | H87: 32 | I87: 571,14 | J87: 18,276.48
A88: А05АА02 | B88: гепатопротекторное средство | C88: Урсодезоксихолевая кислота | D88: Урсодезоксихолевая кислота капсулы 250mg №50 | E88: ПЛАТ | F88: Да | G88: уп | H88: 8 | I88: 571,14 | J88: 4,569.12
A89: A05BA | B89: гипоазотемическое средство | C89: Орнитин | D89: Гепа-Мерц гран д/р-ра перор 5g №30 | E89: Бюджет | F89: Нет | G89: уп | H89: 2 | I89: 2095,42 | J89: 4,190.84
A90: A05BA | B90: гипоазотемическое средство | C90: Орнитин | D90: Гепа-Мерц гран д/р-ра перор 5g №30 | E90: ОМС | F90: Нет | G90: уп | H90: 15 | I90: 2095,42 | J90: 31,431.30
A91: A05BA | B91: гипоазотемическое средство | C91: Орнитин | D91: Гепа-Мерц гран д/р-ра перор 5g №30 | E91: ПЛАТ | F91: Нет | G91: уп | H91: 10 | I91: 2095,42 | J91: 20,954.20
A92: A05BA | B92: метаболическое средство | C92: Инозин+Меглюмин+Метионин+Никотинамид+Янтарная кислота | D92: Ремаксол раствор для инфузий 400ml №1 | E92: Бюджет | F92: Да | G92: уп | H92: 90 | I92: 398,47 | J92: 35,862.30
A93: A05BA | B93: метаболическое средство | C93: Инозин+Меглюмин+Метионин+Никотинамид+Янтарная кислота | D93: Ремаксол раствор для инфузий 400ml №1 | E93: ОМС | F93: Да | G93: уп | H93: 160 | I93: 398,47 | J93: 63,755.20
A94: A05BA | B94: метаболическое средство | C94: Инозин+Меглюмин+Метионин+Никотинамид+Янтарная кислота | D94: Ремаксол раствор для инфузий 400ml №1 | E94: ПЛАТ | F94: Да | G94: уп | H94: 100 | I94: 398,47 | J94: 39,847.00
A95: A06Слабительные препараты | J95: 0.00
A96: A06AA01 | B96: слабительное средство | C96: Парафин жидкий | D96: Вазелиновое масло масло д/приема внутрь 25ml | E96: ОМС | F96: Нет | G96: уп | H96: 273 | I96: 36,63 | J96: 9,999.99
A97: A06AA01 | B97: слабительное средство | C97: Парафин жидкий | D97: Вазелиновое масло масло д/приема внутрь 25ml | E97: ПЛАТ | F97: Нет | G97: уп | H97: 30 | I97: 36,63 | J97: 1,098.90
A98: A06AB02 | B98: слабительное средство | C98: Бисакодил | D98: Бисакодил табл п/к/р/о 5mg №30 | E98: ОМС | F98: Да | G98: уп | H98: 135 | I98: 20,96 | J98: 2,829.60
A99: A06AB02 | B99: слабительное средство | C99: Бисакодил | D99: Бисакодил табл п/к/р/о 5mg №30 | E99: ПЛАТ | F99: Да | G99: уп | H99: 2 | I99: 20,96 | J99: 41.92
A100: A06AB02 | B100: слабительное средство | C100: Бисакодил | D100: Бисакодил-Нижфарм супп рект 10mg №10 | E100: ОМС | F100: Да | G100: уп | H100: 65 | I100: 42,62 | J100: 2,770.30
A101: A06AB02 | B101: слабительное средство | C101: Бисакодил | D101: Бисакодил-Нижфарм супп рект 10mg №10 | E101: ПЛАТ | F101: Да | G101: уп | H101: 8 | I101: 42,62 | J101: 340.96
A102: А06АВ06 | B102: слабительное средство растительного происхождения | C102: Сеннозиды А и В | D102: Сенадексин табл №20 | E102: ОМС | F102: Да | G102: уп | H102: 354 | I102: 15,84 | J102: 5,607.36
A103: А06АВ06 | B103: слабительное средство растительного происхождения | C103: Сеннозиды А и В | D103: Сенадексин табл №20 | E103: ПЛАТ | F103: Да | G103: уп | H103: 3 | I103: 15,84 | J103: 47.52
A104: A06AD11 | B104: слабительное средство | C104: Лактулоза | D104: Нормазе сироп 667mg/ml 200ml | E104: ОМС | F104: Да | G104: уп | H104: 107 | I104: 278,3 | J104: 29,778.10
A105: A06AD11 | B105: слабительное средство | C105: Лактулоза | D105: Порталак сироп 667mg/ml 500ml | E105: ОМС | F105: Да | G105: уп | H105: 7 | I105: 398,47 | J105: 2,789.29
A106: A06AD11 | B106: слабительное средство | C106: Лактулоза | D106: Порталак сироп 667mg/ml 500ml | E106: ПЛАТ | F106: Да | G106: уп | H106: 11 | I106: 398,47 | J106: 4,383.17
A107: A06AD15 | B107: слабительное средство | C107: Макрогол | D107: Фортранс порошок д/приг суспензии д/вн прим 64g №4 | E107: ПЛАТ | F107: Да | G107: уп | H107: 83 | I107: 517,38 | J107: 42,942.54
A108: A06АВ05 | B108: слабительное средство растительного происхождения | C108: ~ | D108: Касторовое масло масло д/приема внутрь 30ml | E108: ОМС | F108: Нет | G108: уп | H108: 125 | I108: 36,63 | J108: 4,578.75
A109: A07Противодиарейные, кишечные противовоспалительные и противомикробные препараты | J109: 0.00
A110: A07AA11 | B110: антибиотик-рифамицин | C110: Рифаксимин | D110: Альфа Нормикс табл п/п/о 200mg №12 | E110: ОМС | F110: Нет | G110: уп | H110: 70 | I110: 1069,34 | J110: 74,853.80
A111: A07AA11 | B111: антибиотик-рифамицин | C111: Рифаксимин | D111: Альфа Нормикс табл п/п/о 200mg №12 | E111: ПЛАТ | F111: Нет | G111: уп | H111: 20 | I111: 1069,34 | J111: 21,386.80
A112: A07AX03 | B112: противомикробное средство - нитрофуран | C112: Нифуроксазид | D112: Экофурил капсулы 200mg №16 | E112: ОМС | F112: Нет | G112: уп | H112: 20 | I112: 459,56 | J112: 9,191.20
A113: A07AX03 | B113: противомикробное средство - нитрофуран | C113: Нифуроксазид | D113: Экофурил капсулы 200mg №16 | E113: ПЛАТ | F113: Нет | G113: уп | H113: 15 | I113: 459,56 | J113: 6,893.40
A114: A07BA01 | B114: энтеросорбирующее средство | C114: Уголь активированный | D114: Уголь активированный табл 250mg №10 | E114: ОМС | F114: Нет | G114: уп | H114: 408 | I114: 4,33 | J114: 1,766.64
A115: A07BA01 | B115: энтеросорбирующее средство | C115: Уголь активированный | D115: Уголь активированный табл 250mg №10 | E115: ПЛАТ | F115: Нет | G115: уп | H115: 20 | I115: 4,33 | J115: 86.60
A116: A07BC05 | B116: противодиарейное средство | C116: Диосмектит | D116: Неосмектин порошок д/приг суспензии д/вн прим 3g №30 | E116: ОМС | F116: Да | G116: уп | H116: 33 | I116: 341,55 | J116: 11,271.15
A117: A07BC05 | B117: противодиарейное средство | C117: Диосмектит | D117: Неосмектин порошок д/приг суспензии д/вн прим 3g №30 | E117: ПЛАТ | F117: Да | G117: уп | H117: 20 | I117: 341,55 | J117: 6,831.00
A118: A07DA03 | B118: противодиарейное средство | C118: Лоперамид | D118: Лоперамид табл 2mg №10 | E118: ОМС | F118: Да | G118: уп | H118: 35 | I118: 25,06 | J118: 877.10
A119: A07DA03 | B119: противодиарейное средство | C119: Лоперамид | D119: Лоперамид табл 2mg №20 | E119: ОМС | F119: Да | G119: уп | H119: 251 | I119: 27,21 | J119: 6,829.71
A120: A07DA03 | B120: противодиарейное средство | C120: Лоперамид | D120: Лоперамид табл 2mg №20 | E120: ПЛАТ | F120: Да | G120: уп | H120: 14 | I120: 27,21 | J120: 380.94
A121: A07EC02 | B121: противомикробное и противовоспалительное кишечное средство | C121: Сульфасалазин | D121: Сульфасалазин-ЕН табл п/к/р/о 500mg №50 | E121: ОМС | F121: Да | G121: уп | H121: 20 | I121: 359,34 | J121: 7,186.80
A122: A07EC02 | B122: противомикробное и противовоспалительное кишечное средство | C122: Сульфасалазин | D122: Сульфасалазин-ЕН табл п/к/р/о 500mg №50 | E122: ПЛАТ | F122: Да | G122: уп | H122: 3 | I122: 359,34 | J122: 1,078.02
A123: A07FA | B123: средство, нормализующее микрофлору кишечника | C123: ~ | D123: Хилак Форте капл д/пр внутрь 100ml №1 | E123: ПЛАТ | F123: Нет | G123: уп | H123: 15 | I123: 565,48 | J123: 8,482.20
A124: A07FA | B124: эубиотик | C124: Бифидобактерии бифидум | D124: Бифидумбактерин лиоф д/приг р-ра д/приема внутрь и мест прим 5dosis №10 | E124: ОМС | F124: Да | G124: уп | H124: 12 | I124: 86,51 | J124: 1,038.12
A125: A07FA | B125: эубиотик | C125: Бифидобактерии лонгум+Энтерококкус фециум | D125: Бифиформ капс к/раст №30 | E125: ОМС | F125: Нет | G125: уп | H125: 42 | I125: 615,87 | J125: 25,866.54
A126: A07FA | B126: эубиотик | C126: Бифидобактерии лонгум+Энтерококкус фециум | D126: Бифиформ капс к/раст №30 | E126: ПЛАТ | F126: Нет | G126: уп | H126: 49 | I126: 615,87 | J126: 30,177.63
A127: A07FA02 | B127: противодиарейное средство | C127: Сахаромицеты Boulardii | D127: Энтерол капсулы 250mg №30 | E127: ОМС | F127: Нет | G127: уп | H127: 60 | I127: 570,54 | J127: 34,232.40
A128: A07FA02 | B128: противодиарейное средство | C128: Сахаромицеты Boulardii | D128: Энтерол капсулы 250mg №30 | E128: ПЛАТ | F128: Нет | G128: уп | H128: 20 | I128: 570,54 | J128: 11,410.80
A129: A07FA51 | B129: эубиотик | C129: ~ | D129: Линекс капс №16 | E129: ОМС | F129: Нет | G129: уп | H129: 10 | I129: 394,94 | J129: 3,949.40
A130: A07FA51 | B130: эубиотик | C130: ~ | D130: Линекс капс №16 | E130: ПЛАТ | F130: Нет | G130: уп | H130: 2 | I130: 394,94 | J130: 789.88
A131: A09Препараты, способствующие пищеварению (в т.ч. ферментные препараты) | J131: 0.00
A132: А09АА02 | B132: пищеварительное ферментное средство | C132: Панкреатин | D132: Креон 25000 капс к/раст 300mg №20 | E132: ОМС | F132: Да | G132: уп | H132: 55 | I132: 562,03 | J132: 30,911.65
A133: А09АА02 | B133: пищеварительное ферментное средство | C133: Панкреатин | D133: Креон 25000 капс к/раст 300mg №20 | E133: ПЛАТ | F133: Да | G133: уп | H133: 45 | I133: 562,03 | J133: 25,291.35
A134: А09АА02 | B134: пищеварительное ферментное средство | C134: Панкреатин | D134: Мезим форте 10000 табл п/к/р/о №20 | E134: ОМС | F134: Да | G134: уп | H134: 758 | I134: 180,66 | J134: 136,940.28
A135: А09АА02 | B135: пищеварительное ферментное средство | C135: Панкреатин | D135: Мезим форте 10000 табл п/к/р/о №20 | E135: ПЛАТ | F135: Да | G135: уп | H135: 142 | I135: 180,66 | J135: 25,653.72
A136: А09АА02 | B136: пищеварительное ферментное средство | C136: Панкреатин | D136: Микразим капсулы 25000 ЕД №50 | E136: ОМС | F136: Да | G136: уп | H136: 326 | I136: 792,55 | J136: 258,371.30
A137: А09АА02 | B137: пищеварительное ферментное средство | C137: Панкреатин | D137: Микразим капсулы 25000 ЕД №50 | E137: ПЛАТ | F137: Да | G137: уп | H137: 54 | I137: 792,55 | J137: 42,797.70
A138: А09АА02 | B138: пищеварительное ферментное средство | C138: Панкреатин | D138: Микразим капсулы 40000 EД №50 | E138: ОМС | F138: Да | G138: уп | H138: 4 | I138: 1516,61 | J138: 6,066.44
A139: А09АА02 | B139: пищеварительное ферментное средство | C139: Панкреатин | D139: Микразим капсулы 40000 EД №50 | E139: ПЛАТ | F139: Да | G139: уп | H139: 4 | I139: 1516,61 | J139: 6,066.44
A140: A10Препараты для лечения сахарного диабета | J140: 0.00
A141: A10AB01 | B141: гипогликемическое средство - инсулин короткого действия | C141: Инсулин растворимый [человеческий генно-инженерный] | D141: Инсуман Рапид ГТ раствор для инъекций 100МЕ/ml 3ml №5 | E141: Бюджет | F141: Да | G141: уп | H141: 5 | I141: 1120,14 | J141: 5,600.70
A142: A10AB01 | B142: гипогликемическое средство - инсулин короткого действия | C142: Инсулин растворимый [человеческий генно-инженерный] | D142: Инсуман Рапид ГТ раствор для инъекций 100МЕ/ml 3ml №5 | E142: ОМС | F142: Да | G142: уп | H142: 43 | I142: 1120,14 | J142: 48,166.02
A143: A10AB01 | B143: гипогликемическое средство - инсулин короткого действия | C143: Инсулин растворимый [человеческий генно-инженерный] | D143: Инсуман Рапид ГТ раствор для инъекций 100МЕ/ml 3ml №5 | E143: ПЛАТ | F143: Да | G143: уп | H143: 3 | I143: 1120,14 | J143: 3,360.42
A144: A10AB01 | B144: гипогликемическое средство - инсулин короткого действия | C144: Инсулин растворимый [человеческий генно-инженерный] | D144: Росинсулин Р раствор для инъекций 100МЕ/ml 3ml №5 | E144: Бюджет | F144: Да | G144: уп | H144: 5 | I144: 1516,57 | J144: =H144*I144 -> 7,582.85
A145: A10AB01 | B145: гипогликемическое средство - инсулин короткого действия | C145: Инсулин растворимый [человеческий генно-инженерный] | D145: Росинсулин Р раствор для инъекций 100МЕ/ml 3ml №5 | E145: ОМС | F145: Да | G145: уп | H145: 47 | I145: 1516,57 | J145: 71,278.79
A146: A10AB01 | B146: гипогликемическое средство - инсулин короткого действия | C146: Инсулин растворимый [человеческий генно-инженерный] | D146: Росинсулин Р раствор для инъекций 100МЕ/ml 5ml №5 | E146: Бюджет | F146: Да | G146: уп | H146: 14 | I146: 1085,06 | J146: 15,190.84
A147: A10AB01 | B147: гипогликемическое средство - инсулин короткого действия | C147: Инсулин растворимый [человеческий генно-инженерный] | D147: Росинсулин Р раствор для инъекций 100МЕ/ml 5ml №5 | E147: ОМС | F147: Да | G147: уп | H147: 116 | I147: 1085,06 | J147: 125,866.96
A148: A10AB01 | B148: гипогликемическое средство - инсулин короткого действия | C148: Инсулин растворимый [человеческий генно-инженерный] | D148: Росинсулин Р раствор для инъекций 100МЕ/ml 5ml №5 | E148: ПЛАТ | F148: Да | G148: уп | H148: 2 | I148: 1085,06 | J148: 2,170.12
A149: A10AB01 | B149: гипогликемическое средство - инсулин короткого действия | C149: Инсулин растворимый [человеческий генно-инженерный] | D149: Росинсулин Р раствор для п/к вв 100ME/ml 5ml №5 | E149: ОМС | F149: Да | G149: уп | H149: 47 | I149: 1043,32 | J149: 49,036.04
A150: A10AC01 | B150: гипогликемическое средство - инсулин средней продолжительности действия | C150: Инсулин-изофан | D150: Росинсулин С суспензия для п/к вв 100ME/ml 5ml №5 | E150: Бюджет | F150: Да | G150: уп | H150: 8 | I150: 1046,36 | J150: 8,370.88
A151: A10AC01 | B151: гипогликемическое средство - инсулин средней продолжительности действия | C151: Инсулин-изофан | D151: Росинсулин С суспензия для п/к вв 100ME/ml 5ml №5 | E151: ОМС | F151: Да | G151: уп | H151: 134 | I151: 1046,36 | J151: 140,212.24
A152: A10AC01 | B152: гипогликемическое средство - инсулин средней продолжительности действия | C152: Инсулин-изофан | D152: Росинсулин С суспензия для п/к вв 100ME/ml 5ml №5 | E152: ПЛАТ | F152: Да | G152: уп | H152: 2 | I152: 1046,36 | J152: 2,092.72
A153: A10AЕ04 | B153: гипогликемическое средство - инсулина длительного действия аналог | C153: Инсулин гларгин | D153: Туджео СолоСтар р-р для п/к введ, картриджи в шприц-ручках СолоСтар 300ME/ml 1,5ml №3 | E153: Бюджет | F153: Да | G153: уп | H153: 12 | I153: 3208,15 | J153: 38,497.80
A154: A10AЕ04 | B154: гипогликемическое средство - инсулина длительного действия аналог | C154: Инсулин гларгин | D154: Туджео СолоСтар р-р для п/к введ, картриджи в шприц-ручках СолоСтар 300ME/ml 1,5ml №3 | E154: ОМС | F154: Да | G154: уп | H154: 145 | I154: 3208,15 | J154: 465,181.75
A155: A10AЕ04 | B155: гипогликемическое средство - инсулина длительного действия аналог | C155: Инсулин гларгин | D155: Туджео СолоСтар р-р для п/к введ, картриджи в шприц-ручках СолоСтар 300ME/ml 1,5ml №3 | E155: ПЛАТ | F155: Да | G155: уп | H155: 9 | I155: 3208,15 | J155: 28,873.35
A156: A10BA02 | B156: гипогликемическое средство для перорального применения группы бигуанидов | C156: Метформин | D156: Форметин табл 0,5g №60 | E156: Бюджет | F156: Да | G156: уп | H156: 3 | I156: 93,43 | J156: 280.29
A157: A10BA02 | B157: гипогликемическое средство для перорального применения группы бигуанидов | C157: Метформин | D157: Форметин табл 0,5g №60 | E157: ОМС | F157: Да | G157: уп | H157: 93 | I157: 93,43 | J157: 8,688.99
A158: A10BA02 | B158: гипогликемическое средство для перорального применения группы бигуанидов | C158: Метформин | D158: Форметин табл 0,5g №60 | E158: ПЛАТ | F158: Да | G158: уп | H158: 7 | I158: 93,43 | J158: 654.01
A159: A10BA02 | B159: гипогликемическое средство для перорального применения группы бигуанидов | C159: Метформин | D159: Форметин табл 0,85g №60 | E159: Бюджет | F159: Да | G159: уп | H159: 5 | I159: 180,33 | J159: 901.65
A160: A10BA02 | B160: гипогликемическое средство для перорального применения группы бигуанидов | C160: Метформин | D160: Форметин табл 0,85g №60 | E160: ОМС | F160: Да | G160: уп | H160: 252 | I160: 180,33 | J160: 45,443.16
A161: A10BA02 | B161: гипогликемическое средство для перорального применения группы бигуанидов | C161: Метформин | D161: Форметин табл 0,85g №60 | E161: ПЛАТ | F161: Да | G161: уп | H161: 3 | I161: 180,33 | J161: 540.99
A162: A10BA02 | B162: гипогликемическое средство для перорального применения группы бигуанидов | C162: Метформин | D162: Форметин табл 1g №30 | E162: Бюджет | F162: Да | G162: уп | H162: 5 | I162: 153,01 | J162: 765.05
A163: A10BA02 | B163: гипогликемическое средство для перорального применения группы бигуанидов | C163: Метформин | D163: Форметин табл 1g №30 | E163: ОМС | F163: Да | G163: уп | H163: 115 | I163: 153,01 | J163: 17,596.15
A164: A10BA02 | B164: гипогликемическое средство для перорального применения группы бигуанидов | C164: Метформин | D164: Форметин табл 1g №30 | E164: ПЛАТ | F164: Да | G164: уп | H164: 3 | I164: 153,01 | J164: 459.03
A165: A10BB01 | B165: гипогликемическое средство для перорального применения группы сульфонилмочевины II поколения | C165: Глибенкламид | D165: Глибенкламид табл 5mg №120 | E165: ОМС | F165: Да | G165: уп | H165: 15 | I165: 97,94 | J165: 1,469.10
A166: A10BB01 | B166: гипогликемическое средство для перорального применения группы сульфонилмочевины II поколения | C166: Глибенкламид | D166: Глибенкламид табл 5mg №120 | E166: ПЛАТ | F166: Да | G166: уп | H166: 1 | I166: 97,94 | J166: 97.94
A167: A10BB09 | B167: гипогликемическое средство для перорального применения группы сульфонилмочевины II поколения | C167: Гликлазид | D167: Гликлазид МВ табл с модифиц. высвобождением 30 mg №60 | E167: ПЛАТ | F167: Да | G167: уп | H167: 3 | I167: 138,13 | J167: 414.39
A168: A10BB09 | B168: гипогликемическое средство для перорального применения группы сульфонилмочевины II поколения | C168: Гликлазид | D168: Гликлазид МВ табл с модифиц. высвобождением 60mg №60 | E168: ОМС | F168: Да | G168: уп | H168: 15 | I168: 138,13 | J168: 2,071.95
A169: A11Витамины | J169: 0.00
A170: A11CC03 | B170: витамин - кальциево-фосфорного обмена регулятор | C170: Альфакальцидол | D170: Альфа Д3-Тева капсулы 0,25mkg №30 | E170: ПЛАТ | F170: Да | G170: уп | H170: 2 | I170: 299,85 | J170: 599.70
A171: A11DA01 | B171: витамин | C171: Тиамин | D171: Тиамин раствор для в/м вв 50mg/ml 1ml №10 | E171: Бюджет | F171: Да | G171: уп | H171: 7 | I171: 27,49 | J171: 192.43
A172: A11DA01 | B172: витамин | C172: Тиамин | D172: Тиамин раствор для в/м вв 50mg/ml 1ml №10 | E172: ОМС | F172: Да | G172: уп | H172: 813 | I172: 27,49 | J172: 22,349.37
A173: A11DA01 | B173: витамин | C173: Тиамин | D173: Тиамин раствор для в/м вв 50mg/ml 1ml №10 | E173: ПЛАТ | F173: Да | G173: уп | H173: 18 | I173: 27,49 | J173: 494.82
A174: A11EA | B174: витамины группы B | C174: Поливитамины | D174: Нейромультивит табл п/п/о №20 | E174: ПЛАТ | F174: Нет | G174: уп | H174: 3 | I174: 796,09 | J174: 2,388.27
A175: A11GA01 | B175: витамин | C175: Аскорбиновая кислота | D175: Аскорбиновая кислота раствор для в/в и в/м вв 50mg/ml 2ml №10 | E175: Бюджет | F175: Да | G175: уп | H175: 25 | I175: 37,69 | J175: 942.25
A176: A11GA01 | B176: витамин | C176: Аскорбиновая кислота | D176: Аскорбиновая кислота раствор для в/в и в/м вв 50mg/ml 2ml №10 | E176: ОМС | F176: Да | G176: уп | H176: 920 | I176: 37,69 | J176: 34,674.80
A177: A11GA01 | B177: витамин | C177: Аскорбиновая кислота | D177: Аскорбиновая кислота раствор для в/в и в/м вв 50mg/ml 2ml №10 | E177: ПЛАТ | F177: Да | G177: уп | H177: 170 | I177: 37,69 | J177: 6,407.30
A178: A11HA02 | B178: витамин | C178: Пиридоксин | D178: Пиридоксин раствор для инъекций 50mg/ml 1ml №10 | E178: Бюджет | F178: Да | G178: уп | H178: 9 | I178: 27,44 | J178: 246.96
A179: A11HA02 | B179: витамин | C179: Пиридоксин | D179: Пиридоксин раствор для инъекций 50mg/ml 1ml №10 | E179: ОМС | F179: Да | G179: уп | H179: 779 | I179: 27,44 | J179: 21,375.76
A180: A11HA02 | B180: витамин | C180: Пиридоксин | D180: Пиридоксин раствор для инъекций 50mg/ml 1ml №10 | E180: ПЛАТ | F180: Да | G180: уп | H180: 18 | I180: 27,44 | J180: 493.92
A181: А11НА03 | B181: витамин | C181: Витамин Е | D181: Лайфевит капсулы 100mg №30 | E181: ОМС | F181: Нет | G181: уп | H181: 20 | I181: 188,7 | J181: 3,774.00
A182: А11НА03 | B182: витамин | C182: Витамин Е | D182: альфа-Токоферола ацетат (Витамин E) капсулы 100mg №10 | E182: ОМС | F182: Нет | G182: уп | H182: 50 | I182: 85,35 | J182: 4,267.50
A183: A11HA04 | B183: витамин | C183: Рибофлавин | D183: Рибофлавин - мононуклеотид раствор для в/м вв 10mg/ml 1ml №10 | E183: ОМС | F183: Нет | G183: уп | H183: 60 | I183: 115,43 | J183: 6,925.80
A184: A11HA04 | B184: витамин | C184: Рибофлавин | D184: Рибофлавин - мононуклеотид раствор для в/м вв 10mg/ml 1ml №10 | E184: ПЛАТ | F184: Нет | G184: уп | H184: 2 | I184: 115,43 | J184: 230.86
A185: A11JA | B185: поливитаминное средство | C185: Витамин Е+ Ретинол | D185: Аевит капсулы №10 | E185: ПЛАТ | F185: Нет | G185: уп | H185: 20 | I185: 39,18 | J185: 783.60
A186: A12Минеральные добавки | J186: 0.00
A187: A12AA03 | B187: кальциево-фосфорного обмена регулятор | C187: Кальция глюконат | D187: Кальция глюконат Б.Браун раствор для инъекций 10% 10ml №20 | E187: ОМС | F187: Да | G187: уп | H187: 143 | I187: 379,5 | J187: 54,268.50
A188: A12AA03 | B188: кальциево-фосфорного обмена регулятор | C188: Кальция глюконат | D188: Кальция глюконат Б.Браун раствор для инъекций 10% 10ml №20 | E188: ПЛАТ | F188: Да | G188: уп | H188: 3 | I188: 379,5 | J188: 1,138.50
A189: A12AX | B189: кальциево-фосфорного обмена регулятор | C189: Кальция карбонат + Колекальциферол | D189: Кальций-Д3 Никомед Форте табл жеват 500mg+400ME №30 | E189: ОМС | F189: Нет | G189: уп | H189: 4 | I189: 578,2 | J189: 2,312.80
A190: A12AX | B190: кальциево-фосфорного обмена регулятор | C190: Кальция карбонат + Колекальциферол | D190: Кальций-Д3 Никомед Форте табл жеват 500mg+400ME №30 | E190: ПЛАТ | F190: Нет | G190: уп | H190: 2 | I190: 578,2 | J190: 1,156.40
A191: A12BA01 | B191: калия препарат | C191: Калия хлорид | D191: Калия хлорид Б. Браун конц-т д/приг раствора для инфузий 40mg/ml 10ml №20 | E191: Бюджет | F191: Да | G191: уп | H191: 28 | I191: 245,41 | J191: 6,871.48
A192: A12BA01 | B192: калия препарат | C192: Калия хлорид | D192: Калия хлорид Б. Браун конц-т д/приг раствора для инфузий 40mg/ml 10ml №20 | E192: ОМС | F192: Да | G192: уп | H192: 877 | I192: 245,41 | J192: 215,224.57
A193: A12BA01 | B193: калия препарат | C193: Калия хлорид | D193: Калия хлорид Б. Браун конц-т д/приг раствора для инфузий 40mg/ml 10ml №20 | E193: ПЛАТ | F193: Да | G193: уп | H193: 115 | I193: 245,41 | J193: 28,222.15
A194: A12BA01 | B194: калия препарат | C194: Калия хлорид | D194: Калия хлорид конц-т д/приг раствора для инфузий 40mg/ml 100ml №1 | E194: ОМС | F194: Да | G194: уп | H194: 1780 | I194: 63,59 | J194: 113,190.20
A195: A12BA01 | B195: калия препарат | C195: Калия хлорид | D195: Калия хлорид конц-т д/приг раствора для инфузий 40mg/ml 100ml №1 | E195: ПЛАТ | F195: Да | G195: уп | H195: 35 | I195: 63,59 | J195: 2,225.65
A196: A12BA01 | B196: калия препарат | C196: Калия хлорид | D196: Калия хлорид конц-т д/приг раствора для инфузий 40mg/ml 100ml №35 | E196: Бюджет | F196: Да | G196: уп | H196: 5 | I196: 2894,38 | J196: 14,471.90
A197: A12BA01 | B197: калия препарат | C197: Калия хлорид | D197: Калия хлорид конц-т д/приг раствора для инфузий 40mg/ml 100ml №35 | E197: ОМС | F197: Да | G197: уп | H197: 72 | I197: 2894,38 | J197: 208,395.36
A198: A12BA01 | B198: калия препарат | C198: Калия хлорид | D198: Калия хлорид конц-т д/приг раствора для инфузий 40mg/ml 100ml №35 | E198: ПЛАТ | F198: Да | G198: уп | H198: 9 | I198: 2894,38 | J198: 26,049.42
A199: A12BA01 | B199: калия препарат | C199: Калия хлорид | D199: Калия хлорид концентрат для приготовления р-ра для инфузий 75mg/ml 200ml №28 | E199: ОМС | F199: Да | G199: уп | H199: 194 | I199: 2868,16 | J199: 556,423.04
A200: A12CX | B200: калия и магния препарат | C200: Калия и магния аспарагинат | D200: Аспаркам табл №20 | E200: ОМС | F200: Да | G200: уп | H200: 250 | I200: 41,14 | J200: 10,285.00
A201: A12CX | B201: калия и магния препарат | C201: Калия и магния аспарагинат | D201: Аспаркам табл №60 | E201: Бюджет | F201: Да | G201: уп | H201: 100 | I201: 103,73 | J201: 10,373.00
A202: A12CX | B202: калия и магния препарат | C202: Калия и магния аспарагинат | D202: Аспаркам табл №60 | E202: ОМС | F202: Да | G202: уп | H202: 710 | I202: 103,73 | J202: 73,648.30
A203: A12CX | B203: калия и магния препарат | C203: Калия и магния аспарагинат | D203: Аспаркам табл №60 | E203: ПЛАТ | F203: Да | G203: уп | H203: 9 | I203: 103,73 | J203: 933.57
A204: A12CX | B204: калия и магния препарат | C204: Калия и магния аспарагинат | D204: Аспаркам- L раствор для в/в вв 10ml №10 | E204: ОМС | F204: Да | G204: уп | H204: 51 | I204: 94,48 | J204: 4,818.48
A205: A12CX | B205: калия и магния препарат | C205: Калия и магния аспарагинат | D205: Аспаркам- L раствор для в/в вв 10ml №10 | E205: ПЛАТ | F205: Да | G205: уп | H205: 30 | I205: 94,48 | J205: 2,834.40
... 1352 more rows

Sheet ОМС
H1: "Утверждаю"
H2: Главный врач СПб ГБУЗ ГМПБ №2
H3: Волчков В.А.
H5: ______________________________
H6: "30 мая 2019 года
A10: ФОРМУЛЯРНЫЙ ПЕРЕЧЕНЬ ЛЕКАРСТВЕННЫХ ПРЕПАРАТОВ НА 2020 ГОД
D11: ОМС
A12: АТХ | B12: Группа | C12: МНН | D12: Название | E12: ИФ | F12: ЖНиВЛП | G12: Ед.изм | H12: Кол-во | I12: Цена | J12: Сумма
A13: A Пищеварительный тракт и обмен веществ
A14: A01Стоматологические препараты
A15: A01AB11 | B15: противомикробное средство | C15: Метронидазол + Хлоргексидин | D15: Метрогил Дента гель стоматологический 20g №1 | E15: ПЛАТ | F15: Нет | G15: уп | H15: 20 | I15: 281,59 | J15: 5631,8
A16: A01AD11 | B16: НПВП | C16: Холина салицилат + Цеталкония хлорид | D16: Холисал гель стоматологический 10g | E16: ПЛАТ | F16: Нет | G16: уп | H16: 25 | I16: 417,43 | J16: 10435,75
A17: A01AВ11 | B17: противовоспалительное средство растительного происхождения | C17: ~ | D17: Стоматофит экстракт для местного применения, [жидкий] 100ml | E17: ПЛАТ | F17: Нет | G17: уп | H17: 20 | I17: 319,28 | J17: 6385,6
A18: A02Препараты, применяемые при состояниях, связанных с нарушениями кислотности
A19: A02BA03 | B19: желез желудка секрецию понижающее средство - H2-гистаминовых рецепторов блокатор | C19: Фамотидин | D19: Фамотидин лиоф д/пр р-ра д/в/в вв 20mg+5ml №5 | E19: Бюджет | F19: Да | G19: уп | H19: 271 | I19: 310,43 | J19: 84126,53
A20: A02BA03 | B20: желез желудка секрецию понижающее средство - H2-гистаминовых рецепторов блокатор | C20: Фамотидин | D20: Фамотидин лиоф д/пр р-ра д/в/в вв 20mg+5ml №5 | E20: ОМС | F20: Да | G20: уп | H20: 2453 | I20: 310,43 | J20: =H20*I20 -> 761,484.79
A21: A02BA03 | B21: желез желудка секрецию понижающее средство - H2-гистаминовых рецепторов блокатор | C21: Фамотидин | D21: Фамотидин лиоф д/пр р-ра д/в/в вв 20mg+5ml №5 | E21: ПЛАТ | F21: Да | G21: уп | H21: 128 | I21: 310,43 | J21: =H21*I21 -> 39735.04
A22: A02BA03 | B22: желез желудка секрецию понижающее средство - H2-гистаминовых рецепторов блокатор | C22: Фамотидин | D22: Фамотидин табл п/п/о 20mg №20 | E22: Бюджет | F22: Да | G22: уп | H22: 20 | I22: 23,33 | J22: 466.6
A23: A02BA03 | B23: желез желудка секрецию понижающее средство - H2-гистаминовых рецепторов блокатор | C23: Фамотидин | D23: Фамотидин табл п/п/о 20mg №20 | E23: ОМС | F23: Да | G23: уп | H23: 395 | I23: 23,33 | J23: 9,215.35
A24: A02BA03 | B24: желез желудка секрецию понижающее средство - H2-гистаминовых рецепторов блокатор | C24: Фамотидин | D24: Фамотидин табл п/п/о 20mg №20 | E24: ПЛАТ | F24: Да | G24: уп | H24: 8 | I24: 23,33 | J24: 186.64
A25: A02BA03 | B25: желез желудка секрецию понижающее средство - H2-гистаминовых рецепторов блокатор | C25: Фамотидин | D25: Фамотидин табл п/п/о 20mg №30 | E25: Бюджет | F25: Да | G25: уп | H25: 100 | I25: 34,43 | J25: 3443
A26: A02BA03 | B26: желез желудка секрецию понижающее средство - H2-гистаминовых рецепторов блокатор | C26: Фамотидин | D26: Фамотидин табл п/п/о 20mg №30 | E26: ОМС | F26: Да | G26: уп | H26: 2218 | I26: 34,43 | J26: 76,365.74
A27: A02BA03 | B27: желез желудка секрецию понижающее средство - H2-гистаминовых рецепторов блокатор | C27: Фамотидин | D27: Фамотидин табл п/п/о 20mg №30 | E27: ПЛАТ | F27: Да | G27: уп | H27: 25 | I27: 34,43 | J27: 860.75
A28: A02BC01 | B28: желез желудка секрецию понижающее средство - протонного насоса ингибитор | C28: Омепразол | D28: Омез лиоф-т д/пригот р-ра д/инф 40mg №1 | E28: Бюджет | F28: Да | G28: уп | H28: 50 | I28: 150,3 | J28: 7515
A29: A02BC01 | B29: желез желудка секрецию понижающее средство - протонного насоса ингибитор | C29: Омепразол | D29: Омез лиоф-т д/пригот р-ра д/инф 40mg №1 | E29: ОМС | F29: Да | G29: уп | H29: 1225 | I29: 150,3 | J29: 184,117.50
A30: A02BC01 | B30: желез желудка секрецию понижающее средство - протонного насоса ингибитор | C30: Омепразол | D30: Омез лиоф-т д/пригот р-ра д/инф 40mg №1 | E30: ПЛАТ | F30: Да | G30: уп | H30: 108 | I30: 150,3 | J30: 16232.4
A31: A02BC01 | B31: желез желудка секрецию понижающее средство - протонного насоса ингибитор | C31: Омепразол | D31: Омепразол капс к/раст 20mg №30 | E31: Бюджет | F31: Да | G31: уп | H31: 115 | I31: 32,94 | J31: 3788.1
A32: A02BC01 | B32: желез желудка секрецию понижающее средство - протонного насоса ингибитор | C32: Омепразол | D32: Омепразол капс к/раст 20mg №30 | E32: ОМС | F32: Да | G32: уп | H32: 4968 | I32: 32,94 | J32: 163,645.92
A33: A02BC01 | B33: желез желудка секрецию понижающее средство - протонного насоса ингибитор | C33: Омепразол | D33: Омепразол капс к/раст 20mg №30 | E33: ПЛАТ | F33: Да | G33: уп | H33: 210 | I33: 32,94 | J33: 6917.4
A34: A02BC01 | B34: желез желудка секрецию понижающее средство - протонного насоса ингибитор | C34: Омепразол | D34: Омепразол лиоф-т д/пригот р-ра д/инф 40mg №1 | E34: ОМС | F34: Да | G34: уп | H34: 101 | I34: 272,26 | J34: 27,498.26
A35: A02BC01 | B35: желез желудка секрецию понижающее средство - протонного насоса ингибитор | C35: Омепразол | D35: Ультоп капсулы 40mg №28 | E35: ОМС | F35: Да | G35: уп | H35: 19 | I35: 525,44 | J35: 9,983.36
A36: A02BC01 | B36: желез желудка секрецию понижающее средство - протонного насоса ингибитор | C36: Омепразол | D36: Ультоп капсулы 40mg №28 | E36: ПЛАТ | F36: Да | G36: уп | H36: 21 | I36: 525,44 | J36: 11034.24
A37: А02BC02 | B37: желез желудка секрецию понижающее средство - протонного насоса ингибитор | C37: Пантопразол | D37: Нольпаза лиоф д/пр р-ра д/в/в вв 40mg №1 | E37: ОМС | F37: Нет | G37: уп | H37: 50 | I37: 301,45 | J37: 15,072.50
A38: А02BC02 | B38: желез желудка секрецию понижающее средство - протонного насоса ингибитор | C38: Пантопразол | D38: Нольпаза лиоф д/пр р-ра д/в/в вв 40mg №1 | E38: ПЛАТ | F38: Нет | G38: уп | H38: 61 | I38: 301,45 | J38: 18388.45
A39: А02BC02 | B39: желез желудка секрецию понижающее средство - протонного насоса ингибитор | C39: Пантопразол | D39: Нольпаза табл п/к/р/о 40mg №14 | E39: ОМС | F39: Нет | G39: уп | H39: 298 | I39: 184,04 | J39: 54,843.92
A40: А02BC02 | B40: желез желудка секрецию понижающее средство - протонного насоса ингибитор | C40: Пантопразол | D40: Нольпаза табл п/к/р/о 40mg №14 | E40: ПЛАТ | F40: Нет | G40: уп | H40: 20 | I40: 184,04 | J40: 3680.8
A41: A02BC04 | B41: желез желудка секрецию понижающее средство - протонного насоса ингибитор | C41: Рабепразол | D41: Зульбекс табл к/р п/п/о 20mg №28 | E41: ОМС | F41: Нет | G41: уп | H41: 20 | I41: 1680 | J41: 33,600.00
A42: A02BC04 | B42: желез желудка секрецию понижающее средство - протонного насоса ингибитор | C42: Рабепразол | D42: Зульбекс табл к/р п/п/о 20mg №28 | E42: ПЛАТ | F42: Нет | G42: уп | H42: 8 | I42: 1680 | J42: 13440
A43: A02BC04 | B43: желез желудка секрецию понижающее средство - протонного насоса ингибитор | C43: Рабепразол | D43: Рабепразол-СЗ капсулы 20mg №28 | E43: ОМС | F43: Нет | G43: уп | H43: 20 | I43: 427,53 | J43: 8,550.60
A44: A02BC05 | B44: желез желудка секрецию понижающее средство - протонного насоса ингибитор | C44: Эзомепразол | D44: Эманера капс к/раст 20mg №14 | E44: ОМС | F44: Да | G44: уп | H44: 55 | I44: 242,17 | J44: 13,319.35
A45: A02BC05 | B45: желез желудка секрецию понижающее средство - протонного насоса ингибитор | C45: Эзомепразол | D45: Эманера капс к/раст 20mg №14 | E45: ПЛАТ | F45: Да | G45: уп | H45: 25 | I45: 242,17 | J45: 6054.25
A46: A02BC05 | B46: желез желудка секрецию понижающее средство - протонного насоса ингибитор | C46: Эзомепразол | D46: Эманера капс к/раст 40mg №28 | E46: ОМС | F46: Да | G46: уп | H46: 29 | I46: 727,99 | J46: 21,111.71
A47: A02BC05 | B47: желез желудка секрецию понижающее средство - протонного насоса ингибитор | C47: Эзомепразол | D47: Эманера капс к/раст 40mg №28 | E47: ПЛАТ | F47: Да | G47: уп | H47: 15 | I47: 727,99 | J47: 10919.85
A48: A02BX | B48: рефлюкс-эзофагита средство лечения | C48: ~ | D48: Гевискон Форте суспензия д/ приема внутрь (в компл.мерн.лож) 150ml №1 | E48: ОМС | F48: Нет | G48: уп | H48: 10 | I48: 346,8 | J48: 3,468.00
A49: A02BX | B49: рефлюкс-эзофагита средство лечения | C49: ~ | D49: Гевискон Форте суспензия д/ приема внутрь (в компл.мерн.лож) 150ml №1 | E49: ПЛАТ | F49: Нет | G49: уп | H49: 5 | I49: 346,8 | J49: 1734
A50: A02BX05 | B50: антисептическое кишечное и вяжущее средство | C50: Висмута трикалия дицитрат | D50: Висмута трикалия дицитрат табл п/п/о 120mg № 56 | E50: ОМС | F50: Да | G50: уп | H50: 73 | I50: 440,62 | J50: 32,165.26
A51: A02BX05 | B51: антисептическое кишечное и вяжущее средство | C51: Висмута трикалия дицитрат | D51: Висмута трикалия дицитрат табл п/п/о 120mg № 56 | E51: ПЛАТ | F51: Да | G51: уп | H51: 15 | I51: 440,62 | J51: 6609.3
A52: A02BX05 | B52: антисептическое кишечное и вяжущее средство | C52: Висмута трикалия дицитрат | D52: Улькавис табл п/п/о 120mg № 56 | E52: ПЛАТ | F52: Да | G52: уп | H52: 5 | I52: 413,7 | J52: 2068.5
A53: A02АХ | B53: антацидное средство | C53: Алгелдрат+Магния гидроксид | D53: Алмагель суспензия д/ приема внутрь (в компл.мерн.лож) 170ml | E53: ОМС | F53: Нет | G53: уп | H53: 53 | I53: 266,66 | J53: 14,132.98
A54: A02АХ | B54: антацидное средство | C54: Алгелдрат+Магния гидроксид | D54: Алмагель суспензия д/ приема внутрь (в компл.мерн.лож) 170ml | E54: ПЛАТ | F54: Нет | G54: уп | H54: 2 | I54: 266,66 | J54: 533.32
A55: A03Препараты для лечения функциональных нарушений со стороны ЖКТ | J55: 0.00
A56: A03AA | B56: м-холиноблокатор | C56: Платифиллин | D56: Платифиллина гидротартрат раствор для п/к вв 2mg/ml 1ml №10 | E56: ОМС | F56: Да | G56: уп | H56: 241 | I56: 69,75 | J56: 16,809.75
A57: A03AA | B57: м-холиноблокатор | C57: Платифиллин | D57: Платифиллина гидротартрат раствор для п/к вв 2mg/ml 1ml №10 | E57: ПЛАТ | F57: Да | G57: уп | H57: 26 | I57: 69,75 | J57: 1813.5
A58: A03AA04 | B58: спазмолитическое средство | C58: Мебеверин | D58: Спарекс капс пролонг/д-я 200mg №30 | E58: ОМС | F58: Да | G58: уп | H58: 165 | I58: 514,84 | J58: 84,948.60
A59: A03AA04 | B59: спазмолитическое средство | C59: Мебеверин | D59: Спарекс капс пролонг/д-я 200mg №30 | E59: ПЛАТ | F59: Да | G59: уп | H59: 45 | I59: 514,84 | J59: 23167.8
A60: A03AD01 | B60: спазмолитическое средство | C60: Папаверин | D60: Папаверина гидрохлорид раствор для инъекций 20mg/ml 2ml №10 | E60: Б.Опк | F60: Нет | G60: уп | H60: 2 | I60: 273,06 | J60: 546.12
A61: A03AD01 | B61: спазмолитическое средство | C61: Папаверин | D61: Папаверина гидрохлорид раствор для инъекций 20mg/ml 2ml №10 | E61: Бюджет | F61: Нет | G61: уп | H61: 30 | I61: 273,06 | J61: 8191.8
A62: A03AD01 | B62: спазмолитическое средство | C62: Папаверин | D62: Папаверина гидрохлорид раствор для инъекций 20mg/ml 2ml №10 | E62: ОМС | F62: Нет | G62: уп | H62: 315 | I62: 273,06 | J62: 86,013.90
A63: A03AD01 | B63: спазмолитическое средство | C63: Папаверин | D63: Папаверина гидрохлорид раствор для инъекций 20mg/ml 2ml №10 | E63: ПЛАТ | F63: Нет | G63: уп | H63: 10 | I63: 273,06 | J63: 2730.6
A64: A03AD02 | B64: спазмолитическое средство | C64: Дротаверин | D64: Дротаверин раствор для инъекций 20mg/ml 2ml №10 | E64: Бюджет | F64: Да | G64: уп | H64: 105 | I64: 59,01 | J64: 6196.05
A65: A03AD02 | B65: спазмолитическое средство | C65: Дротаверин | D65: Дротаверин раствор для инъекций 20mg/ml 2ml №10 | E65: ОМС | F65: Да | G65: уп | H65: 3134 | I65: 59,01 | J65: 184,937.34
A66: A03AD02 | B66: спазмолитическое средство | C66: Дротаверин | D66: Дротаверин раствор для инъекций 20mg/ml 2ml №10 | E66: ПЛАТ | F66: Да | G66: уп | H66: 58 | I66: 59,01 | J66: 3422.58
A67: A03AD02 | B67: спазмолитическое средство | C67: Дротаверин | D67: Дротаверин табл 40mg №100 | E67: Бюджет | F67: Да | G67: уп | H67: 2 | I67: 58,25 | J67: 116.5
A68: A03AD02 | B68: спазмолитическое средство | C68: Дротаверин | D68: Дротаверин табл 40mg №100 | E68: ОМС | F68: Да | G68: уп | H68: 430 | I68: 58,25 | J68: 25,047.50
A69: A03AD02 | B69: спазмолитическое средство | C69: Дротаверин | D69: Дротаверин табл 40mg №100 | E69: ПЛАТ | F69: Да | G69: уп | H69: 23 | I69: 58,25 | J69: 1339.75
A70: A03AD02 | B70: спазмолитическое средство | C70: Дротаверин | D70: Дротаверин табл 40mg №20 | E70: ОМС | F70: Да | G70: уп | H70: 57 | I70: 30,12 | J70: 1,716.84
A71: A03AD02 | B71: спазмолитическое средство | C71: Дротаверин | D71: Дротаверин табл 40mg №20 | E71: ПЛАТ | F71: Да | G71: уп | H71: 5 | I71: 30,12 | J71: 150.6
A72: A03BA01 | B72: м-холиноблокатор | C72: Атропин | D72: Атропин капли глазные 1% 5ml | E72: ОМС | F72: Да | G72: уп | H72: 63 | I72: 52,27 | J72: 3,293.01
A73: A03BA01 | B73: м-холиноблокатор | C73: Атропин | D73: Атропин капли глазные 1% 5ml | E73: ПЛАТ | F73: Да | G73: уп | H73: 4 | I73: 52,27 | J73: 209.08
A74: A03BA01 | B74: м-холиноблокатор | C74: Атропин | D74: Атропин раствор для инъекций 1mg/ml 1ml №5 | E74: ОМС | F74: Да | G74: уп | H74: 897 | I74: 12,01 | J74: 10,772.97
A75: A03BA01 | B75: м-холиноблокатор | C75: Атропин | D75: Атропин раствор для инъекций 1mg/ml 1ml №5 | E75: ПЛАТ | F75: Да | G75: уп | H75: 2 | I75: 12,01 | J75: 24.02
A76: A03BA01 | B76: м-холиноблокатор | C76: Атропин | D76: Атропина сульфат раствор для инъекций 1mg/ml 1ml №10 | E76: ОМС | F76: Да | G76: уп | H76: 1544 | I76: 28,39 | J76: 43,834.16
A77: A03FA01 | B77: противорвотное средство - дофаминовых рецепторов блокатор центральный | C77: Метоклопрамид | D77: Метоклопрамид раствор для в/в и в/м вв 5mg/ml 2ml №10 | E77: Бюджет | F77: Да | G77: уп | H77: 49 | I77: 123,89 | J77: 6070.61
A78: A03FA01 | B78: противорвотное средство - дофаминовых рецепторов блокатор центральный | C78: Метоклопрамид | D78: Метоклопрамид раствор для в/в и в/м вв 5mg/ml 2ml №10 | E78: ОМС | F78: Да | G78: уп | H78: 1543 | I78: 123,89 | J78: 191,162.27
A79: A03FA01 | B79: противорвотное средство - дофаминовых рецепторов блокатор центральный | C79: Метоклопрамид | D79: Метоклопрамид раствор для в/в и в/м вв 5mg/ml 2ml №10 | E79: ПЛАТ | F79: Да | G79: уп | H79: 72 | I79: 123,89 | J79: 8920.08
A80: A03FA01 | B80: противорвотное средство - дофаминовых рецепторов блокатор центральный | C80: Метоклопрамид | D80: Метоклопрамид табл 10mg №50 | E80: ОМС | F80: Да | G80: уп | H80: 69 | I80: 26,79 | J80: 1,848.51
A81: A03FA01 | B81: противорвотное средство - дофаминовых рецепторов блокатор центральный | C81: Метоклопрамид | D81: Метоклопрамид табл 10mg №50 | E81: ПЛАТ | F81: Да | G81: уп | H81: 3 | I81: 26,79 | J81: 80.37
A82: A04Противорвотные препараты | J82: 0.00
A83: А04АА01 | B83: противорвотное средство - серотониновых рецепторов антагонист | C83: Ондансетрон | D83: Латран раствор для в/в и в/м вв 2mg/ml 2ml №5 | E83: Бюджет | F83: Да | G83: уп | H83: 10 | I83: 456,12 | J83: 4561.2
A84: А04АА01 | B84: противорвотное средство - серотониновых рецепторов антагонист | C84: Ондансетрон | D84: Латран раствор для в/в и в/м вв 2mg/ml 2ml №5 | E84: ОМС | F84: Да | G84: уп | H84: 90 | I84: 456,12 | J84: 41,050.80
A85: А04АА01 | B85: противорвотное средство - серотониновых рецепторов антагонист | C85: Ондансетрон | D85: Латран раствор для в/в и в/м вв 2mg/ml 2ml №5 | E85: ПЛАТ | F85: Да | G85: уп | H85: 21 | I85: 456,12 | J85: =H85*I85 -> 9578.52
A86: A05Препараты для лечения заболеваний печени и желчевыводящих путей | J86: 0.00
A87: А05АА02 | B87: гепатопротекторное средство | C87: Урсодезоксихолевая кислота | D87: Урсодезоксихолевая кислота капсулы 250mg №50 | E87: ОМС | F87: Да | G87: уп | H87: 32 | I87: 571,14 | J87: 18,276.48
A88: А05АА02 | B88: гепатопротекторное средство | C88: Урсодезоксихолевая кислота | D88: Урсодезоксихолевая кислота капсулы 250mg №50 | E88: ПЛАТ | F88: Да | G88: уп | H88: 8 | I88: 571,14 | J88: 4569.12
A89: A05BA | B89: гипоазотемическое средство | C89: Орнитин | D89: Гепа-Мерц гран д/р-ра перор 5g №30 | E89: Бюджет | F89: Нет | G89: уп | H89: 2 | I89: 2095,42 | J89: 4190.84
A90: A05BA | B90: гипоазотемическое средство | C90: Орнитин | D90: Гепа-Мерц гран д/р-ра перор 5g №30 | E90: ОМС | F90: Нет | G90: уп | H90: 15 | I90: 2095,42 | J90: 31,431.30
A91: A05BA | B91: гипоазотемическое средство | C91: Орнитин | D91: Гепа-Мерц гран д/р-ра перор 5g №30 | E91: ПЛАТ | F91: Нет | G91: уп | H91: 10 | I91: 2095,42 | J91: 20954.2
A92: A05BA | B92: метаболическое средство | C92: Инозин+Меглюмин+Метионин+Никотинамид+Янтарная кислота | D92: Ремаксол раствор для инфузий 400ml №1 | E92: Бюджет | F92: Да | G92: уп | H92: 90 | I92: 398,47 | J92: 35862.3
A93: A05BA | B93: метаболическое средство | C93: Инозин+Меглюмин+Метионин+Никотинамид+Янтарная кислота | D93: Ремаксол раствор для инфузий 400ml №1 | E93: ОМС | F93: Да | G93: уп | H93: 160 | I93: 398,47 | J93: 63,755.20
A94: A05BA | B94: метаболическое средство | C94: Инозин+Меглюмин+Метионин+Никотинамид+Янтарная кислота | D94: Ремаксол раствор для инфузий 400ml №1 | E94: ПЛАТ | F94: Да | G94: уп | H94: 100 | I94: 398,47 | J94: 39847
A95: A06Слабительные препараты | J95: 0.00
A96: A06AA01 | B96: слабительное средство | C96: Парафин жидкий | D96: Вазелиновое масло масло д/приема внутрь 25ml | E96: ОМС | F96: Нет | G96: уп | H96: 273 | I96: 36,63 | J96: 9,999.99
A97: A06AA01 | B97: слабительное средство | C97: Парафин жидкий | D97: Вазелиновое масло масло д/приема внутрь 25ml | E97: ПЛАТ | F97: Нет | G97: уп | H97: 30 | I97: 36,63 | J97: 1098.9
A98: A06AB02 | B98: слабительное средство | C98: Бисакодил | D98: Бисакодил табл п/к/р/о 5mg №30 | E98: ОМС | F98: Да | G98: уп | H98: 135 | I98: 20,96 | J98: 2,829.60
A99: A06AB02 | B99: слабительное средство | C99: Бисакодил | D99: Бисакодил табл п/к/р/о 5mg №30 | E99: ПЛАТ | F99: Да | G99: уп | H99: 2 | I99: 20,96 | J99: 41.92
A100: A06AB02 | B100: слабительное средство | C100: Бисакодил | D100: Бисакодил-Нижфарм супп рект 10mg №10 | E100: ОМС | F100: Да | G100: уп | H100: 65 | I100: 42,62 | J100: 2,770.30
A101: A06AB02 | B101: слабительное средство | C101: Бисакодил | D101: Бисакодил-Нижфарм супп рект 10mg №10 | E101: ПЛАТ | F101: Да | G101: уп | H101: 8 | I101: 42,62 | J101: 340.96
A102: А06АВ06 | B102: слабительное средство растительного происхождения | C102: Сеннозиды А и В | D102: Сенадексин табл №20 | E102: ОМС | F102: Да | G102: уп | H102: 354 | I102: 15,84 | J102: 5,607.36
A103: А06АВ06 | B103: слабительное средство растительного происхождения | C103: Сеннозиды А и В | D103: Сенадексин табл №20 | E103: ПЛАТ | F103: Да | G103: уп | H103: 3 | I103: 15,84 | J103: 47.52
A104: A06AD11 | B104: слабительное средство | C104: Лактулоза | D104: Нормазе сироп 667mg/ml 200ml | E104: ОМС | F104: Да | G104: уп | H104: 107 | I104: 278,3 | J104: 29,778.10
A105: A06AD11 | B105: слабительное средство | C105: Лактулоза | D105: Порталак сироп 667mg/ml 500ml | E105: ОМС | F105: Да | G105: уп | H105: 7 | I105: 398,47 | J105: 2,789.29
A106: A06AD11 | B106: слабительное средство | C106: Лактулоза | D106: Порталак сироп 667mg/ml 500ml | E106: ПЛАТ | F106: Да | G106: уп | H106: 11 | I106: 398,47 | J106: 4383.17
A107: A06AD15 | B107: слабительное средство | C107: Макрогол | D107: Фортранс порошок д/приг суспензии д/вн прим 64g №4 | E107: ПЛАТ | F107: Да | G107: уп | H107: 83 | I107: 517,38 | J107: 42942.54
A108: A06АВ05 | B108: слабительное средство растительного происхождения | C108: ~ | D108: Касторовое масло масло д/приема внутрь 30ml | E108: ОМС | F108: Нет | G108: уп | H108: 125 | I108: 36,63 | J108: 4,578.75
A109: A07Противодиарейные, кишечные противовоспалительные и противомикробные препараты | J109: 0.00
A110: A07AA11 | B110: антибиотик-рифамицин | C110: Рифаксимин | D110: Альфа Нормикс табл п/п/о 200mg №12 | E110: ОМС | F110: Нет | G110: уп | H110: 70 | I110: 1069,34 | J110: 74,853.80
A111: A07AA11 | B111: антибиотик-рифамицин | C111: Рифаксимин | D111: Альфа Нормикс табл п/п/о 200mg №12 | E111: ПЛАТ | F111: Нет | G111: уп | H111: 20 | I111: 1069,34 | J111: 21386.8
A112: A07AX03 | B112: противомикробное средство - нитрофуран | C112: Нифуроксазид | D112: Экофурил капсулы 200mg №16 | E112: ОМС | F112: Нет | G112: уп | H112: 20 | I112: 459,56 | J112: 9,191.20
A113: A07AX03 | B113: противомикробное средство - нитрофуран | C113: Нифуроксазид | D113: Экофурил капсулы 200mg №16 | E113: ПЛАТ | F113: Нет | G113: уп | H113: 15 | I113: 459,56 | J113: 6893.4
A114: A07BA01 | B114: энтеросорбирующее средство | C114: Уголь активированный | D114: Уголь активированный табл 250mg №10 | E114: ОМС | F114: Нет | G114: уп | H114: 408 | I114: 4,33 | J114: 1,766.64
A115: A07BA01 | B115: энтеросорбирующее средство | C115: Уголь активированный | D115: Уголь активированный табл 250mg №10 | E115: ПЛАТ | F115: Нет | G115: уп | H115: 20 | I115: 4,33 | J115: 86.6
A116: A07BC05 | B116: противодиарейное средство | C116: Диосмектит | D116: Неосмектин порошок д/приг суспензии д/вн прим 3g №30 | E116: ОМС | F116: Да | G116: уп | H116: 33 | I116: 341,55 | J116: 11,271.15
A117: A07BC05 | B117: противодиарейное средство | C117: Диосмектит | D117: Неосмектин порошок д/приг суспензии д/вн прим 3g №30 | E117: ПЛАТ | F117: Да | G117: уп | H117: 20 | I117: 341,55 | J117: 6831
A118: A07DA03 | B118: противодиарейное средство | C118: Лоперамид | D118: Лоперамид табл 2mg №10 | E118: ОМС | F118: Да | G118: уп | H118: 35 | I118: 25,06 | J118: 877.10
A119: A07DA03 | B119: противодиарейное средство | C119: Лоперамид | D119: Лоперамид табл 2mg №20 | E119: ОМС | F119: Да | G119: уп | H119: 251 | I119: 27,21 | J119: 6,829.71
A120: A07DA03 | B120: противодиарейное средство | C120: Лоперамид | D120: Лоперамид табл 2mg №20 | E120: ПЛАТ | F120: Да | G120: уп | H120: 14 | I120: 27,21 | J120: 380.94
A121: A07EC02 | B121: противомикробное и противовоспалительное кишечное средство | C121: Сульфасалазин | D121: Сульфасалазин-ЕН табл п/к/р/о 500mg №50 | E121: ОМС | F121: Да | G121: уп | H121: 20 | I121: 359,34 | J121: 7,186.80
A122: A07EC02 | B122: противомикробное и противовоспалительное кишечное средство | C122: Сульфасалазин | D122: Сульфасалазин-ЕН табл п/к/р/о 500mg №50 | E122: ПЛАТ | F122: Да | G122: уп | H122: 3 | I122: 359,34 | J122: 1078.02
A123: A07FA | B123: средство, нормализующее микрофлору кишечника | C123: ~ | D123: Хилак Форте капл д/пр внутрь 100ml №1 | E123: ПЛАТ | F123: Нет | G123: уп | H123: 15 | I123: 565,48 | J123: 8482.2
A124: A07FA | B124: эубиотик | C124: Бифидобактерии бифидум | D124: Бифидумбактерин лиоф д/приг р-ра д/приема внутрь и мест прим 5dosis №10 | E124: ОМС | F124: Да | G124: уп | H124: 12 | I124: 86,51 | J124: 1,038.12
A125: A07FA | B125: эубиотик | C125: Бифидобактерии лонгум+Энтерококкус фециум | D125: Бифиформ капс к/раст №30 | E125: ОМС | F125: Нет | G125: уп | H125: 42 | I125: 615,87 | J125: 25,866.54
A126: A07FA | B126: эубиотик | C126: Бифидобактерии лонгум+Энтерококкус фециум | D126: Бифиформ капс к/раст №30 | E126: ПЛАТ | F126: Нет | G126: уп | H126: 49 | I126: 615,87 | J126: 30177.63
A127: A07FA02 | B127: противодиарейное средство | C127: Сахаромицеты Boulardii | D127: Энтерол капсулы 250mg №30 | E127: ОМС | F127: Нет | G127: уп | H127: 60 | I127: 570,54 | J127: 34,232.40
A128: A07FA02 | B128: противодиарейное средство | C128: Сахаромицеты Boulardii | D128: Энтерол капсулы 250mg №30 | E128: ПЛАТ | F128: Нет | G128: уп | H128: 20 | I128: 570,54 | J128: 11410.8
A129: A07FA51 | B129: эубиотик | C129: ~ | D129: Линекс капс №16 | E129: ОМС | F129: Нет | G129: уп | H129: 10 | I129: 394,94 | J129: 3,949.40
A130: A07FA51 | B130: эубиотик | C130: ~ | D130: Линекс капс №16 | E130: ПЛАТ | F130: Нет | G130: уп | H130: 2 | I130: 394,94 | J130: 789.88
A131: A09Препараты, способствующие пищеварению (в т.ч. ферментные препараты) | J131: 0.00
A132: А09АА02 | B132: пищеварительное ферментное средство | C132: Панкреатин | D132: Креон 25000 капс к/раст 300mg №20 | E132: ОМС | F132: Да | G132: уп | H132: 55 | I132: 562,03 | J132: 30,911.65
A133: А09АА02 | B133: пищеварительное ферментное средство | C133: Панкреатин | D133: Креон 25000 капс к/раст 300mg №20 | E133: ПЛАТ | F133: Да | G133: уп | H133: 45 | I133: 562,03 | J133: 25291.35
A134: А09АА02 | B134: пищеварительное ферментное средство | C134: Панкреатин | D134: Мезим форте 10000 табл п/к/р/о №20 | E134: ОМС | F134: Да | G134: уп | H134: 758 | I134: 180,66 | J134: 136,940.28
A135: А09АА02 | B135: пищеварительное ферментное средство | C135: Панкреатин | D135: Мезим форте 10000 табл п/к/р/о №20 | E135: ПЛАТ | F135: Да | G135: уп | H135: 142 | I135: 180,66 | J135: 25653.72
A136: А09АА02 | B136: пищеварительное ферментное средство | C136: Панкреатин | D136: Микразим капсулы 25000 ЕД №50 | E136: ОМС | F136: Да | G136: уп | H136: 326 | I136: 792,55 | J136: 258,371.30
A137: А09АА02 | B137: пищеварительное ферментное средство | C137: Панкреатин | D137: Микразим капсулы 25000 ЕД №50 | E137: ПЛАТ | F137: Да | G137: уп | H137: 54 | I137: 792,55 | J137: 42797.7
A138: А09АА02 | B138: пищеварительное ферментное средство | C138: Панкреатин | D138: Микразим капсулы 40000 EД №50 | E138: ОМС | F138: Да | G138: уп | H138: 4 | I138: 1516,61 | J138: 6,066.44
A139: А09АА02 | B139: пищеварительное ферментное средство | C139: Панкреатин | D139: Микразим капсулы 40000 EД №50 | E139: ПЛАТ | F139: Да | G139: уп | H139: 4 | I139: 1516,61 | J139: 6066.44
A140: A10Препараты для лечения сахарного диабета | J140: 0.00
A141: A10AB01 | B141: гипогликемическое средство - инсулин короткого действия | C141: Инсулин растворимый [человеческий генно-инженерный] | D141: Инсуман Рапид ГТ раствор для инъекций 100МЕ/ml 3ml №5 | E141: Бюджет | F141: Да | G141: уп | H141: 5 | I141: 1120,14 | J141: 5600.7
A142: A10AB01 | B142: гипогликемическое средство - инсулин короткого действия | C142: Инсулин растворимый [человеческий генно-инженерный] | D142: Инсуман Рапид ГТ раствор для инъекций 100МЕ/ml 3ml №5 | E142: ОМС | F142: Да | G142: уп | H142: 43 | I142: 1120,14 | J142: 48,166.02
A143: A10AB01 | B143: гипогликемическое средство - инсулин короткого действия | C143: Инсулин растворимый [человеческий генно-инженерный] | D143: Инсуман Рапид ГТ раствор для инъекций 100МЕ/ml 3ml №5 | E143: ПЛАТ | F143: Да | G143: уп | H143: 3 | I143: 1120,14 | J143: 3360.42
A144: A10AB01 | B144: гипогликемическое средство - инсулин короткого действия | C144: Инсулин растворимый [человеческий генно-инженерный] | D144: Росинсулин Р раствор для инъекций 100МЕ/ml 3ml №5 | E144: Бюджет | F144: Да | G144: уп | H144: 5 | I144: 1516,57 | J144: 7582.85
A145: A10AB01 | B145: гипогликемическое средство - инсулин короткого действия | C145: Инсулин растворимый [человеческий генно-инженерный] | D145: Росинсулин Р раствор для инъекций 100МЕ/ml 3ml №5 | E145: ОМС | F145: Да | G145: уп | H145: 47 | I145: 1516,57 | J145: 71,278.79
A146: A10AB01 | B146: гипогликемическое средство - инсулин короткого действия | C146: Инсулин растворимый [человеческий генно-инженерный] | D146: Росинсулин Р раствор для инъекций 100МЕ/ml 5ml №5 | E146: Бюджет | F146: Да | G146: уп | H146: 14 | I146: 1085,06 | J146: 15190.84
A147: A10AB01 | B147: гипогликемическое средство - инсулин короткого действия | C147: Инсулин растворимый [человеческий генно-инженерный] | D147: Росинсулин Р раствор для инъекций 100МЕ/ml 5ml №5 | E147: ОМС | F147: Да | G147: уп | H147: 116 | I147: 1085,06 | J147: 125,866.96
A148: A10AB01 | B148: гипогликемическое средство - инсулин короткого действия | C148: Инсулин растворимый [человеческий генно-инженерный] | D148: Росинсулин Р раствор для инъекций 100МЕ/ml 5ml №5 | E148: ПЛАТ | F148: Да | G148: уп | H148: 2 | I148: 1085,06 | J148: 2170.12
A149: A10AB01 | B149: гипогликемическое средство - инсулин короткого действия | C149: Инсулин растворимый [человеческий генно-инженерный] | D149: Росинсулин Р раствор для п/к вв 100ME/ml 5ml №5 | E149: ОМС | F149: Да | G149: уп | H149: 47 | I149: 1043,32 | J149: =H149*I149 -> 49,036.04
A150: A10AC01 | B150: гипогликемическое средство - инсулин средней продолжительности действия | C150: Инсулин-изофан | D150: Росинсулин С суспензия для п/к вв 100ME/ml 5ml №5 | E150: Бюджет | F150: Да | G150: уп | H150: 8 | I150: 1046,36 | J150: 8370.88
A151: A10AC01 | B151: гипогликемическое средство - инсулин средней продолжительности действия | C151: Инсулин-изофан | D151: Росинсулин С суспензия для п/к вв 100ME/ml 5ml №5 | E151: ОМС | F151: Да | G151: уп | H151: 134 | I151: 1046,36 | J151: 140,212.24
A152: A10AC01 | B152: гипогликемическое средство - инсулин средней продолжительности действия | C152: Инсулин-изофан | D152: Росинсулин С суспензия для п/к вв 100ME/ml 5ml №5 | E152: ПЛАТ | F152: Да | G152: уп | H152: 2 | I152: 1046,36 | J152: 2092.72
A153: A10AЕ04 | B153: гипогликемическое средство - инсулина длительного действия аналог | C153: Инсулин гларгин | D153: Туджео СолоСтар р-р для п/к введ, картриджи в шприц-ручках СолоСтар 300ME/ml 1,5ml №3 | E153: Бюджет | F153: Да | G153: уп | H153: 12 | I153: 3208,15 | J153: 38497.8
A154: A10AЕ04 | B154: гипогликемическое средство - инсулина длительного действия аналог | C154: Инсулин гларгин | D154: Туджео СолоСтар р-р для п/к введ, картриджи в шприц-ручках СолоСтар 300ME/ml 1,5ml №3 | E154: ОМС | F154: Да | G154: уп | H154: 145 | I154: 3208,15 | J154: 465,181.75
A155: A10AЕ04 | B155: гипогликемическое средство - инсулина длительного действия аналог | C155: Инсулин гларгин | D155: Туджео СолоСтар р-р для п/к введ, картриджи в шприц-ручках СолоСтар 300ME/ml 1,5ml №3 | E155: ПЛАТ | F155: Да | G155: уп | H155: 9 | I155: 3208,15 | J155: 28873.35
A156: A10BA02 | B156: гипогликемическое средство для перорального применения группы бигуанидов | C156: Метформин | D156: Форметин табл 0,5g №60 | E156: Бюджет | F156: Да | G156: уп | H156: 3 | I156: 93,43 | J156: 280.29
A157: A10BA02 | B157: гипогликемическое средство для перорального применения группы бигуанидов | C157: Метформин | D157: Форметин табл 0,5g №60 | E157: ОМС | F157: Да | G157: уп | H157: 93 | I157: 93,43 | J157: 8,688.99
A158: A10BA02 | B158: гипогликемическое средство для перорального применения группы бигуанидов | C158: Метформин | D158: Форметин табл 0,5g №60 | E158: ПЛАТ | F158: Да | G158: уп | H158: 7 | I158: 93,43 | J158: 654.01
A159: A10BA02 | B159: гипогликемическое средство для перорального применения группы бигуанидов | C159: Метформин | D159: Форметин табл 0,85g №60 | E159: Бюджет | F159: Да | G159: уп | H159: 5 | I159: 180,33 | J159: 901.65
A160: A10BA02 | B160: гипогликемическое средство для перорального применения группы бигуанидов | C160: Метформин | D160: Форметин табл 0,85g №60 | E160: ОМС | F160: Да | G160: уп | H160: 252 | I160: 180,33 | J160: 45,443.16
A161: A10BA02 | B161: гипогликемическое средство для перорального применения группы бигуанидов | C161: Метформин | D161: Форметин табл 0,85g №60 | E161: ПЛАТ | F161: Да | G161: уп | H161: 3 | I161: 180,33 | J161: 540.99
A162: A10BA02 | B162: гипогликемическое средство для перорального применения группы бигуанидов | C162: Метформин | D162: Форметин табл 1g №30 | E162: Бюджет | F162: Да | G162: уп | H162: 5 | I162: 153,01 | J162: 765.05
A163: A10BA02 | B163: гипогликемическое средство для перорального применения группы бигуанидов | C163: Метформин | D163: Форметин табл 1g №30 | E163: ОМС | F163: Да | G163: уп | H163: 115 | I163: 153,01 | J163: 17,596.15
A164: A10BA02 | B164: гипогликемическое средство для перорального применения группы бигуанидов | C164: Метформин | D164: Форметин табл 1g №30 | E164: ПЛАТ | F164: Да | G164: уп | H164: 3 | I164: 153,01 | J164: 459.03
A165: A10BB01 | B165: гипогликемическое средство для перорального применения группы сульфонилмочевины II поколения | C165: Глибенкламид | D165: Глибенкламид табл 5mg №120 | E165: ОМС | F165: Да | G165: уп | H165: 15 | I165: 97,94 | J165: 1,469.10
A166: A10BB01 | B166: гипогликемическое средство для перорального применения группы сульфонилмочевины II поколения | C166: Глибенкламид | D166: Глибенкламид табл 5mg №120 | E166: ПЛАТ | F166: Да | G166: уп | H166: 1 | I166: 97,94 | J166: 97.94
A167: A10BB09 | B167: гипогликемическое средство для перорального применения группы сульфонилмочевины II поколения | C167: Гликлазид | D167: Гликлазид МВ табл с модифиц. высвобождением 30 mg №60 | E167: ПЛАТ | F167: Да | G167: уп | H167: 3 | I167: 138,13 | J167: 414.39
A168: A10BB09 | B168: гипогликемическое средство для перорального применения группы сульфонилмочевины II поколения | C168: Гликлазид | D168: Гликлазид МВ табл с модифиц. высвобождением 60mg №60 | E168: ОМС | F168: Да | G168: уп | H168: 15 | I168: 138,13 | J168: 2,071.95
A169: A11Витамины | J169: 0.00
A170: A11CC03 | B170: витамин - кальциево-фосфорного обмена регулятор | C170: Альфакальцидол | D170: Альфа Д3-Тева капсулы 0,25mkg №30 | E170: ПЛАТ | F170: Да | G170: уп | H170: 2 | I170: 299,85 | J170: 599.7
A171: A11DA01 | B171: витамин | C171: Тиамин | D171: Тиамин раствор для в/м вв 50mg/ml 1ml №10 | E171: Бюджет | F171: Да | G171: уп | H171: 7 | I171: 27,49 | J171: 192.43
A172: A11DA01 | B172: витамин | C172: Тиамин | D172: Тиамин раствор для в/м вв 50mg/ml 1ml №10 | E172: ОМС | F172: Да | G172: уп | H172: 813 | I172: 27,49 | J172: 22,349.37
A173: A11DA01 | B173: витамин | C173: Тиамин | D173: Тиамин раствор для в/м вв 50mg/ml 1ml №10 | E173: ПЛАТ | F173: Да | G173: уп | H173: 18 | I173: 27,49 | J173: 494.82
A174: A11EA | B174: витамины группы B | C174: Поливитамины | D174: Нейромультивит табл п/п/о №20 | E174: ПЛАТ | F174: Нет | G174: уп | H174: 3 | I174: 796,09 | J174: 2388.27
A175: A11GA01 | B175: витамин | C175: Аскорбиновая кислота | D175: Аскорбиновая кислота раствор для в/в и в/м вв 50mg/ml 2ml №10 | E175: Бюджет | F175: Да | G175: уп | H175: 25 | I175: 37,69 | J175: 942.25
A176: A11GA01 | B176: витамин | C176: Аскорбиновая кислота | D176: Аскорбиновая кислота раствор для в/в и в/м вв 50mg/ml 2ml №10 | E176: ОМС | F176: Да | G176: уп | H176: 920 | I176: 37,69 | J176: 34,674.80
A177: A11GA01 | B177: витамин | C177: Аскорбиновая кислота | D177: Аскорбиновая кислота раствор для в/в и в/м вв 50mg/ml 2ml №10 | E177: ПЛАТ | F177: Да | G177: уп | H177: 170 | I177: 37,69 | J177: 6407.3
A178: A11HA02 | B178: витамин | C178: Пиридоксин | D178: Пиридоксин раствор для инъекций 50mg/ml 1ml №10 | E178: Бюджет | F178: Да | G178: уп | H178: 9 | I178: 27,44 | J178: 246.96
A179: A11HA02 | B179: витамин | C179: Пиридоксин | D179: Пиридоксин раствор для инъекций 50mg/ml 1ml №10 | E179: ОМС | F179: Да | G179: уп | H179: 779 | I179: 27,44 | J179: 21,375.76
A180: A11HA02 | B180: витамин | C180: Пиридоксин | D180: Пиридоксин раствор для инъекций 50mg/ml 1ml №10 | E180: ПЛАТ | F180: Да | G180: уп | H180: 18 | I180: 27,44 | J180: 493.92
A181: А11НА03 | B181: витамин | C181: Витамин Е | D181: Лайфевит капсулы 100mg №30 | E181: ОМС | F181: Нет | G181: уп | H181: 20 | I181: 188,7 | J181: 3,774.00
A182: А11НА03 | B182: витамин | C182: Витамин Е | D182: альфа-Токоферола ацетат (Витамин E) капсулы 100mg №10 | E182: ОМС | F182: Нет | G182: уп | H182: 50 | I182: 85,35 | J182: 4,267.50
A183: A11HA04 | B183: витамин | C183: Рибофлавин | D183: Рибофлавин - мононуклеотид раствор для в/м вв 10mg/ml 1ml №10 | E183: ОМС | F183: Нет | G183: уп | H183: 60 | I183: 115,43 | J183: 6,925.80
A184: A11HA04 | B184: витамин | C184: Рибофлавин | D184: Рибофлавин - мононуклеотид раствор для в/м вв 10mg/ml 1ml №10 | E184: ПЛАТ | F184: Нет | G184: уп | H184: 2 | I184: 115,43 | J184: 230.86
A185: A11JA | B185: поливитаминное средство | C185: Витамин Е+ Ретинол | D185: Аевит капсулы №10 | E185: ПЛАТ | F185: Нет | G185: уп | H185: 20 | I185: 39,18 | J185: 783.6
A186: A12Минеральные добавки | J186: 0.00
A187: A12AA03 | B187: кальциево-фосфорного обмена регулятор | C187: Кальция глюконат | D187: Кальция глюконат Б.Браун раствор для инъекций 10% 10ml №20 | E187: ОМС | F187: Да | G187: уп | H187: 143 | I187: 379,5 | J187: 54,268.50
A188: A12AA03 | B188: кальциево-фосфорного обмена регулятор | C188: Кальция глюконат | D188: Кальция глюконат Б.Браун раствор для инъекций 10% 10ml №20 | E188: ПЛАТ | F188: Да | G188: уп | H188: 3 | I188: 379,5 | J188: 1138.5
A189: A12AX | B189: кальциево-фосфорного обмена регулятор | C189: Кальция карбонат + Колекальциферол | D189: Кальций-Д3 Никомед Форте табл жеват 500mg+400ME №30 | E189: ОМС | F189: Нет | G189: уп | H189: 4 | I189: 578,2 | J189: 2,312.80
A190: A12AX | B190: кальциево-фосфорного обмена регулятор | C190: Кальция карбонат + Колекальциферол | D190: Кальций-Д3 Никомед Форте табл жеват 500mg+400ME №30 | E190: ПЛАТ | F190: Нет | G190: уп | H190: 2 | I190: 578,2 | J190: 1156.4
A191: A12BA01 | B191: калия препарат | C191: Калия хлорид | D191: Калия хлорид Б. Браун конц-т д/приг раствора для инфузий 40mg/ml 10ml №20 | E191: Бюджет | F191: Да | G191: уп | H191: 28 | I191: 245,41 | J191: 6871.48
A192: A12BA01 | B192: калия препарат | C192: Калия хлорид | D192: Калия хлорид Б. Браун конц-т д/приг раствора для инфузий 40mg/ml 10ml №20 | E192: ОМС | F192: Да | G192: уп | H192: 877 | I192: 245,41 | J192: 215,224.57
A193: A12BA01 | B193: калия препарат | C193: Калия хлорид | D193: Калия хлорид Б. Браун конц-т д/приг раствора для инфузий 40mg/ml 10ml №20 | E193: ПЛАТ | F193: Да | G193: уп | H193: 115 | I193: 245,41 | J193: 28222.15
A194: A12BA01 | B194: калия препарат | C194: Калия хлорид | D194: Калия хлорид конц-т д/приг раствора для инфузий 40mg/ml 100ml №1 | E194: ОМС | F194: Да | G194: уп | H194: 1780 | I194: 63,59 | J194: 113,190.20
A195: A12BA01 | B195: калия препарат | C195: Калия хлорид | D195: Калия хлорид конц-т д/приг раствора для инфузий 40mg/ml 100ml №1 | E195: ПЛАТ | F195: Да | G195: уп | H195: 35 | I195: 63,59 | J195: 2225.65
A196: A12BA01 | B196: калия препарат | C196: Калия хлорид | D196: Калия хлорид конц-т д/приг раствора для инфузий 40mg/ml 100ml №35 | E196: Бюджет | F196: Да | G196: уп | H196: 5 | I196: 2894,38 | J196: 14471.9
A197: A12BA01 | B197: калия препарат | C197: Калия хлорид | D197: Калия хлорид конц-т д/приг раствора для инфузий 40mg/ml 100ml №35 | E197: ОМС | F197: Да | G197: уп | H197: 72 | I197: 2894,38 | J197: 208,395.36
A198: A12BA01 | B198: калия препарат | C198: Калия хлорид | D198: Калия хлорид конц-т д/приг раствора для инфузий 40mg/ml 100ml №35 | E198: ПЛАТ | F198: Да | G198: уп | H198: 9 | I198: 2894,38 | J198: 26049.42
A199: A12BA01 | B199: калия препарат | C199: Калия хлорид | D199: Калия хлорид концентрат для приготовления р-ра для инфузий 75mg/ml 200ml №28 | E199: ОМС | F199: Да | G199: уп | H199: 194 | I199: 2868,16 | J199: 556,423.04
A200: A12CX | B200: калия и магния препарат | C200: Калия и магния аспарагинат | D200: Аспаркам табл №20 | E200: ОМС | F200: Да | G200: уп | H200: 250 | I200: 41,14 | J200: 10,285.00
A201: A12CX | B201: калия и магния препарат | C201: Калия и магния аспарагинат | D201: Аспаркам табл №60 | E201: Бюджет | F201: Да | G201: уп | H201: 100 | I201: 103,73 | J201: 10373
A202: A12CX | B202: калия и магния препарат | C202: Калия и магния аспарагинат | D202: Аспаркам табл №60 | E202: ОМС | F202: Да | G202: уп | H202: 710 | I202: 103,73 | J202: 73,648.30
A203: A12CX | B203: калия и магния препарат | C203: Калия и магния аспарагинат | D203: Аспаркам табл №60 | E203: ПЛАТ | F203: Да | G203: уп | H203: 9 | I203: 103,73 | J203: 933.57
A204: A12CX | B204: калия и магния препарат | C204: Калия и магния аспарагинат | D204: Аспаркам- L раствор для в/в вв 10ml №10 | E204: ОМС | F204: Да | G204: уп | H204: 51 | I204: 94,48 | J204: 4,818.48
... 1350 more rows

Sheet ПЛАТ
H1: "Утверждаю"
H2: Главный врач СПб ГБУЗ ГМПБ №2
H3: Волчков В.А.
H5: ______________________________
H6: "30 мая 2019 года
A10: ФОРМУЛЯРНЫЙ ПЕРЕЧЕНЬ ЛЕКАРСТВЕННЫХ ПРЕПАРАТОВ НА 2020 ГОД
D11: ПЛАТНАЯ
A12: АТХ | B12: Группа | C12: МНН | D12: Название | E12: ИФ | F12: ЖНиВЛП | G12: Ед.изм | H12: Кол-во | I12: Цена | J12: Сумма
A13: A Пищеварительный тракт и обмен веществ
A14: A01Стоматологические препараты
A15: A01AB11 | B15: противомикробное средство | C15: Метронидазол + Хлоргексидин | D15: Метрогил Дента гель стоматологический 20g №1 | E15: ПЛАТ | F15: Нет | G15: уп | H15: 20 | I15: 281,59 | J15: =H15*I15 -> 5,631.80
A16: A01AD11 | B16: НПВП | C16: Холина салицилат + Цеталкония хлорид | D16: Холисал гель стоматологический 10g | E16: ПЛАТ | F16: Нет | G16: уп | H16: 25 | I16: 417,43 | J16: =H16*I16 -> 10,435.75
A17: A01AВ11 | B17: противовоспалительное средство растительного происхождения | C17: ~ | D17: Стоматофит экстракт для местного применения, [жидкий] 100ml | E17: ПЛАТ | F17: Нет | G17: уп | H17: 20 | I17: 319,28 | J17: 6,385.60
A18: A02Препараты, применяемые при состояниях, связанных с нарушениями кислотности | J18: 0.00
A19: A02BA03 | B19: желез желудка секрецию понижающее средство - H2-гистаминовых рецепторов блокатор | C19: Фамотидин | D19: Фамотидин лиоф д/пр р-ра д/в/в вв 20mg+5ml №5 | E19: Бюджет | F19: Да | G19: уп | H19: 271 | I19: 310,43 | J19: 84126.53
A20: A02BA03 | B20: желез желудка секрецию понижающее средство - H2-гистаминовых рецепторов блокатор | C20: Фамотидин | D20: Фамотидин лиоф д/пр р-ра д/в/в вв 20mg+5ml №5 | E20: ОМС | F20: Да | G20: уп | H20: 2453 | I20: 310,43 | J20: 761484.79
A21: A02BA03 | B21: желез желудка секрецию понижающее средство - H2-гистаминовых рецепторов блокатор | C21: Фамотидин | D21: Фамотидин лиоф д/пр р-ра д/в/в вв 20mg+5ml №5 | E21: ПЛАТ | F21: Да | G21: уп | H21: 128 | I21: 310,43 | J21: 39,735.04
A22: A02BA03 | B22: желез желудка секрецию понижающее средство - H2-гистаминовых рецепторов блокатор | C22: Фамотидин | D22: Фамотидин табл п/п/о 20mg №20 | E22: Бюджет | F22: Да | G22: уп | H22: 20 | I22: 23,33 | J22: 466.6
A23: A02BA03 | B23: желез желудка секрецию понижающее средство - H2-гистаминовых рецепторов блокатор | C23: Фамотидин | D23: Фамотидин табл п/п/о 20mg №20 | E23: ОМС | F23: Да | G23: уп | H23: 395 | I23: 23,33 | J23: 9215.35
A24: A02BA03 | B24: желез желудка секрецию понижающее средство - H2-гистаминовых рецепторов блокатор | C24: Фамотидин | D24: Фамотидин табл п/п/о 20mg №20 | E24: ПЛАТ | F24: Да | G24: уп | H24: 8 | I24: 23,33 | J24: 186.64
A25: A02BA03 | B25: желез желудка секрецию понижающее средство - H2-гистаминовых рецепторов блокатор | C25: Фамотидин | D25: Фамотидин табл п/п/о 20mg №30 | E25: Бюджет | F25: Да | G25: уп | H25: 100 | I25: 34,43 | J25: 3443
A26: A02BA03 | B26: желез желудка секрецию понижающее средство - H2-гистаминовых рецепторов блокатор | C26: Фамотидин | D26: Фамотидин табл п/п/о 20mg №30 | E26: ОМС | F26: Да | G26: уп | H26: 2218 | I26: 34,43 | J26: 76365.74
A27: A02BA03 | B27: желез желудка секрецию понижающее средство - H2-гистаминовых рецепторов блокатор | C27: Фамотидин | D27: Фамотидин табл п/п/о 20mg №30 | E27: ПЛАТ | F27: Да | G27: уп | H27: 25 | I27: 34,43 | J27: 860.75
A28: A02BC01 | B28: желез желудка секрецию понижающее средство - протонного насоса ингибитор | C28: Омепразол | D28: Омез лиоф-т д/пригот р-ра д/инф 40mg №1 | E28: Бюджет | F28: Да | G28: уп | H28: 50 | I28: 150,3 | J28: 7515
A29: A02BC01 | B29: желез желудка секрецию понижающее средство - протонного насоса ингибитор | C29: Омепразол | D29: Омез лиоф-т д/пригот р-ра д/инф 40mg №1 | E29: ОМС | F29: Да | G29: уп | H29: 1225 | I29: 150,3 | J29: 184117.5
A30: A02BC01 | B30: желез желудка секрецию понижающее средство - протонного насоса ингибитор | C30: Омепразол | D30: Омез лиоф-т д/пригот р-ра д/инф 40mg №1 | E30: ПЛАТ | F30: Да | G30: уп | H30: 108 | I30: 150,3 | J30: 16,232.40
A31: A02BC01 | B31: желез желудка секрецию понижающее средство - протонного насоса ингибитор | C31: Омепразол | D31: Омепразол капс к/раст 20mg №30 | E31: Бюджет | F31: Да | G31: уп | H31: 115 | I31: 32,94 | J31: 3788.1
A32: A02BC01 | B32: желез желудка секрецию понижающее средство - протонного насоса ингибитор | C32: Омепразол | D32: Омепразол капс к/раст 20mg №30 | E32: ОМС | F32: Да | G32: уп | H32: 4968 | I32: 32,94 | J32: 163645.92
A33: A02BC01 | B33: желез желудка секрецию понижающее средство - протонного насоса ингибитор | C33: Омепразол | D33: Омепразол капс к/раст 20mg №30 | E33: ПЛАТ | F33: Да | G33: уп | H33: 210 | I33: 32,94 | J33: 6,917.40
A34: A02BC01 | B34: желез желудка секрецию понижающее средство - протонного насоса ингибитор | C34: Омепразол | D34: Омепразол лиоф-т д/пригот р-ра д/инф 40mg №1 | E34: ОМС | F34: Да | G34: уп | H34: 101 | I34: 272,26 | J34: 27498.26
A35: A02BC01 | B35: желез желудка секрецию понижающее средство - протонного насоса ингибитор | C35: Омепразол | D35: Ультоп капсулы 40mg №28 | E35: ОМС | F35: Да | G35: уп | H35: 19 | I35: 525,44 | J35: 9983.36
A36: A02BC01 | B36: желез желудка секрецию понижающее средство - протонного насоса ингибитор | C36: Омепразол | D36: Ультоп капсулы 40mg №28 | E36: ПЛАТ | F36: Да | G36: уп | H36: 21 | I36: 525,44 | J36: 11,034.24
A37: А02BC02 | B37: желез желудка секрецию понижающее средство - протонного насоса ингибитор | C37: Пантопразол | D37: Нольпаза лиоф д/пр р-ра д/в/в вв 40mg №1 | E37: ОМС | F37: Нет | G37: уп | H37: 50 | I37: 301,45 | J37: 15072.5
A38: А02BC02 | B38: желез желудка секрецию понижающее средство - протонного насоса ингибитор | C38: Пантопразол | D38: Нольпаза лиоф д/пр р-ра д/в/в вв 40mg №1 | E38: ПЛАТ | F38: Нет | G38: уп | H38: 61 | I38: 301,45 | J38: 18,388.45
A39: А02BC02 | B39: желез желудка секрецию понижающее средство - протонного насоса ингибитор | C39: Пантопразол | D39: Нольпаза табл п/к/р/о 40mg №14 | E39: ОМС | F39: Нет | G39: уп | H39: 298 | I39: 184,04 | J39: 54843.92
A40: А02BC02 | B40: желез желудка секрецию понижающее средство - протонного насоса ингибитор | C40: Пантопразол | D40: Нольпаза табл п/к/р/о 40mg №14 | E40: ПЛАТ | F40: Нет | G40: уп | H40: 20 | I40: 184,04 | J40: 3,680.80
A41: A02BC04 | B41: желез желудка секрецию понижающее средство - протонного насоса ингибитор | C41: Рабепразол | D41: Зульбекс табл к/р п/п/о 20mg №28 | E41: ОМС | F41: Нет | G41: уп | H41: 20 | I41: 1680 | J41: 33600
A42: A02BC04 | B42: желез желудка секрецию понижающее средство - протонного насоса ингибитор | C42: Рабепразол | D42: Зульбекс табл к/р п/п/о 20mg №28 | E42: ПЛАТ | F42: Нет | G42: уп | H42: 8 | I42: 1680 | J42: 13,440.00
A43: A02BC04 | B43: желез желудка секрецию понижающее средство - протонного насоса ингибитор | C43: Рабепразол | D43: Рабепразол-СЗ капсулы 20mg №28 | E43: ОМС | F43: Нет | G43: уп | H43: 20 | I43: 427,53 | J43: 8550.6
A44: A02BC05 | B44: желез желудка секрецию понижающее средство - протонного насоса ингибитор | C44: Эзомепразол | D44: Эманера капс к/раст 20mg №14 | E44: ОМС | F44: Да | G44: уп | H44: 55 | I44: 242,17 | J44: 13319.35
A45: A02BC05 | B45: желез желудка секрецию понижающее средство - протонного насоса ингибитор | C45: Эзомепразол | D45: Эманера капс к/раст 20mg №14 | E45: ПЛАТ | F45: Да | G45: уп | H45: 25 | I45: 242,17 | J45: 6,054.25
A46: A02BC05 | B46: желез желудка секрецию понижающее средство - протонного насоса ингибитор | C46: Эзомепразол | D46: Эманера капс к/раст 40mg №28 | E46: ОМС | F46: Да | G46: уп | H46: 29 | I46: 727,99 | J46: 21111.71
A47: A02BC05 | B47: желез желудка секрецию понижающее средство - протонного насоса ингибитор | C47: Эзомепразол | D47: Эманера капс к/раст 40mg №28 | E47: ПЛАТ | F47: Да | G47: уп | H47: 15 | I47: 727,99 | J47: 10,919.85
A48: A02BX | B48: рефлюкс-эзофагита средство лечения | C48: ~ | D48: Гевискон Форте суспензия д/ приема внутрь (в компл.мерн.лож) 150ml №1 | E48: ОМС | F48: Нет | G48: уп | H48: 10 | I48: 346,8 | J48: 3468
A49: A02BX | B49: рефлюкс-эзофагита средство лечения | C49: ~ | D49: Гевискон Форте суспензия д/ приема внутрь (в компл.мерн.лож) 150ml №1 | E49: ПЛАТ | F49: Нет | G49: уп | H49: 5 | I49: 346,8 | J49: 1,734.00
A50: A02BX05 | B50: антисептическое кишечное и вяжущее средство | C50: Висмута трикалия дицитрат | D50: Висмута трикалия дицитрат табл п/п/о 120mg № 56 | E50: ОМС | F50: Да | G50: уп | H50: 73 | I50: 440,62 | J50: 32165.26
A51: A02BX05 | B51: антисептическое кишечное и вяжущее средство | C51: Висмута трикалия дицитрат | D51: Висмута трикалия дицитрат табл п/п/о 120mg № 56 | E51: ПЛАТ | F51: Да | G51: уп | H51: 15 | I51: 440,62 | J51: 6,609.30
A52: A02BX05 | B52: антисептическое кишечное и вяжущее средство | C52: Висмута трикалия дицитрат | D52: Улькавис табл п/п/о 120mg № 56 | E52: ПЛАТ | F52: Да | G52: уп | H52: 5 | I52: 413,7 | J52: 2,068.50
A53: A02АХ | B53: антацидное средство | C53: Алгелдрат+Магния гидроксид | D53: Алмагель суспензия д/ приема внутрь (в компл.мерн.лож) 170ml | E53: ОМС | F53: Нет | G53: уп | H53: 53 | I53: 266,66 | J53: 14132.98
A54: A02АХ | B54: антацидное средство | C54: Алгелдрат+Магния гидроксид | D54: Алмагель суспензия д/ приема внутрь (в компл.мерн.лож) 170ml | E54: ПЛАТ | F54: Нет | G54: уп | H54: 2 | I54: 266,66 | J54: 533.32
A55: A03Препараты для лечения функциональных нарушений со стороны ЖКТ | J55: 0.00
A56: A03AA | B56: м-холиноблокатор | C56: Платифиллин | D56: Платифиллина гидротартрат раствор для п/к вв 2mg/ml 1ml №10 | E56: ОМС | F56: Да | G56: уп | H56: 241 | I56: 69,75 | J56: 16809.75
A57: A03AA | B57: м-холиноблокатор | C57: Платифиллин | D57: Платифиллина гидротартрат раствор для п/к вв 2mg/ml 1ml №10 | E57: ПЛАТ | F57: Да | G57: уп | H57: 26 | I57: 69,75 | J57: 1,813.50
A58: A03AA04 | B58: спазмолитическое средство | C58: Мебеверин | D58: Спарекс капс пролонг/д-я 200mg №30 | E58: ОМС | F58: Да | G58: уп | H58: 165 | I58: 514,84 | J58: 84948.6
A59: A03AA04 | B59: спазмолитическое средство | C59: Мебеверин | D59: Спарекс капс пролонг/д-я 200mg №30 | E59: ПЛАТ | F59: Да | G59: уп | H59: 45 | I59: 514,84 | J59: 23,167.80
A60: A03AD01 | B60: спазмолитическое средство | C60: Папаверин | D60: Папаверина гидрохлорид раствор для инъекций 20mg/ml 2ml №10 | E60: Б.Опк | F60: Нет | G60: уп | H60: 2 | I60: 273,06 | J60: 546.12
A61: A03AD01 | B61: спазмолитическое средство | C61: Папаверин | D61: Папаверина гидрохлорид раствор для инъекций 20mg/ml 2ml №10 | E61: Бюджет | F61: Нет | G61: уп | H61: 30 | I61: 273,06 | J61: 8191.8
A62: A03AD01 | B62: спазмолитическое средство | C62: Папаверин | D62: Папаверина гидрохлорид раствор для инъекций 20mg/ml 2ml №10 | E62: ОМС | F62: Нет | G62: уп | H62: 315 | I62: 273,06 | J62: 86013.9
A63: A03AD01 | B63: спазмолитическое средство | C63: Папаверин | D63: Папаверина гидрохлорид раствор для инъекций 20mg/ml 2ml №10 | E63: ПЛАТ | F63: Нет | G63: уп | H63: 10 | I63: 273,06 | J63: 2,730.60
A64: A03AD02 | B64: спазмолитическое средство | C64: Дротаверин | D64: Дротаверин раствор для инъекций 20mg/ml 2ml №10 | E64: Бюджет | F64: Да | G64: уп | H64: 105 | I64: 59,01 | J64: 6196.05
A65: A03AD02 | B65: спазмолитическое средство | C65: Дротаверин | D65: Дротаверин раствор для инъекций 20mg/ml 2ml №10 | E65: ОМС | F65: Да | G65: уп | H65: 3134 | I65: 59,01 | J65: 184937.34
A66: A03AD02 | B66: спазмолитическое средство | C66: Дротаверин | D66: Дротаверин раствор для инъекций 20mg/ml 2ml №10 | E66: ПЛАТ | F66: Да | G66: уп | H66: 58 | I66: 59,01 | J66: 3,422.58
A67: A03AD02 | B67: спазмолитическое средство | C67: Дротаверин | D67: Дротаверин табл 40mg №100 | E67: Бюджет | F67: Да | G67: уп | H67: 2 | I67: 58,25 | J67: 116.5
A68: A03AD02 | B68: спазмолитическое средство | C68: Дротаверин | D68: Дротаверин табл 40mg №100 | E68: ОМС | F68: Да | G68: уп | H68: 430 | I68: 58,25 | J68: 25047.5
A69: A03AD02 | B69: спазмолитическое средство | C69: Дротаверин | D69: Дротаверин табл 40mg №100 | E69: ПЛАТ | F69: Да | G69: уп | H69: 23 | I69: 58,25 | J69: 1,339.75
A70: A03AD02 | B70: спазмолитическое средство | C70: Дротаверин | D70: Дротаверин табл 40mg №20 | E70: ОМС | F70: Да | G70: уп | H70: 57 | I70: 30,12 | J70: 1716.84
A71: A03AD02 | B71: спазмолитическое средство | C71: Дротаверин | D71: Дротаверин табл 40mg №20 | E71: ПЛАТ | F71: Да | G71: уп | H71: 5 | I71: 30,12 | J71: 150.60
A72: A03BA01 | B72: м-холиноблокатор | C72: Атропин | D72: Атропин капли глазные 1% 5ml | E72: ОМС | F72: Да | G72: уп | H72: 63 | I72: 52,27 | J72: 3293.01
A73: A03BA01 | B73: м-холиноблокатор | C73: Атропин | D73: Атропин капли глазные 1% 5ml | E73: ПЛАТ | F73: Да | G73: уп | H73: 4 | I73: 52,27 | J73: 209.08
A74: A03BA01 | B74: м-холиноблокатор | C74: Атропин | D74: Атропин раствор для инъекций 1mg/ml 1ml №5 | E74: ОМС | F74: Да | G74: уп | H74: 897 | I74: 12,01 | J74: 10772.97
A75: A03BA01 | B75: м-холиноблокатор | C75: Атропин | D75: Атропин раствор для инъекций 1mg/ml 1ml №5 | E75: ПЛАТ | F75: Да | G75: уп | H75: 2 | I75: 12,01 | J75: 24.02
A76: A03BA01 | B76: м-холиноблокатор | C76: Атропин | D76: Атропина сульфат раствор для инъекций 1mg/ml 1ml №10 | E76: ОМС | F76: Да | G76: уп | H76: 1544 | I76: 28,39 | J76: 43834.16
A77: A03FA01 | B77: противорвотное средство - дофаминовых рецепторов блокатор центральный | C77: Метоклопрамид | D77: Метоклопрамид раствор для в/в и в/м вв 5mg/ml 2ml №10 | E77: Бюджет | F77: Да | G77: уп | H77: 49 | I77: 123,89 | J77: 6070.61
A78: A03FA01 | B78: противорвотное средство - дофаминовых рецепторов блокатор центральный | C78: Метоклопрамид | D78: Метоклопрамид раствор для в/в и в/м вв 5mg/ml 2ml №10 | E78: ОМС | F78: Да | G78: уп | H78: 1543 | I78: 123,89 | J78: 191162.27
A79: A03FA01 | B79: противорвотное средство - дофаминовых рецепторов блокатор центральный | C79: Метоклопрамид | D79: Метоклопрамид раствор для в/в и в/м вв 5mg/ml 2ml №10 | E79: ПЛАТ | F79: Да | G79: уп | H79: 72 | I79: 123,89 | J79: 8,920.08
A80: A03FA01 | B80: противорвотное средство - дофаминовых рецепторов блокатор центральный | C80: Метоклопрамид | D80: Метоклопрамид табл 10mg №50 | E80: ОМС | F80: Да | G80: уп | H80: 69 | I80: 26,79 | J80: =H80*I80 -> 1848.51
A81: A03FA01 | B81: противорвотное средство - дофаминовых рецепторов блокатор центральный | C81: Метоклопрамид | D81: Метоклопрамид табл 10mg №50 | E81: ПЛАТ | F81: Да | G81: уп | H81: 3 | I81: 26,79 | J81: 80.37
A82: A04Противорвотные препараты | J82: 0.00
A83: А04АА01 | B83: противорвотное средство - серотониновых рецепторов антагонист | C83: Ондансетрон | D83: Латран раствор для в/в и в/м вв 2mg/ml 2ml №5 | E83: Бюджет | F83: Да | G83: уп | H83: 10 | I83: 456,12 | J83: 4561.2
A84: А04АА01 | B84: противорвотное средство - серотониновых рецепторов антагонист | C84: Ондансетрон | D84: Латран раствор для в/в и в/м вв 2mg/ml 2ml №5 | E84: ОМС | F84: Да | G84: уп | H84: 90 | I84: 456,12 | J84: 41050.8
A85: А04АА01 | B85: противорвотное средство - серотониновых рецепторов антагонист | C85: Ондансетрон | D85: Латран раствор для в/в и в/м вв 2mg/ml 2ml №5 | E85: ПЛАТ | F85: Да | G85: уп | H85: 21 | I85: 456,12 | J85: 9,578.52
A86: A05Препараты для лечения заболеваний печени и желчевыводящих путей | J86: 0.00
A87: А05АА02 | B87: гепатопротекторное средство | C87: Урсодезоксихолевая кислота | D87: Урсодезоксихолевая кислота капсулы 250mg №50 | E87: ОМС | F87: Да | G87: уп | H87: 32 | I87: 571,14 | J87: 18276.48
A88: А05АА02 | B88: гепатопротекторное средство | C88: Урсодезоксихолевая кислота | D88: Урсодезоксихолевая кислота капсулы 250mg №50 | E88: ПЛАТ | F88: Да | G88: уп | H88: 8 | I88: 571,14 | J88: 4,569.12
A89: A05BA | B89: гипоазотемическое средство | C89: Орнитин | D89: Гепа-Мерц гран д/р-ра перор 5g №30 | E89: Бюджет | F89: Нет | G89: уп | H89: 2 | I89: 2095,42 | J89: 4190.84
A90: A05BA | B90: гипоазотемическое средство | C90: Орнитин | D90: Гепа-Мерц гран д/р-ра перор 5g №30 | E90: ОМС | F90: Нет | G90: уп | H90: 15 | I90: 2095,42 | J90: 31431.3
A91: A05BA | B91: гипоазотемическое средство | C91: Орнитин | D91: Гепа-Мерц гран д/р-ра перор 5g №30 | E91: ПЛАТ | F91: Нет | G91: уп | H91: 10 | I91: 2095,42 | J91: 20,954.20
A92: A05BA | B92: метаболическое средство | C92: Инозин+Меглюмин+Метионин+Никотинамид+Янтарная кислота | D92: Ремаксол раствор для инфузий 400ml №1 | E92: Бюджет | F92: Да | G92: уп | H92: 90 | I92: 398,47 | J92: 35862.3
A93: A05BA | B93: метаболическое средство | C93: Инозин+Меглюмин+Метионин+Никотинамид+Янтарная кислота | D93: Ремаксол раствор для инфузий 400ml №1 | E93: ОМС | F93: Да | G93: уп | H93: 160 | I93: 398,47 | J93: 63755.2
A94: A05BA | B94: метаболическое средство | C94: Инозин+Меглюмин+Метионин+Никотинамид+Янтарная кислота | D94: Ремаксол раствор для инфузий 400ml №1 | E94: ПЛАТ | F94: Да | G94: уп | H94: 100 | I94: 398,47 | J94: 39,847.00
A95: A06Слабительные препараты | J95: 0.00
A96: A06AA01 | B96: слабительное средство | C96: Парафин жидкий | D96: Вазелиновое масло масло д/приема внутрь 25ml | E96: ОМС | F96: Нет | G96: уп | H96: 273 | I96: 36,63 | J96: 9999.99
A97: A06AA01 | B97: слабительное средство | C97: Парафин жидкий | D97: Вазелиновое масло масло д/приема внутрь 25ml | E97: ПЛАТ | F97: Нет | G97: уп | H97: 30 | I97: 36,63 | J97: 1,098.90
A98: A06AB02 | B98: слабительное средство | C98: Бисакодил | D98: Бисакодил табл п/к/р/о 5mg №30 | E98: ОМС | F98: Да | G98: уп | H98: 135 | I98: 20,96 | J98: 2829.6
A99: A06AB02 | B99: слабительное средство | C99: Бисакодил | D99: Бисакодил табл п/к/р/о 5mg №30 | E99: ПЛАТ | F99: Да | G99: уп | H99: 2 | I99: 20,96 | J99: 41.92
A100: A06AB02 | B100: слабительное средство | C100: Бисакодил | D100: Бисакодил-Нижфарм супп рект 10mg №10 | E100: ОМС | F100: Да | G100: уп | H100: 65 | I100: 42,62 | J100: 2770.3
A101: A06AB02 | B101: слабительное средство | C101: Бисакодил | D101: Бисакодил-Нижфарм супп рект 10mg №10 | E101: ПЛАТ | F101: Да | G101: уп | H101: 8 | I101: 42,62 | J101: 340.96
A102: А06АВ06 | B102: слабительное средство растительного происхождения | C102: Сеннозиды А и В | D102: Сенадексин табл №20 | E102: ОМС | F102: Да | G102: уп | H102: 354 | I102: 15,84 | J102: 5607.36
A103: А06АВ06 | B103: слабительное средство растительного происхождения | C103: Сеннозиды А и В | D103: Сенадексин табл №20 | E103: ПЛАТ | F103: Да | G103: уп | H103: 3 | I103: 15,84 | J103: 47.52
A104: A06AD11 | B104: слабительное средство | C104: Лактулоза | D104: Нормазе сироп 667mg/ml 200ml | E104: ОМС | F104: Да | G104: уп | H104: 107 | I104: 278,3 | J104: 29778.1
A105: A06AD11 | B105: слабительное средство | C105: Лактулоза | D105: Порталак сироп 667mg/ml 500ml | E105: ОМС | F105: Да | G105: уп | H105: 7 | I105: 398,47 | J105: 2789.29
A106: A06AD11 | B106: слабительное средство | C106: Лактулоза | D106: Порталак сироп 667mg/ml 500ml | E106: ПЛАТ | F106: Да | G106: уп | H106: 11 | I106: 398,47 | J106: 4,383.17
A107: A06AD15 | B107: слабительное средство | C107: Макрогол | D107: Фортранс порошок д/приг суспензии д/вн прим 64g №4 | E107: ПЛАТ | F107: Да | G107: уп | H107: 83 | I107: 517,38 | J107: 42,942.54
A108: A06АВ05 | B108: слабительное средство растительного происхождения | C108: ~ | D108: Касторовое масло масло д/приема внутрь 30ml | E108: ОМС | F108: Нет | G108: уп | H108: 125 | I108: 36,63 | J108: 4578.75
A109: A07Противодиарейные, кишечные противовоспалительные и противомикробные препараты | J109: 0.00
A110: A07AA11 | B110: антибиотик-рифамицин | C110: Рифаксимин | D110: Альфа Нормикс табл п/п/о 200mg №12 | E110: ОМС | F110: Нет | G110: уп | H110: 70 | I110: 1069,34 | J110: 74853.8
A111: A07AA11 | B111: антибиотик-рифамицин | C111: Рифаксимин | D111: Альфа Нормикс табл п/п/о 200mg №12 | E111: ПЛАТ | F111: Нет | G111: уп | H111: 20 | I111: 1069,34 | J111: 21,386.80
A112: A07AX03 | B112: противомикробное средство - нитрофуран | C112: Нифуроксазид | D112: Экофурил капсулы 200mg №16 | E112: ОМС | F112: Нет | G112: уп | H112: 20 | I112: 459,56 | J112: 9191.2
A113: A07AX03 | B113: противомикробное средство - нитрофуран | C113: Нифуроксазид | D113: Экофурил капсулы 200mg №16 | E113: ПЛАТ | F113: Нет | G113: уп | H113: 15 | I113: 459,56 | J113: 6,893.40
A114: A07BA01 | B114: энтеросорбирующее средство | C114: Уголь активированный | D114: Уголь активированный табл 250mg №10 | E114: ОМС | F114: Нет | G114: уп | H114: 408 | I114: 4,33 | J114: 1766.64
A115: A07BA01 | B115: энтеросорбирующее средство | C115: Уголь активированный | D115: Уголь активированный табл 250mg №10 | E115: ПЛАТ | F115: Нет | G115: уп | H115: 20 | I115: 4,33 | J115: 86.60
A116: A07BC05 | B116: противодиарейное средство | C116: Диосмектит | D116: Неосмектин порошок д/приг суспензии д/вн прим 3g №30 | E116: ОМС | F116: Да | G116: уп | H116: 33 | I116: 341,55 | J116: 11271.15
A117: A07BC05 | B117: противодиарейное средство | C117: Диосмектит | D117: Неосмектин порошок д/приг суспензии д/вн прим 3g №30 | E117: ПЛАТ | F117: Да | G117: уп | H117: 20 | I117: 341,55 | J117: 6,831.00
A118: A07DA03 | B118: противодиарейное средство | C118: Лоперамид | D118: Лоперамид табл 2mg №10 | E118: ОМС | F118: Да | G118: уп | H118: 35 | I118: 25,06 | J118: 877.1
A119: A07DA03 | B119: противодиарейное средство | C119: Лоперамид | D119: Лоперамид табл 2mg №20 | E119: ОМС | F119: Да | G119: уп | H119: 251 | I119: 27,21 | J119: 6829.71
A120: A07DA03 | B120: противодиарейное средство | C120: Лоперамид | D120: Лоперамид табл 2mg №20 | E120: ПЛАТ | F120: Да | G120: уп | H120: 14 | I120: 27,21 | J120: 380.94
A121: A07EC02 | B121: противомикробное и противовоспалительное кишечное средство | C121: Сульфасалазин | D121: Сульфасалазин-ЕН табл п/к/р/о 500mg №50 | E121: ОМС | F121: Да | G121: уп | H121: 20 | I121: 359,34 | J121: 7186.8
A122: A07EC02 | B122: противомикробное и противовоспалительное кишечное средство | C122: Сульфасалазин | D122: Сульфасалазин-ЕН табл п/к/р/о 500mg №50 | E122: ПЛАТ | F122: Да | G122: уп | H122: 3 | I122: 359,34 | J122: 1,078.02
A123: A07FA | B123: средство, нормализующее микрофлору кишечника | C123: ~ | D123: Хилак Форте капл д/пр внутрь 100ml №1 | E123: ПЛАТ | F123: Нет | G123: уп | H123: 15 | I123: 565,48 | J123: 8,482.20
A124: A07FA | B124: эубиотик | C124: Бифидобактерии бифидум | D124: Бифидумбактерин лиоф д/приг р-ра д/приема внутрь и мест прим 5dosis №10 | E124: ОМС | F124: Да | G124: уп | H124: 12 | I124: 86,51 | J124: 1038.12
A125: A07FA | B125: эубиотик | C125: Бифидобактерии лонгум+Энтерококкус фециум | D125: Бифиформ капс к/раст №30 | E125: ОМС | F125: Нет | G125: уп | H125: 42 | I125: 615,87 | J125: 25866.54
A126: A07FA | B126: эубиотик | C126: Бифидобактерии лонгум+Энтерококкус фециум | D126: Бифиформ капс к/раст №30 | E126: ПЛАТ | F126: Нет | G126: уп | H126: 49 | I126: 615,87 | J126: 30,177.63
A127: A07FA02 | B127: противодиарейное средство | C127: Сахаромицеты Boulardii | D127: Энтерол капсулы 250mg №30 | E127: ОМС | F127: Нет | G127: уп | H127: 60 | I127: 570,54 | J127: 34232.4
A128: A07FA02 | B128: противодиарейное средство | C128: Сахаромицеты Boulardii | D128: Энтерол капсулы 250mg №30 | E128: ПЛАТ | F128: Нет | G128: уп | H128: 20 | I128: 570,54 | J128: 11,410.80
A129: A07FA51 | B129: эубиотик | C129: ~ | D129: Линекс капс №16 | E129: ОМС | F129: Нет | G129: уп | H129: 10 | I129: 394,94 | J129: 3949.4
A130: A07FA51 | B130: эубиотик | C130: ~ | D130: Линекс капс №16 | E130: ПЛАТ | F130: Нет | G130: уп | H130: 2 | I130: 394,94 | J130: 789.88
A131: A09Препараты, способствующие пищеварению (в т.ч. ферментные препараты) | J131: 0.00
A132: А09АА02 | B132: пищеварительное ферментное средство | C132: Панкреатин | D132: Креон 25000 капс к/раст 300mg №20 | E132: ОМС | F132: Да | G132: уп | H132: 55 | I132: 562,03 | J132: 30911.65
A133: А09АА02 | B133: пищеварительное ферментное средство | C133: Панкреатин | D133: Креон 25000 капс к/раст 300mg №20 | E133: ПЛАТ | F133: Да | G133: уп | H133: 45 | I133: 562,03 | J133: 25,291.35
A134: А09АА02 | B134: пищеварительное ферментное средство | C134: Панкреатин | D134: Мезим форте 10000 табл п/к/р/о №20 | E134: ОМС | F134: Да | G134: уп | H134: 758 | I134: 180,66 | J134: 136940.28
A135: А09АА02 | B135: пищеварительное ферментное средство | C135: Панкреатин | D135: Мезим форте 10000 табл п/к/р/о №20 | E135: ПЛАТ | F135: Да | G135: уп | H135: 142 | I135: 180,66 | J135: 25,653.72
A136: А09АА02 | B136: пищеварительное ферментное средство | C136: Панкреатин | D136: Микразим капсулы 25000 ЕД №50 | E136: ОМС | F136: Да | G136: уп | H136: 326 | I136: 792,55 | J136: 258371.3
A137: А09АА02 | B137: пищеварительное ферментное средство | C137: Панкреатин | D137: Микразим капсулы 25000 ЕД №50 | E137: ПЛАТ | F137: Да | G137: уп | H137: 54 | I137: 792,55 | J137: 42,797.70
A138: А09АА02 | B138: пищеварительное ферментное средство | C138: Панкреатин | D138: Микразим капсулы 40000 EД №50 | E138: ОМС | F138: Да | G138: уп | H138: 4 | I138: 1516,61 | J138: 6066.44
A139: А09АА02 | B139: пищеварительное ферментное средство | C139: Панкреатин | D139: Микразим капсулы 40000 EД №50 | E139: ПЛАТ | F139: Да | G139: уп | H139: 4 | I139: 1516,61 | J139: 6,066.44
A140: A10Препараты для лечения сахарного диабета | J140: 0.00
A141: A10AB01 | B141: гипогликемическое средство - инсулин короткого действия | C141: Инсулин растворимый [человеческий генно-инженерный] | D141: Инсуман Рапид ГТ раствор для инъекций 100МЕ/ml 3ml №5 | E141: Бюджет | F141: Да | G141: уп | H141: 5 | I141: 1120,14 | J141: 5600.7
A142: A10AB01 | B142: гипогликемическое средство - инсулин короткого действия | C142: Инсулин растворимый [человеческий генно-инженерный] | D142: Инсуман Рапид ГТ раствор для инъекций 100МЕ/ml 3ml №5 | E142: ОМС | F142: Да | G142: уп | H142: 43 | I142: 1120,14 | J142: 48166.02
A143: A10AB01 | B143: гипогликемическое средство - инсулин короткого действия | C143: Инсулин растворимый [человеческий генно-инженерный] | D143: Инсуман Рапид ГТ раствор для инъекций 100МЕ/ml 3ml №5 | E143: ПЛАТ | F143: Да | G143: уп | H143: 3 | I143: 1120,14 | J143: 3,360.42
A144: A10AB01 | B144: гипогликемическое средство - инсулин короткого действия | C144: Инсулин растворимый [человеческий генно-инженерный] | D144: Росинсулин Р раствор для инъекций 100МЕ/ml 3ml №5 | E144: Бюджет | F144: Да | G144: уп | H144: 5 | I144: 1516,57 | J144: =H144*I144 -> 7582.85
A145: A10AB01 | B145: гипогликемическое средство - инсулин короткого действия | C145: Инсулин растворимый [человеческий генно-инженерный] | D145: Росинсулин Р раствор для инъекций 100МЕ/ml 3ml №5 | E145: ОМС | F145: Да | G145: уп | H145: 47 | I145: 1516,57 | J145: 71278.79
A146: A10AB01 | B146: гипогликемическое средство - инсулин короткого действия | C146: Инсулин растворимый [человеческий генно-инженерный] | D146: Росинсулин Р раствор для инъекций 100МЕ/ml 5ml №5 | E146: Бюджет | F146: Да | G146: уп | H146: 14 | I146: 1085,06 | J146: 15190.84
A147: A10AB01 | B147: гипогликемическое средство - инсулин короткого действия | C147: Инсулин растворимый [человеческий генно-инженерный] | D147: Росинсулин Р раствор для инъекций 100МЕ/ml 5ml №5 | E147: ОМС | F147: Да | G147: уп | H147: 116 | I147: 1085,06 | J147: 125866.96
A148: A10AB01 | B148: гипогликемическое средство - инсулин короткого действия | C148: Инсулин растворимый [человеческий генно-инженерный] | D148: Росинсулин Р раствор для инъекций 100МЕ/ml 5ml №5 | E148: ПЛАТ | F148: Да | G148: уп | H148: 2 | I148: 1085,06 | J148: 2,170.12
A149: A10AB01 | B149: гипогликемическое средство - инсулин короткого действия | C149: Инсулин растворимый [человеческий генно-инженерный] | D149: Росинсулин Р раствор для п/к вв 100ME/ml 5ml №5 | E149: ОМС | F149: Да | G149: уп | H149: 47 | I149: 1043,32 | J149: 49036.04
A150: A10AC01 | B150: гипогликемическое средство - инсулин средней продолжительности действия | C150: Инсулин-изофан | D150: Росинсулин С суспензия для п/к вв 100ME/ml 5ml №5 | E150: Бюджет | F150: Да | G150: уп | H150: 8 | I150: 1046,36 | J150: 8370.88
A151: A10AC01 | B151: гипогликемическое средство - инсулин средней продолжительности действия | C151: Инсулин-изофан | D151: Росинсулин С суспензия для п/к вв 100ME/ml 5ml №5 | E151: ОМС | F151: Да | G151: уп | H151: 134 | I151: 1046,36 | J151: 140212.24
A152: A10AC01 | B152: гипогликемическое средство - инсулин средней продолжительности действия | C152: Инсулин-изофан | D152: Росинсулин С суспензия для п/к вв 100ME/ml 5ml №5 | E152: ПЛАТ | F152: Да | G152: уп | H152: 2 | I152: 1046,36 | J152: 2,092.72
A153: A10AЕ04 | B153: гипогликемическое средство - инсулина длительного действия аналог | C153: Инсулин гларгин | D153: Туджео СолоСтар р-р для п/к введ, картриджи в шприц-ручках СолоСтар 300ME/ml 1,5ml №3 | E153: Бюджет | F153: Да | G153: уп | H153: 12 | I153: 3208,15 | J153: 38497.8
A154: A10AЕ04 | B154: гипогликемическое средство - инсулина длительного действия аналог | C154: Инсулин гларгин | D154: Туджео СолоСтар р-р для п/к введ, картриджи в шприц-ручках СолоСтар 300ME/ml 1,5ml №3 | E154: ОМС | F154: Да | G154: уп | H154: 145 | I154: 3208,15 | J154: 465181.75
A155: A10AЕ04 | B155: гипогликемическое средство - инсулина длительного действия аналог | C155: Инсулин гларгин | D155: Туджео СолоСтар р-р для п/к введ, картриджи в шприц-ручках СолоСтар 300ME/ml 1,5ml №3 | E155: ПЛАТ | F155: Да | G155: уп | H155: 9 | I155: 3208,15 | J155: 28,873.35
A156: A10BA02 | B156: гипогликемическое средство для перорального применения группы бигуанидов | C156: Метформин | D156: Форметин табл 0,5g №60 | E156: Бюджет | F156: Да | G156: уп | H156: 3 | I156: 93,43 | J156: 280.29
A157: A10BA02 | B157: гипогликемическое средство для перорального применения группы бигуанидов | C157: Метформин | D157: Форметин табл 0,5g №60 | E157: ОМС | F157: Да | G157: уп | H157: 93 | I157: 93,43 | J157: 8688.99
A158: A10BA02 | B158: гипогликемическое средство для перорального применения группы бигуанидов | C158: Метформин | D158: Форметин табл 0,5g №60 | E158: ПЛАТ | F158: Да | G158: уп | H158: 7 | I158: 93,43 | J158: 654.01
A159: A10BA02 | B159: гипогликемическое средство для перорального применения группы бигуанидов | C159: Метформин | D159: Форметин табл 0,85g №60 | E159: Бюджет | F159: Да | G159: уп | H159: 5 | I159: 180,33 | J159: 901.65
A160: A10BA02 | B160: гипогликемическое средство для перорального применения группы бигуанидов | C160: Метформин | D160: Форметин табл 0,85g №60 | E160: ОМС | F160: Да | G160: уп | H160: 252 | I160: 180,33 | J160: 45443.16
A161: A10BA02 | B161: гипогликемическое средство для перорального применения группы бигуанидов | C161: Метформин | D161: Форметин табл 0,85g №60 | E161: ПЛАТ | F161: Да | G161: уп | H161: 3 | I161: 180,33 | J161: 540.99
A162: A10BA02 | B162: гипогликемическое средство для перорального применения группы бигуанидов | C162: Метформин | D162: Форметин табл 1g №30 | E162: Бюджет | F162: Да | G162: уп | H162: 5 | I162: 153,01 | J162: 765.05
A163: A10BA02 | B163: гипогликемическое средство для перорального применения группы бигуанидов | C163: Метформин | D163: Форметин табл 1g №30 | E163: ОМС | F163: Да | G163: уп | H163: 115 | I163: 153,01 | J163: 17596.15
A164: A10BA02 | B164: гипогликемическое средство для перорального применения группы бигуанидов | C164: Метформин | D164: Форметин табл 1g №30 | E164: ПЛАТ | F164: Да | G164: уп | H164: 3 | I164: 153,01 | J164: 459.03
A165: A10BB01 | B165: гипогликемическое средство для перорального применения группы сульфонилмочевины II поколения | C165: Глибенкламид | D165: Глибенкламид табл 5mg №120 | E165: ОМС | F165: Да | G165: уп | H165: 15 | I165: 97,94 | J165: 1469.1
A166: A10BB01 | B166: гипогликемическое средство для перорального применения группы сульфонилмочевины II поколения | C166: Глибенкламид | D166: Глибенкламид табл 5mg №120 | E166: ПЛАТ | F166: Да | G166: уп | H166: 1 | I166: 97,94 | J166: 97.94
A167: A10BB09 | B167: гипогликемическое средство для перорального применения группы сульфонилмочевины II поколения | C167: Гликлазид | D167: Гликлазид МВ табл с модифиц. высвобождением 30 mg №60 | E167: ПЛАТ | F167: Да | G167: уп | H167: 3 | I167: 138,13 | J167: 414.39
A168: A10BB09 | B168: гипогликемическое средство для перорального применения группы сульфонилмочевины II поколения | C168: Гликлазид | D168: Гликлазид МВ табл с модифиц. высвобождением 60mg №60 | E168: ОМС | F168: Да | G168: уп | H168: 15 | I168: 138,13 | J168: 2071.95
A169: A11Витамины | J169: 0.00
A170: A11CC03 | B170: витамин - кальциево-фосфорного обмена регулятор | C170: Альфакальцидол | D170: Альфа Д3-Тева капсулы 0,25mkg №30 | E170: ПЛАТ | F170: Да | G170: уп | H170: 2 | I170: 299,85 | J170: 599.70
A171: A11DA01 | B171: витамин | C171: Тиамин | D171: Тиамин раствор для в/м вв 50mg/ml 1ml №10 | E171: Бюджет | F171: Да | G171: уп | H171: 7 | I171: 27,49 | J171: 192.43
A172: A11DA01 | B172: витамин | C172: Тиамин | D172: Тиамин раствор для в/м вв 50mg/ml 1ml №10 | E172: ОМС | F172: Да | G172: уп | H172: 813 | I172: 27,49 | J172: 22349.37
A173: A11DA01 | B173: витамин | C173: Тиамин | D173: Тиамин раствор для в/м вв 50mg/ml 1ml №10 | E173: ПЛАТ | F173: Да | G173: уп | H173: 18 | I173: 27,49 | J173: 494.82
A174: A11EA | B174: витамины группы B | C174: Поливитамины | D174: Нейромультивит табл п/п/о №20 | E174: ПЛАТ | F174: Нет | G174: уп | H174: 3 | I174: 796,09 | J174: 2,388.27
A175: A11GA01 | B175: витамин | C175: Аскорбиновая кислота | D175: Аскорбиновая кислота раствор для в/в и в/м вв 50mg/ml 2ml №10 | E175: Бюджет | F175: Да | G175: уп | H175: 25 | I175: 37,69 | J175: 942.25
A176: A11GA01 | B176: витамин | C176: Аскорбиновая кислота | D176: Аскорбиновая кислота раствор для в/в и в/м вв 50mg/ml 2ml №10 | E176: ОМС | F176: Да | G176: уп | H176: 920 | I176: 37,69 | J176: 34674.8
A177: A11GA01 | B177: витамин | C177: Аскорбиновая кислота | D177: Аскорбиновая кислота раствор для в/в и в/м вв 50mg/ml 2ml №10 | E177: ПЛАТ | F177: Да | G177: уп | H177: 170 | I177: 37,69 | J177: 6,407.30
A178: A11HA02 | B178: витамин | C178: Пиридоксин | D178: Пиридоксин раствор для инъекций 50mg/ml 1ml №10 | E178: Бюджет | F178: Да | G178: уп | H178: 9 | I178: 27,44 | J178: 246.96
A179: A11HA02 | B179: витамин | C179: Пиридоксин | D179: Пиридоксин раствор для инъекций 50mg/ml 1ml №10 | E179: ОМС | F179: Да | G179: уп | H179: 779 | I179: 27,44 | J179: 21375.76
A180: A11HA02 | B180: витамин | C180: Пиридоксин | D180: Пиридоксин раствор для инъекций 50mg/ml 1ml №10 | E180: ПЛАТ | F180: Да | G180: уп | H180: 18 | I180: 27,44 | J180: 493.92
A181: А11НА03 | B181: витамин | C181: Витамин Е | D181: Лайфевит капсулы 100mg №30 | E181: ОМС | F181: Нет | G181: уп | H181: 20 | I181: 188,7 | J181: 3774
A182: А11НА03 | B182: витамин | C182: Витамин Е | D182: альфа-Токоферола ацетат (Витамин E) капсулы 100mg №10 | E182: ОМС | F182: Нет | G182: уп | H182: 50 | I182: 85,35 | J182: 4267.5
A183: A11HA04 | B183: витамин | C183: Рибофлавин | D183: Рибофлавин - мононуклеотид раствор для в/м вв 10mg/ml 1ml №10 | E183: ОМС | F183: Нет | G183: уп | H183: 60 | I183: 115,43 | J183: 6925.8
A184: A11HA04 | B184: витамин | C184: Рибофлавин | D184: Рибофлавин - мононуклеотид раствор для в/м вв 10mg/ml 1ml №10 | E184: ПЛАТ | F184: Нет | G184: уп | H184: 2 | I184: 115,43 | J184: 230.86
A185: A11JA | B185: поливитаминное средство | C185: Витамин Е+ Ретинол | D185: Аевит капсулы №10 | E185: ПЛАТ | F185: Нет | G185: уп | H185: 20 | I185: 39,18 | J185: 783.60
A186: A12Минеральные добавки | J186: 0.00
A187: A12AA03 | B187: кальциево-фосфорного обмена регулятор | C187: Кальция глюконат | D187: Кальция глюконат Б.Браун раствор для инъекций 10% 10ml №20 | E187: ОМС | F187: Да | G187: уп | H187: 143 | I187: 379,5 | J187: 54268.5
A188: A12AA03 | B188: кальциево-фосфорного обмена регулятор | C188: Кальция глюконат | D188: Кальция глюконат Б.Браун раствор для инъекций 10% 10ml №20 | E188: ПЛАТ | F188: Да | G188: уп | H188: 3 | I188: 379,5 | J188: 1,138.50
A189: A12AX | B189: кальциево-фосфорного обмена регулятор | C189: Кальция карбонат + Колекальциферол | D189: Кальций-Д3 Никомед Форте табл жеват 500mg+400ME №30 | E189: ОМС | F189: Нет | G189: уп | H189: 4 | I189: 578,2 | J189: 2312.8
A190: A12AX | B190: кальциево-фосфорного обмена регулятор | C190: Кальция карбонат + Колекальциферол | D190: Кальций-Д3 Никомед Форте табл жеват 500mg+400ME №30 | E190: ПЛАТ | F190: Нет | G190: уп | H190: 2 | I190: 578,2 | J190: 1,156.40
A191: A12BA01 | B191: калия препарат | C191: Калия хлорид | D191: Калия хлорид Б. Браун конц-т д/приг раствора для инфузий 40mg/ml 10ml №20 | E191: Бюджет | F191: Да | G191: уп | H191: 28 | I191: 245,41 | J191: 6871.48
A192: A12BA01 | B192: калия препарат | C192: Калия хлорид | D192: Калия хлорид Б. Браун конц-т д/приг раствора для инфузий 40mg/ml 10ml №20 | E192: ОМС | F192: Да | G192: уп | H192: 877 | I192: 245,41 | J192: 215224.57
A193: A12BA01 | B193: калия препарат | C193: Калия хлорид | D193: Калия хлорид Б. Браун конц-т д/приг раствора для инфузий 40mg/ml 10ml №20 | E193: ПЛАТ | F193: Да | G193: уп | H193: 115 | I193: 245,41 | J193: 28,222.15
A194: A12BA01 | B194: калия препарат | C194: Калия хлорид | D194: Калия хлорид конц-т д/приг раствора для инфузий 40mg/ml 100ml №1 | E194: ОМС | F194: Да | G194: уп | H194: 1780 | I194: 63,59 | J194: 113190.2
A195: A12BA01 | B195: калия препарат | C195: Калия хлорид | D195: Калия хлорид конц-т д/приг раствора для инфузий 40mg/ml 100ml №1 | E195: ПЛАТ | F195: Да | G195: уп | H195: 35 | I195: 63,59 | J195: 2,225.65
A196: A12BA01 | B196: калия препарат | C196: Калия хлорид | D196: Калия хлорид конц-т д/приг раствора для инфузий 40mg/ml 100ml №35 | E196: Бюджет | F196: Да | G196: уп | H196: 5 | I196: 2894,38 | J196: 14471.9
A197: A12BA01 | B197: калия препарат | C197: Калия хлорид | D197: Калия хлорид конц-т д/приг раствора для инфузий 40mg/ml 100ml №35 | E197: ОМС | F197: Да | G197: уп | H197: 72 | I197: 2894,38 | J197: 208395.36
A198: A12BA01 | B198: калия препарат | C198: Калия хлорид | D198: Калия хлорид конц-т д/приг раствора для инфузий 40mg/ml 100ml №35 | E198: ПЛАТ | F198: Да | G198: уп | H198: 9 | I198: 2894,38 | J198: 26,049.42
A199: A12BA01 | B199: калия препарат | C199: Калия хлорид | D199: Калия хлорид концентрат для приготовления р-ра для инфузий 75mg/ml 200ml №28 | E199: ОМС | F199: Да | G199: уп | H199: 194 | I199: 2868,16 | J199: 556423.04
A200: A12CX | B200: калия и магния препарат | C200: Калия и магния аспарагинат | D200: Аспаркам табл №20 | E200: ОМС | F200: Да | G200: уп | H200: 250 | I200: 41,14 | J200: 10285
A201: A12CX | B201: калия и магния препарат | C201: Калия и магния аспарагинат | D201: Аспаркам табл №60 | E201: Бюджет | F201: Да | G201: уп | H201: 100 | I201: 103,73 | J201: 10373
A202: A12CX | B202: калия и магния препарат | C202: Калия и магния аспарагинат | D202: Аспаркам табл №60 | E202: ОМС | F202: Да | G202: уп | H202: 710 | I202: 103,73 | J202: 73648.3
A203: A12CX | B203: калия и магния препарат | C203: Калия и магния аспарагинат | D203: Аспаркам табл №60 | E203: ПЛАТ | F203: Да | G203: уп | H203: 9 | I203: 103,73 | J203: 933.57
A204: A12CX | B204: калия и магния препарат | C204: Калия и магния аспарагинат | D204: Аспаркам- L раствор для в/в вв 10ml №10 | E204: ОМС | F204: Да | G204: уп | H204: 51 | I204: 94,48 | J204: 4818.48
... 1349 more rows

Sheet БЮДЖ
H1: "Утверждаю"
H2: Главный врач СПб ГБУЗ ГМПБ №2
H3: Волчков В.А.
H5: ______________________________
H6: "30 мая 2019 года
A10: ФОРМУЛЯРНЫЙ ПЕРЕЧЕНЬ ЛЕКАРСТВЕННЫХ ПРЕПАРАТОВ НА 2020 ГОД
D11: БЮДЖЕТ
A12: АТХ | B12: Группа | C12: МНН | D12: Название | E12: ИФ | F12: ЖНиВЛП | G12: Ед.изм | H12: Кол-во | I12: Цена | J12: Сумма
A13: A Пищеварительный тракт и обмен веществ
A14: A01AB11 | B14: противомикробное средство | C14: Метронидазол + Хлоргексидин | D14: Метрогил Дента гель стоматологический 20g №1 | E14: ПЛАТ | F14: Нет | G14: уп | H14: 20 | I14: 281,59 | J14: 5631,8
A15: A01AD11 | B15: НПВП | C15: Холина салицилат + Цеталкония хлорид | D15: Холисал гель стоматологический 10g | E15: ПЛАТ | F15: Нет | G15: уп | H15: 25 | I15: 417,43 | J15: 10435,75
A16: A01AВ11 | B16: противовоспалительное средство растительного происхождения | C16: ~ | D16: Стоматофит экстракт для местного применения, [жидкий] 100ml | E16: ПЛАТ | F16: Нет | G16: уп | H16: 20 | I16: 319,28 | J16: 6385,6
A17: A02Препараты, применяемые при состояниях, связанных с нарушениями кислотности
A18: A02BA03 | B18: желез желудка секрецию понижающее средство - H2-гистаминовых рецепторов блокатор | C18: Фамотидин | D18: Фамотидин лиоф д/пр р-ра д/в/в вв 20mg+5ml №5 | E18: Бюджет | F18: Да | G18: уп | H18: 271 | I18: 310,43 | J18: =H18*I18 -> 84,126.53
A19: A02BA03 | B19: желез желудка секрецию понижающее средство - H2-гистаминовых рецепторов блокатор | C19: Фамотидин | D19: Фамотидин лиоф д/пр р-ра д/в/в вв 20mg+5ml №5 | E19: ОМС | F19: Да | G19: уп | H19: 2453 | I19: 310,43 | J19: =H19*I19 -> 761484.79
A20: A02BA03 | B20: желез желудка секрецию понижающее средство - H2-гистаминовых рецепторов блокатор | C20: Фамотидин | D20: Фамотидин лиоф д/пр р-ра д/в/в вв 20mg+5ml №5 | E20: ПЛАТ | F20: Да | G20: уп | H20: 128 | I20: 310,43 | J20: 39735.04
A21: A02BA03 | B21: желез желудка секрецию понижающее средство - H2-гистаминовых рецепторов блокатор | C21: Фамотидин | D21: Фамотидин табл п/п/о 20mg №20 | E21: Бюджет | F21: Да | G21: уп | H21: 20 | I21: 23,33 | J21: 466.60
A22: A02BA03 | B22: желез желудка секрецию понижающее средство - H2-гистаминовых рецепторов блокатор | C22: Фамотидин | D22: Фамотидин табл п/п/о 20mg №20 | E22: ОМС | F22: Да | G22: уп | H22: 395 | I22: 23,33 | J22: 9215.35
A23: A02BA03 | B23: желез желудка секрецию понижающее средство - H2-гистаминовых рецепторов блокатор | C23: Фамотидин | D23: Фамотидин табл п/п/о 20mg №20 | E23: ПЛАТ | F23: Да | G23: уп | H23: 8 | I23: 23,33 | J23: 186.64
A24: A02BA03 | B24: желез желудка секрецию понижающее средство - H2-гистаминовых рецепторов блокатор | C24: Фамотидин | D24: Фамотидин табл п/п/о 20mg №30 | E24: Бюджет | F24: Да | G24: уп | H24: 100 | I24: 34,43 | J24: 3,443.00
A25: A02BA03 | B25: желез желудка секрецию понижающее средство - H2-гистаминовых рецепторов блокатор | C25: Фамотидин | D25: Фамотидин табл п/п/о 20mg №30 | E25: ОМС | F25: Да | G25: уп | H25: 2218 | I25: 34,43 | J25: 76365.74
A26: A02BA03 | B26: желез желудка секрецию понижающее средство - H2-гистаминовых рецепторов блокатор | C26: Фамотидин | D26: Фамотидин табл п/п/о 20mg №30 | E26: ПЛАТ | F26: Да | G26: уп | H26: 25 | I26: 34,43 | J26: 860.75
A27: A02BC01 | B27: желез желудка секрецию понижающее средство - протонного насоса ингибитор | C27: Омепразол | D27: Омез лиоф-т д/пригот р-ра д/инф 40mg №1 | E27: Бюджет | F27: Да | G27: уп | H27: 50 | I27: 150,3 | J27: 7,515.00
A28: A02BC01 | B28: желез желудка секрецию понижающее средство - протонного насоса ингибитор | C28: Омепразол | D28: Омез лиоф-т д/пригот р-ра д/инф 40mg №1 | E28: ОМС | F28: Да | G28: уп | H28: 1225 | I28: 150,3 | J28: 184117.5
A29: A02BC01 | B29: желез желудка секрецию понижающее средство - протонного насоса ингибитор | C29: Омепразол | D29: Омез лиоф-т д/пригот р-ра д/инф 40mg №1 | E29: ПЛАТ | F29: Да | G29: уп | H29: 108 | I29: 150,3 | J29: 16232.4
A30: A02BC01 | B30: желез желудка секрецию понижающее средство - протонного насоса ингибитор | C30: Омепразол | D30: Омепразол капс к/раст 20mg №30 | E30: Бюджет | F30: Да | G30: уп | H30: 115 | I30: 32,94 | J30: 3,788.10
A31: A02BC01 | B31: желез желудка секрецию понижающее средство - протонного насоса ингибитор | C31: Омепразол | D31: Омепразол капс к/раст 20mg №30 | E31: ОМС | F31: Да | G31: уп | H31: 4968 | I31: 32,94 | J31: 163645.92
A32: A02BC01 | B32: желез желудка секрецию понижающее средство - протонного насоса ингибитор | C32: Омепразол | D32: Омепразол капс к/раст 20mg №30 | E32: ПЛАТ | F32: Да | G32: уп | H32: 210 | I32: 32,94 | J32: 6917.4
A33: A02BC01 | B33: желез желудка секрецию понижающее средство - протонного насоса ингибитор | C33: Омепразол | D33: Омепразол лиоф-т д/пригот р-ра д/инф 40mg №1 | E33: ОМС | F33: Да | G33: уп | H33: 101 | I33: 272,26 | J33: 27498.26
A34: A02BC01 | B34: желез желудка секрецию понижающее средство - протонного насоса ингибитор | C34: Омепразол | D34: Ультоп капсулы 40mg №28 | E34: ОМС | F34: Да | G34: уп | H34: 19 | I34: 525,44 | J34: 9983.36
A35: A02BC01 | B35: желез желудка секрецию понижающее средство - протонного насоса ингибитор | C35: Омепразол | D35: Ультоп капсулы 40mg №28 | E35: ПЛАТ | F35: Да | G35: уп | H35: 21 | I35: 525,44 | J35: 11034.24
A36: А02BC02 | B36: желез желудка секрецию понижающее средство - протонного насоса ингибитор | C36: Пантопразол | D36: Нольпаза лиоф д/пр р-ра д/в/в вв 40mg №1 | E36: ОМС | F36: Нет | G36: уп | H36: 50 | I36: 301,45 | J36: 15072.5
A37: А02BC02 | B37: желез желудка секрецию понижающее средство - протонного насоса ингибитор | C37: Пантопразол | D37: Нольпаза лиоф д/пр р-ра д/в/в вв 40mg №1 | E37: ПЛАТ | F37: Нет | G37: уп | H37: 61 | I37: 301,45 | J37: 18388.45
A38: А02BC02 | B38: желез желудка секрецию понижающее средство - протонного насоса ингибитор | C38: Пантопразол | D38: Нольпаза табл п/к/р/о 40mg №14 | E38: ОМС | F38: Нет | G38: уп | H38: 298 | I38: 184,04 | J38: 54843.92
A39: А02BC02 | B39: желез желудка секрецию понижающее средство - протонного насоса ингибитор | C39: Пантопразол | D39: Нольпаза табл п/к/р/о 40mg №14 | E39: ПЛАТ | F39: Нет | G39: уп | H39: 20 | I39: 184,04 | J39: 3680.8
A40: A02BC04 | B40: желез желудка секрецию понижающее средство - протонного насоса ингибитор | C40: Рабепразол | D40: Зульбекс табл к/р п/п/о 20mg №28 | E40: ОМС | F40: Нет | G40: уп | H40: 20 | I40: 1680 | J40: 33600
A41: A02BC04 | B41: желез желудка секрецию понижающее средство - протонного насоса ингибитор | C41: Рабепразол | D41: Зульбекс табл к/р п/п/о 20mg №28 | E41: ПЛАТ | F41: Нет | G41: уп | H41: 8 | I41: 1680 | J41: 13440
A42: A02BC04 | B42: желез желудка секрецию понижающее средство - протонного насоса ингибитор | C42: Рабепразол | D42: Рабепразол-СЗ капсулы 20mg №28 | E42: ОМС | F42: Нет | G42: уп | H42: 20 | I42: 427,53 | J42: 8550.6
A43: A02BC05 | B43: желез желудка секрецию понижающее средство - протонного насоса ингибитор | C43: Эзомепразол | D43: Эманера капс к/раст 20mg №14 | E43: ОМС | F43: Да | G43: уп | H43: 55 | I43: 242,17 | J43: 13319.35
A44: A02BC05 | B44: желез желудка секрецию понижающее средство - протонного насоса ингибитор | C44: Эзомепразол | D44: Эманера капс к/раст 20mg №14 | E44: ПЛАТ | F44: Да | G44: уп | H44: 25 | I44: 242,17 | J44: 6054.25
A45: A02BC05 | B45: желез желудка секрецию понижающее средство - протонного насоса ингибитор | C45: Эзомепразол | D45: Эманера капс к/раст 40mg №28 | E45: ОМС | F45: Да | G45: уп | H45: 29 | I45: 727,99 | J45: 21111.71
A46: A02BC05 | B46: желез желудка секрецию понижающее средство - протонного насоса ингибитор | C46: Эзомепразол | D46: Эманера капс к/раст 40mg №28 | E46: ПЛАТ | F46: Да | G46: уп | H46: 15 | I46: 727,99 | J46: 10919.85
A47: A02BX | B47: рефлюкс-эзофагита средство лечения | C47: ~ | D47: Гевискон Форте суспензия д/ приема внутрь (в компл.мерн.лож) 150ml №1 | E47: ОМС | F47: Нет | G47: уп | H47: 10 | I47: 346,8 | J47: 3468
A48: A02BX | B48: рефлюкс-эзофагита средство лечения | C48: ~ | D48: Гевискон Форте суспензия д/ приема внутрь (в компл.мерн.лож) 150ml №1 | E48: ПЛАТ | F48: Нет | G48: уп | H48: 5 | I48: 346,8 | J48: 1734
A49: A02BX05 | B49: антисептическое кишечное и вяжущее средство | C49: Висмута трикалия дицитрат | D49: Висмута трикалия дицитрат табл п/п/о 120mg № 56 | E49: ОМС | F49: Да | G49: уп | H49: 73 | I49: 440,62 | J49: 32165.26
A50: A02BX05 | B50: антисептическое кишечное и вяжущее средство | C50: Висмута трикалия дицитрат | D50: Висмута трикалия дицитрат табл п/п/о 120mg № 56 | E50: ПЛАТ | F50: Да | G50: уп | H50: 15 | I50: 440,62 | J50: 6609.3
A51: A02BX05 | B51: антисептическое кишечное и вяжущее средство | C51: Висмута трикалия дицитрат | D51: Улькавис табл п/п/о 120mg № 56 | E51: ПЛАТ | F51: Да | G51: уп | H51: 5 | I51: 413,7 | J51: 2068.5
A52: A02АХ | B52: антацидное средство | C52: Алгелдрат+Магния гидроксид | D52: Алмагель суспензия д/ приема внутрь (в компл.мерн.лож) 170ml | E52: ОМС | F52: Нет | G52: уп | H52: 53 | I52: 266,66 | J52: 14132.98
A53: A02АХ | B53: антацидное средство | C53: Алгелдрат+Магния гидроксид | D53: Алмагель суспензия д/ приема внутрь (в компл.мерн.лож) 170ml | E53: ПЛАТ | F53: Нет | G53: уп | H53: 2 | I53: 266,66 | J53: 533.32
A54: A03Препараты для лечения функциональных нарушений со стороны ЖКТ | J54: 0.00
A55: A03AA | B55: м-холиноблокатор | C55: Платифиллин | D55: Платифиллина гидротартрат раствор для п/к вв 2mg/ml 1ml №10 | E55: ОМС | F55: Да | G55: уп | H55: 241 | I55: 69,75 | J55: 16809.75
A56: A03AA | B56: м-холиноблокатор | C56: Платифиллин | D56: Платифиллина гидротартрат раствор для п/к вв 2mg/ml 1ml №10 | E56: ПЛАТ | F56: Да | G56: уп | H56: 26 | I56: 69,75 | J56: 1813.5
A57: A03AA04 | B57: спазмолитическое средство | C57: Мебеверин | D57: Спарекс капс пролонг/д-я 200mg №30 | E57: ОМС | F57: Да | G57: уп | H57: 165 | I57: 514,84 | J57: 84948.6
A58: A03AA04 | B58: спазмолитическое средство | C58: Мебеверин | D58: Спарекс капс пролонг/д-я 200mg №30 | E58: ПЛАТ | F58: Да | G58: уп | H58: 45 | I58: 514,84 | J58: 23167.8
A59: A03AD01 | B59: спазмолитическое средство | C59: Папаверин | D59: Папаверина гидрохлорид раствор для инъекций 20mg/ml 2ml №10 | E59: Б.Опк | F59: Нет | G59: уп | H59: 2 | I59: 273,06 | J59: 546.12
A60: A03AD01 | B60: спазмолитическое средство | C60: Папаверин | D60: Папаверина гидрохлорид раствор для инъекций 20mg/ml 2ml №10 | E60: Бюджет | F60: Нет | G60: уп | H60: 30 | I60: 273,06 | J60: 8,191.80
A61: A03AD01 | B61: спазмолитическое средство | C61: Папаверин | D61: Папаверина гидрохлорид раствор для инъекций 20mg/ml 2ml №10 | E61: ОМС | F61: Нет | G61: уп | H61: 315 | I61: 273,06 | J61: 86013.9
A62: A03AD01 | B62: спазмолитическое средство | C62: Папаверин | D62: Папаверина гидрохлорид раствор для инъекций 20mg/ml 2ml №10 | E62: ПЛАТ | F62: Нет | G62: уп | H62: 10 | I62: 273,06 | J62: 2730.6
A63: A03AD02 | B63: спазмолитическое средство | C63: Дротаверин | D63: Дротаверин раствор для инъекций 20mg/ml 2ml №10 | E63: Бюджет | F63: Да | G63: уп | H63: 105 | I63: 59,01 | J63: 6,196.05
A64: A03AD02 | B64: спазмолитическое средство | C64: Дротаверин | D64: Дротаверин раствор для инъекций 20mg/ml 2ml №10 | E64: ОМС | F64: Да | G64: уп | H64: 3134 | I64: 59,01 | J64: 184937.34
A65: A03AD02 | B65: спазмолитическое средство | C65: Дротаверин | D65: Дротаверин раствор для инъекций 20mg/ml 2ml №10 | E65: ПЛАТ | F65: Да | G65: уп | H65: 58 | I65: 59,01 | J65: 3422.58
A66: A03AD02 | B66: спазмолитическое средство | C66: Дротаверин | D66: Дротаверин табл 40mg №100 | E66: Бюджет | F66: Да | G66: уп | H66: 2 | I66: 58,25 | J66: 116.50
A67: A03AD02 | B67: спазмолитическое средство | C67: Дротаверин | D67: Дротаверин табл 40mg №100 | E67: ОМС | F67: Да | G67: уп | H67: 430 | I67: 58,25 | J67: 25047.5
A68: A03AD02 | B68: спазмолитическое средство | C68: Дротаверин | D68: Дротаверин табл 40mg №100 | E68: ПЛАТ | F68: Да | G68: уп | H68: 23 | I68: 58,25 | J68: 1339.75
A69: A03AD02 | B69: спазмолитическое средство | C69: Дротаверин | D69: Дротаверин табл 40mg №20 | E69: ОМС | F69: Да | G69: уп | H69: 57 | I69: 30,12 | J69: 1716.84
A70: A03AD02 | B70: спазмолитическое средство | C70: Дротаверин | D70: Дротаверин табл 40mg №20 | E70: ПЛАТ | F70: Да | G70: уп | H70: 5 | I70: 30,12 | J70: 150.6
A71: A03BA01 | B71: м-холиноблокатор | C71: Атропин | D71: Атропин капли глазные 1% 5ml | E71: ОМС | F71: Да | G71: уп | H71: 63 | I71: 52,27 | J71: 3293.01
A72: A03BA01 | B72: м-холиноблокатор | C72: Атропин | D72: Атропин капли глазные 1% 5ml | E72: ПЛАТ | F72: Да | G72: уп | H72: 4 | I72: 52,27 | J72: 209.08
A73: A03BA01 | B73: м-холиноблокатор | C73: Атропин | D73: Атропин раствор для инъекций 1mg/ml 1ml №5 | E73: ОМС | F73: Да | G73: уп | H73: 897 | I73: 12,01 | J73: 10772.97
A74: A03BA01 | B74: м-холиноблокатор | C74: Атропин | D74: Атропин раствор для инъекций 1mg/ml 1ml №5 | E74: ПЛАТ | F74: Да | G74: уп | H74: 2 | I74: 12,01 | J74: 24.02
A75: A03BA01 | B75: м-холиноблокатор | C75: Атропин | D75: Атропина сульфат раствор для инъекций 1mg/ml 1ml №10 | E75: ОМС | F75: Да | G75: уп | H75: 1544 | I75: 28,39 | J75: 43834.16
A76: A03FA01 | B76: противорвотное средство - дофаминовых рецепторов блокатор центральный | C76: Метоклопрамид | D76: Метоклопрамид раствор для в/в и в/м вв 5mg/ml 2ml №10 | E76: Бюджет | F76: Да | G76: уп | H76: 49 | I76: 123,89 | J76: 6,070.61
A77: A03FA01 | B77: противорвотное средство - дофаминовых рецепторов блокатор центральный | C77: Метоклопрамид | D77: Метоклопрамид раствор для в/в и в/м вв 5mg/ml 2ml №10 | E77: ОМС | F77: Да | G77: уп | H77: 1543 | I77: 123,89 | J77: 191162.27
A78: A03FA01 | B78: противорвотное средство - дофаминовых рецепторов блокатор центральный | C78: Метоклопрамид | D78: Метоклопрамид раствор для в/в и в/м вв 5mg/ml 2ml №10 | E78: ПЛАТ | F78: Да | G78: уп | H78: 72 | I78: 123,89 | J78: 8920.08
A79: A03FA01 | B79: противорвотное средство - дофаминовых рецепторов блокатор центральный | C79: Метоклопрамид | D79: Метоклопрамид табл 10mg №50 | E79: ОМС | F79: Да | G79: уп | H79: 69 | I79: 26,79 | J79: 1848.51
A80: A03FA01 | B80: противорвотное средство - дофаминовых рецепторов блокатор центральный | C80: Метоклопрамид | D80: Метоклопрамид табл 10mg №50 | E80: ПЛАТ | F80: Да | G80: уп | H80: 3 | I80: 26,79 | J80: 80.37
A81: A04Противорвотные препараты | J81: 0.00
A82: А04АА01 | B82: противорвотное средство - серотониновых рецепторов антагонист | C82: Ондансетрон | D82: Латран раствор для в/в и в/м вв 2mg/ml 2ml №5 | E82: Бюджет | F82: Да | G82: уп | H82: 10 | I82: 456,12 | J82: 4,561.20
A83: А04АА01 | B83: противорвотное средство - серотониновых рецепторов антагонист | C83: Ондансетрон | D83: Латран раствор для в/в и в/м вв 2mg/ml 2ml №5 | E83: ОМС | F83: Да | G83: уп | H83: 90 | I83: 456,12 | J83: =H83*I83 -> 41050.8
A84: А04АА01 | B84: противорвотное средство - серотониновых рецепторов антагонист | C84: Ондансетрон | D84: Латран раствор для в/в и в/м вв 2mg/ml 2ml №5 | E84: ПЛАТ | F84: Да | G84: уп | H84: 21 | I84: 456,12 | J84: 9578.52
A85: A05Препараты для лечения заболеваний печени и желчевыводящих путей | J85: 0.00
A86: А05АА02 | B86: гепатопротекторное средство | C86: Урсодезоксихолевая кислота | D86: Урсодезоксихолевая кислота капсулы 250mg №50 | E86: ОМС | F86: Да | G86: уп | H86: 32 | I86: 571,14 | J86: 18276.48
A87: А05АА02 | B87: гепатопротекторное средство | C87: Урсодезоксихолевая кислота | D87: Урсодезоксихолевая кислота капсулы 250mg №50 | E87: ПЛАТ | F87: Да | G87: уп | H87: 8 | I87: 571,14 | J87: 4569.12
A88: A05BA | B88: гипоазотемическое средство | C88: Орнитин | D88: Гепа-Мерц гран д/р-ра перор 5g №30 | E88: Бюджет | F88: Нет | G88: уп | H88: 2 | I88: 2095,42 | J88: 4,190.84
A89: A05BA | B89: гипоазотемическое средство | C89: Орнитин | D89: Гепа-Мерц гран д/р-ра перор 5g №30 | E89: ОМС | F89: Нет | G89: уп | H89: 15 | I89: 2095,42 | J89: 31431.3
A90: A05BA | B90: гипоазотемическое средство | C90: Орнитин | D90: Гепа-Мерц гран д/р-ра перор 5g №30 | E90: ПЛАТ | F90: Нет | G90: уп | H90: 10 | I90: 2095,42 | J90: 20954.2
A91: A05BA | B91: метаболическое средство | C91: Инозин+Меглюмин+Метионин+Никотинамид+Янтарная кислота | D91: Ремаксол раствор для инфузий 400ml №1 | E91: Бюджет | F91: Да | G91: уп | H91: 90 | I91: 398,47 | J91: 35,862.30
A92: A05BA | B92: метаболическое средство | C92: Инозин+Меглюмин+Метионин+Никотинамид+Янтарная кислота | D92: Ремаксол раствор для инфузий 400ml №1 | E92: ОМС | F92: Да | G92: уп | H92: 160 | I92: 398,47 | J92: 63755.2
A93: A05BA | B93: метаболическое средство | C93: Инозин+Меглюмин+Метионин+Никотинамид+Янтарная кислота | D93: Ремаксол раствор для инфузий 400ml №1 | E93: ПЛАТ | F93: Да | G93: уп | H93: 100 | I93: 398,47 | J93: 39847
A94: A06AA01 | B94: слабительное средство | C94: Парафин жидкий | D94: Вазелиновое масло масло д/приема внутрь 25ml | E94: ОМС | F94: Нет | G94: уп | H94: 273 | I94: 36,63 | J94: 9999.99
A95: A06AA01 | B95: слабительное средство | C95: Парафин жидкий | D95: Вазелиновое масло масло д/приема внутрь 25ml | E95: ПЛАТ | F95: Нет | G95: уп | H95: 30 | I95: 36,63 | J95: 1098.9
A96: A06AB02 | B96: слабительное средство | C96: Бисакодил | D96: Бисакодил табл п/к/р/о 5mg №30 | E96: ОМС | F96: Да | G96: уп | H96: 135 | I96: 20,96 | J96: 2829.6
A97: A06AB02 | B97: слабительное средство | C97: Бисакодил | D97: Бисакодил табл п/к/р/о 5mg №30 | E97: ПЛАТ | F97: Да | G97: уп | H97: 2 | I97: 20,96 | J97: 41.92
A98: A06AB02 | B98: слабительное средство | C98: Бисакодил | D98: Бисакодил-Нижфарм супп рект 10mg №10 | E98: ОМС | F98: Да | G98: уп | H98: 65 | I98: 42,62 | J98: 2770.3
A99: A06AB02 | B99: слабительное средство | C99: Бисакодил | D99: Бисакодил-Нижфарм супп рект 10mg №10 | E99: ПЛАТ | F99: Да | G99: уп | H99: 8 | I99: 42,62 | J99: 340.96
A100: А06АВ06 | B100: слабительное средство растительного происхождения | C100: Сеннозиды А и В | D100: Сенадексин табл №20 | E100: ОМС | F100: Да | G100: уп | H100: 354 | I100: 15,84 | J100: 5607.36
A101: А06АВ06 | B101: слабительное средство растительного происхождения | C101: Сеннозиды А и В | D101: Сенадексин табл №20 | E101: ПЛАТ | F101: Да | G101: уп | H101: 3 | I101: 15,84 | J101: 47.52
A102: A06AD11 | B102: слабительное средство | C102: Лактулоза | D102: Нормазе сироп 667mg/ml 200ml | E102: ОМС | F102: Да | G102: уп | H102: 107 | I102: 278,3 | J102: 29778.1
A103: A06AD11 | B103: слабительное средство | C103: Лактулоза | D103: Порталак сироп 667mg/ml 500ml | E103: ОМС | F103: Да | G103: уп | H103: 7 | I103: 398,47 | J103: 2789.29
A104: A06AD11 | B104: слабительное средство | C104: Лактулоза | D104: Порталак сироп 667mg/ml 500ml | E104: ПЛАТ | F104: Да | G104: уп | H104: 11 | I104: 398,47 | J104: 4383.17
A105: A06AD15 | B105: слабительное средство | C105: Макрогол | D105: Фортранс порошок д/приг суспензии д/вн прим 64g №4 | E105: ПЛАТ | F105: Да | G105: уп | H105: 83 | I105: 517,38 | J105: 42942.54
A106: A06АВ05 | B106: слабительное средство растительного происхождения | C106: ~ | D106: Касторовое масло масло д/приема внутрь 30ml | E106: ОМС | F106: Нет | G106: уп | H106: 125 | I106: 36,63 | J106: 4578.75
A107: A07AA11 | B107: антибиотик-рифамицин | C107: Рифаксимин | D107: Альфа Нормикс табл п/п/о 200mg №12 | E107: ОМС | F107: Нет | G107: уп | H107: 70 | I107: 1069,34 | J107: 74853.8
A108: A07AA11 | B108: антибиотик-рифамицин | C108: Рифаксимин | D108: Альфа Нормикс табл п/п/о 200mg №12 | E108: ПЛАТ | F108: Нет | G108: уп | H108: 20 | I108: 1069,34 | J108: 21386.8
A109: A07AX03 | B109: противомикробное средство - нитрофуран | C109: Нифуроксазид | D109: Экофурил капсулы 200mg №16 | E109: ОМС | F109: Нет | G109: уп | H109: 20 | I109: 459,56 | J109: 9191.2
A110: A07AX03 | B110: противомикробное средство - нитрофуран | C110: Нифуроксазид | D110: Экофурил капсулы 200mg №16 | E110: ПЛАТ | F110: Нет | G110: уп | H110: 15 | I110: 459,56 | J110: 6893.4
A111: A07BA01 | B111: энтеросорбирующее средство | C111: Уголь активированный | D111: Уголь активированный табл 250mg №10 | E111: ОМС | F111: Нет | G111: уп | H111: 408 | I111: 4,33 | J111: 1766.64
A112: A07BA01 | B112: энтеросорбирующее средство | C112: Уголь активированный | D112: Уголь активированный табл 250mg №10 | E112: ПЛАТ | F112: Нет | G112: уп | H112: 20 | I112: 4,33 | J112: 86.6
A113: A07BC05 | B113: противодиарейное средство | C113: Диосмектит | D113: Неосмектин порошок д/приг суспензии д/вн прим 3g №30 | E113: ОМС | F113: Да | G113: уп | H113: 33 | I113: 341,55 | J113: 11271.15
A114: A07BC05 | B114: противодиарейное средство | C114: Диосмектит | D114: Неосмектин порошок д/приг суспензии д/вн прим 3g №30 | E114: ПЛАТ | F114: Да | G114: уп | H114: 20 | I114: 341,55 | J114: 6831
A115: A07DA03 | B115: противодиарейное средство | C115: Лоперамид | D115: Лоперамид табл 2mg №10 | E115: ОМС | F115: Да | G115: уп | H115: 35 | I115: 25,06 | J115: 877.1
A116: A07DA03 | B116: противодиарейное средство | C116: Лоперамид | D116: Лоперамид табл 2mg №20 | E116: ОМС | F116: Да | G116: уп | H116: 251 | I116: 27,21 | J116: 6829.71
A117: A07DA03 | B117: противодиарейное средство | C117: Лоперамид | D117: Лоперамид табл 2mg №20 | E117: ПЛАТ | F117: Да | G117: уп | H117: 14 | I117: 27,21 | J117: 380.94
A118: A07EC02 | B118: противомикробное и противовоспалительное кишечное средство | C118: Сульфасалазин | D118: Сульфасалазин-ЕН табл п/к/р/о 500mg №50 | E118: ОМС | F118: Да | G118: уп | H118: 20 | I118: 359,34 | J118: 7186.8
A119: A07EC02 | B119: противомикробное и противовоспалительное кишечное средство | C119: Сульфасалазин | D119: Сульфасалазин-ЕН табл п/к/р/о 500mg №50 | E119: ПЛАТ | F119: Да | G119: уп | H119: 3 | I119: 359,34 | J119: 1078.02
A120: A07FA | B120: средство, нормализующее микрофлору кишечника | C120: ~ | D120: Хилак Форте капл д/пр внутрь 100ml №1 | E120: ПЛАТ | F120: Нет | G120: уп | H120: 15 | I120: 565,48 | J120: 8482.2
A121: A07FA | B121: эубиотик | C121: Бифидобактерии бифидум | D121: Бифидумбактерин лиоф д/приг р-ра д/приема внутрь и мест прим 5dosis №10 | E121: ОМС | F121: Да | G121: уп | H121: 12 | I121: 86,51 | J121: 1038.12
A122: A07FA | B122: эубиотик | C122: Бифидобактерии лонгум+Энтерококкус фециум | D122: Бифиформ капс к/раст №30 | E122: ОМС | F122: Нет | G122: уп | H122: 42 | I122: 615,87 | J122: 25866.54
A123: A07FA | B123: эубиотик | C123: Бифидобактерии лонгум+Энтерококкус фециум | D123: Бифиформ капс к/раст №30 | E123: ПЛАТ | F123: Нет | G123: уп | H123: 49 | I123: 615,87 | J123: 30177.63
A124: A07FA02 | B124: противодиарейное средство | C124: Сахаромицеты Boulardii | D124: Энтерол капсулы 250mg №30 | E124: ОМС | F124: Нет | G124: уп | H124: 60 | I124: 570,54 | J124: 34232.4
A125: A07FA02 | B125: противодиарейное средство | C125: Сахаромицеты Boulardii | D125: Энтерол капсулы 250mg №30 | E125: ПЛАТ | F125: Нет | G125: уп | H125: 20 | I125: 570,54 | J125: 11410.8
A126: A07FA51 | B126: эубиотик | C126: ~ | D126: Линекс капс №16 | E126: ОМС | F126: Нет | G126: уп | H126: 10 | I126: 394,94 | J126: 3949.4
A127: A07FA51 | B127: эубиотик | C127: ~ | D127: Линекс капс №16 | E127: ПЛАТ | F127: Нет | G127: уп | H127: 2 | I127: 394,94 | J127: 789.88
A128: А09АА02 | B128: пищеварительное ферментное средство | C128: Панкреатин | D128: Креон 25000 капс к/раст 300mg №20 | E128: ОМС | F128: Да | G128: уп | H128: 55 | I128: 562,03 | J128: 30911.65
A129: А09АА02 | B129: пищеварительное ферментное средство | C129: Панкреатин | D129: Креон 25000 капс к/раст 300mg №20 | E129: ПЛАТ | F129: Да | G129: уп | H129: 45 | I129: 562,03 | J129: 25291.35
A130: А09АА02 | B130: пищеварительное ферментное средство | C130: Панкреатин | D130: Мезим форте 10000 табл п/к/р/о №20 | E130: ОМС | F130: Да | G130: уп | H130: 758 | I130: 180,66 | J130: 136940.28
A131: А09АА02 | B131: пищеварительное ферментное средство | C131: Панкреатин | D131: Мезим форте 10000 табл п/к/р/о №20 | E131: ПЛАТ | F131: Да | G131: уп | H131: 142 | I131: 180,66 | J131: 25653.72
A132: А09АА02 | B132: пищеварительное ферментное средство | C132: Панкреатин | D132: Микразим капсулы 25000 ЕД №50 | E132: ОМС | F132: Да | G132: уп | H132: 326 | I132: 792,55 | J132: 258371.3
A133: А09АА02 | B133: пищеварительное ферментное средство | C133: Панкреатин | D133: Микразим капсулы 25000 ЕД №50 | E133: ПЛАТ | F133: Да | G133: уп | H133: 54 | I133: 792,55 | J133: 42797.7
A134: А09АА02 | B134: пищеварительное ферментное средство | C134: Панкреатин | D134: Микразим капсулы 40000 EД №50 | E134: ОМС | F134: Да | G134: уп | H134: 4 | I134: 1516,61 | J134: 6066.44
A135: А09АА02 | B135: пищеварительное ферментное средство | C135: Панкреатин | D135: Микразим капсулы 40000 EД №50 | E135: ПЛАТ | F135: Да | G135: уп | H135: 4 | I135: 1516,61 | J135: 6066.44
A136: A10Препараты для лечения сахарного диабета | J136: 0.00
A137: A10AB01 | B137: гипогликемическое средство - инсулин короткого действия | C137: Инсулин растворимый [человеческий генно-инженерный] | D137: Инсуман Рапид ГТ раствор для инъекций 100МЕ/ml 3ml №5 | E137: Бюджет | F137: Да | G137: уп | H137: 5 | I137: 1120,14 | J137: 5,600.70
A138: A10AB01 | B138: гипогликемическое средство - инсулин короткого действия | C138: Инсулин растворимый [человеческий генно-инженерный] | D138: Инсуман Рапид ГТ раствор для инъекций 100МЕ/ml 3ml №5 | E138: ОМС | F138: Да | G138: уп | H138: 43 | I138: 1120,14 | J138: 48166.02
A139: A10AB01 | B139: гипогликемическое средство - инсулин короткого действия | C139: Инсулин растворимый [человеческий генно-инженерный] | D139: Инсуман Рапид ГТ раствор для инъекций 100МЕ/ml 3ml №5 | E139: ПЛАТ | F139: Да | G139: уп | H139: 3 | I139: 1120,14 | J139: 3360.42
A140: A10AB01 | B140: гипогликемическое средство - инсулин короткого действия | C140: Инсулин растворимый [человеческий генно-инженерный] | D140: Росинсулин Р раствор для инъекций 100МЕ/ml 3ml №5 | E140: Бюджет | F140: Да | G140: уп | H140: 5 | I140: 1516,57 | J140: 7,582.85
A141: A10AB01 | B141: гипогликемическое средство - инсулин короткого действия | C141: Инсулин растворимый [человеческий генно-инженерный] | D141: Росинсулин Р раствор для инъекций 100МЕ/ml 3ml №5 | E141: ОМС | F141: Да | G141: уп | H141: 47 | I141: 1516,57 | J141: 71278.79
A142: A10AB01 | B142: гипогликемическое средство - инсулин короткого действия | C142: Инсулин растворимый [человеческий генно-инженерный] | D142: Росинсулин Р раствор для инъекций 100МЕ/ml 5ml №5 | E142: Бюджет | F142: Да | G142: уп | H142: 14 | I142: 1085,06 | J142: 15,190.84
A143: A10AB01 | B143: гипогликемическое средство - инсулин короткого действия | C143: Инсулин растворимый [человеческий генно-инженерный] | D143: Росинсулин Р раствор для инъекций 100МЕ/ml 5ml №5 | E143: ОМС | F143: Да | G143: уп | H143: 116 | I143: 1085,06 | J143: 125866.96
A144: A10AB01 | B144: гипогликемическое средство - инсулин короткого действия | C144: Инсулин растворимый [человеческий генно-инженерный] | D144: Росинсулин Р раствор для инъекций 100МЕ/ml 5ml №5 | E144: ПЛАТ | F144: Да | G144: уп | H144: 2 | I144: 1085,06 | J144: 2170.12
A145: A10AB01 | B145: гипогликемическое средство - инсулин короткого действия | C145: Инсулин растворимый [человеческий генно-инженерный] | D145: Росинсулин Р раствор для п/к вв 100ME/ml 5ml №5 | E145: ОМС | F145: Да | G145: уп | H145: 47 | I145: 1043,32 | J145: 49036.04
A146: A10AC01 | B146: гипогликемическое средство - инсулин средней продолжительности действия | C146: Инсулин-изофан | D146: Росинсулин С суспензия для п/к вв 100ME/ml 5ml №5 | E146: Бюджет | F146: Да | G146: уп | H146: 8 | I146: 1046,36 | J146: 8,370.88
A147: A10AC01 | B147: гипогликемическое средство - инсулин средней продолжительности действия | C147: Инсулин-изофан | D147: Росинсулин С суспензия для п/к вв 100ME/ml 5ml №5 | E147: ОМС | F147: Да | G147: уп | H147: 134 | I147: 1046,36 | J147: =H147*I147 -> 140212.24
A148: A10AC01 | B148: гипогликемическое средство - инсулин средней продолжительности действия | C148: Инсулин-изофан | D148: Росинсулин С суспензия для п/к вв 100ME/ml 5ml №5 | E148: ПЛАТ | F148: Да | G148: уп | H148: 2 | I148: 1046,36 | J148: 2092.72
A149: A10AЕ04 | B149: гипогликемическое средство - инсулина длительного действия аналог | C149: Инсулин гларгин | D149: Туджео СолоСтар р-р для п/к введ, картриджи в шприц-ручках СолоСтар 300ME/ml 1,5ml №3 | E149: Бюджет | F149: Да | G149: уп | H149: 12 | I149: 3208,15 | J149: 38,497.80
A150: A10AЕ04 | B150: гипогликемическое средство - инсулина длительного действия аналог | C150: Инсулин гларгин | D150: Туджео СолоСтар р-р для п/к введ, картриджи в шприц-ручках СолоСтар 300ME/ml 1,5ml №3 | E150: ОМС | F150: Да | G150: уп | H150: 145 | I150: 3208,15 | J150: 465181.75
A151: A10AЕ04 | B151: гипогликемическое средство - инсулина длительного действия аналог | C151: Инсулин гларгин | D151: Туджео СолоСтар р-р для п/к введ, картриджи в шприц-ручках СолоСтар 300ME/ml 1,5ml №3 | E151: ПЛАТ | F151: Да | G151: уп | H151: 9 | I151: 3208,15 | J151: 28873.35
A152: A10BA02 | B152: гипогликемическое средство для перорального применения группы бигуанидов | C152: Метформин | D152: Форметин табл 0,5g №60 | E152: Бюджет | F152: Да | G152: уп | H152: 3 | I152: 93,43 | J152: 280.29
A153: A10BA02 | B153: гипогликемическое средство для перорального применения группы бигуанидов | C153: Метформин | D153: Форметин табл 0,5g №60 | E153: ОМС | F153: Да | G153: уп | H153: 93 | I153: 93,43 | J153: 8688.99
A154: A10BA02 | B154: гипогликемическое средство для перорального применения группы бигуанидов | C154: Метформин | D154: Форметин табл 0,5g №60 | E154: ПЛАТ | F154: Да | G154: уп | H154: 7 | I154: 93,43 | J154: 654.01
A155: A10BA02 | B155: гипогликемическое средство для перорального применения группы бигуанидов | C155: Метформин | D155: Форметин табл 0,85g №60 | E155: Бюджет | F155: Да | G155: уп | H155: 5 | I155: 180,33 | J155: 901.65
A156: A10BA02 | B156: гипогликемическое средство для перорального применения группы бигуанидов | C156: Метформин | D156: Форметин табл 0,85g №60 | E156: ОМС | F156: Да | G156: уп | H156: 252 | I156: 180,33 | J156: 45443.16
A157: A10BA02 | B157: гипогликемическое средство для перорального применения группы бигуанидов | C157: Метформин | D157: Форметин табл 0,85g №60 | E157: ПЛАТ | F157: Да | G157: уп | H157: 3 | I157: 180,33 | J157: 540.99
A158: A10BA02 | B158: гипогликемическое средство для перорального применения группы бигуанидов | C158: Метформин | D158: Форметин табл 1g №30 | E158: Бюджет | F158: Да | G158: уп | H158: 5 | I158: 153,01 | J158: 765.05
A159: A10BA02 | B159: гипогликемическое средство для перорального применения группы бигуанидов | C159: Метформин | D159: Форметин табл 1g №30 | E159: ОМС | F159: Да | G159: уп | H159: 115 | I159: 153,01 | J159: 17596.15
A160: A10BA02 | B160: гипогликемическое средство для перорального применения группы бигуанидов | C160: Метформин | D160: Форметин табл 1g №30 | E160: ПЛАТ | F160: Да | G160: уп | H160: 3 | I160: 153,01 | J160: 459.03
A161: A10BB01 | B161: гипогликемическое средство для перорального применения группы сульфонилмочевины II поколения | C161: Глибенкламид | D161: Глибенкламид табл 5mg №120 | E161: ОМС | F161: Да | G161: уп | H161: 15 | I161: 97,94 | J161: 1469.1
A162: A10BB01 | B162: гипогликемическое средство для перорального применения группы сульфонилмочевины II поколения | C162: Глибенкламид | D162: Глибенкламид табл 5mg №120 | E162: ПЛАТ | F162: Да | G162: уп | H162: 1 | I162: 97,94 | J162: 97.94
A163: A10BB09 | B163: гипогликемическое средство для перорального применения группы сульфонилмочевины II поколения | C163: Гликлазид | D163: Гликлазид МВ табл с модифиц. высвобождением 30 mg №60 | E163: ПЛАТ | F163: Да | G163: уп | H163: 3 | I163: 138,13 | J163: 414.39
A164: A10BB09 | B164: гипогликемическое средство для перорального применения группы сульфонилмочевины II поколения | C164: Гликлазид | D164: Гликлазид МВ табл с модифиц. высвобождением 60mg №60 | E164: ОМС | F164: Да | G164: уп | H164: 15 | I164: 138,13 | J164: 2071.95
A165: A11Витамины | J165: 0.00
A166: A11CC03 | B166: витамин - кальциево-фосфорного обмена регулятор | C166: Альфакальцидол | D166: Альфа Д3-Тева капсулы 0,25mkg №30 | E166: ПЛАТ | F166: Да | G166: уп | H166: 2 | I166: 299,85 | J166: 599.7
A167: A11DA01 | B167: витамин | C167: Тиамин | D167: Тиамин раствор для в/м вв 50mg/ml 1ml №10 | E167: Бюджет | F167: Да | G167: уп | H167: 7 | I167: 27,49 | J167: 192.43
A168: A11DA01 | B168: витамин | C168: Тиамин | D168: Тиамин раствор для в/м вв 50mg/ml 1ml №10 | E168: ОМС | F168: Да | G168: уп | H168: 813 | I168: 27,49 | J168: 22349.37
A169: A11DA01 | B169: витамин | C169: Тиамин | D169: Тиамин раствор для в/м вв 50mg/ml 1ml №10 | E169: ПЛАТ | F169: Да | G169: уп | H169: 18 | I169: 27,49 | J169: 494.82
A170: A11EA | B170: витамины группы B | C170: Поливитамины | D170: Нейромультивит табл п/п/о №20 | E170: ПЛАТ | F170: Нет | G170: уп | H170: 3 | I170: 796,09 | J170: 2388.27
A171: A11GA01 | B171: витамин | C171: Аскорбиновая кислота | D171: Аскорбиновая кислота раствор для в/в и в/м вв 50mg/ml 2ml №10 | E171: Бюджет | F171: Да | G171: уп | H171: 25 | I171: 37,69 | J171: 942.25
A172: A11GA01 | B172: витамин | C172: Аскорбиновая кислота | D172: Аскорбиновая кислота раствор для в/в и в/м вв 50mg/ml 2ml №10 | E172: ОМС | F172: Да | G172: уп | H172: 920 | I172: 37,69 | J172: 34674.8
A173: A11GA01 | B173: витамин | C173: Аскорбиновая кислота | D173: Аскорбиновая кислота раствор для в/в и в/м вв 50mg/ml 2ml №10 | E173: ПЛАТ | F173: Да | G173: уп | H173: 170 | I173: 37,69 | J173: 6407.3
A174: A11HA02 | B174: витамин | C174: Пиридоксин | D174: Пиридоксин раствор для инъекций 50mg/ml 1ml №10 | E174: Бюджет | F174: Да | G174: уп | H174: 9 | I174: 27,44 | J174: 246.96
A175: A11HA02 | B175: витамин | C175: Пиридоксин | D175: Пиридоксин раствор для инъекций 50mg/ml 1ml №10 | E175: ОМС | F175: Да | G175: уп | H175: 779 | I175: 27,44 | J175: 21375.76
A176: A11HA02 | B176: витамин | C176: Пиридоксин | D176: Пиридоксин раствор для инъекций 50mg/ml 1ml №10 | E176: ПЛАТ | F176: Да | G176: уп | H176: 18 | I176: 27,44 | J176: 493.92
A177: А11НА03 | B177: витамин | C177: Витамин Е | D177: Лайфевит капсулы 100mg №30 | E177: ОМС | F177: Нет | G177: уп | H177: 20 | I177: 188,7 | J177: 3774
A178: А11НА03 | B178: витамин | C178: Витамин Е | D178: альфа-Токоферола ацетат (Витамин E) капсулы 100mg №10 | E178: ОМС | F178: Нет | G178: уп | H178: 50 | I178: 85,35 | J178: 4267.5
A179: A11HA04 | B179: витамин | C179: Рибофлавин | D179: Рибофлавин - мононуклеотид раствор для в/м вв 10mg/ml 1ml №10 | E179: ОМС | F179: Нет | G179: уп | H179: 60 | I179: 115,43 | J179: 6925.8
A180: A11HA04 | B180: витамин | C180: Рибофлавин | D180: Рибофлавин - мононуклеотид раствор для в/м вв 10mg/ml 1ml №10 | E180: ПЛАТ | F180: Нет | G180: уп | H180: 2 | I180: 115,43 | J180: 230.86
A181: A11JA | B181: поливитаминное средство | C181: Витамин Е+ Ретинол | D181: Аевит капсулы №10 | E181: ПЛАТ | F181: Нет | G181: уп | H181: 20 | I181: 39,18 | J181: 783.6
A182: A12Минеральные добавки | J182: 0.00
A183: A12AA03 | B183: кальциево-фосфорного обмена регулятор | C183: Кальция глюконат | D183: Кальция глюконат Б.Браун раствор для инъекций 10% 10ml №20 | E183: ОМС | F183: Да | G183: уп | H183: 143 | I183: 379,5 | J183: 54268.5
A184: A12AA03 | B184: кальциево-фосфорного обмена регулятор | C184: Кальция глюконат | D184: Кальция глюконат Б.Браун раствор для инъекций 10% 10ml №20 | E184: ПЛАТ | F184: Да | G184: уп | H184: 3 | I184: 379,5 | J184: 1138.5
A185: A12AX | B185: кальциево-фосфорного обмена регулятор | C185: Кальция карбонат + Колекальциферол | D185: Кальций-Д3 Никомед Форте табл жеват 500mg+400ME №30 | E185: ОМС | F185: Нет | G185: уп | H185: 4 | I185: 578,2 | J185: 2312.8
A186: A12AX | B186: кальциево-фосфорного обмена регулятор | C186: Кальция карбонат + Колекальциферол | D186: Кальций-Д3 Никомед Форте табл жеват 500mg+400ME №30 | E186: ПЛАТ | F186: Нет | G186: уп | H186: 2 | I186: 578,2 | J186: 1156.4
A187: A12BA01 | B187: калия препарат | C187: Калия хлорид | D187: Калия хлорид Б. Браун конц-т д/приг раствора для инфузий 40mg/ml 10ml №20 | E187: Бюджет | F187: Да | G187: уп | H187: 28 | I187: 245,41 | J187: 6,871.48
A188: A12BA01 | B188: калия препарат | C188: Калия хлорид | D188: Калия хлорид Б. Браун конц-т д/приг раствора для инфузий 40mg/ml 10ml №20 | E188: ОМС | F188: Да | G188: уп | H188: 877 | I188: 245,41 | J188: 215224.57
A189: A12BA01 | B189: калия препарат | C189: Калия хлорид | D189: Калия хлорид Б. Браун конц-т д/приг раствора для инфузий 40mg/ml 10ml №20 | E189: ПЛАТ | F189: Да | G189: уп | H189: 115 | I189: 245,41 | J189: 28222.15
A190: A12BA01 | B190: калия препарат | C190: Калия хлорид | D190: Калия хлорид конц-т д/приг раствора для инфузий 40mg/ml 100ml №1 | E190: ОМС | F190: Да | G190: уп | H190: 1780 | I190: 63,59 | J190: 113190.2
A191: A12BA01 | B191: калия препарат | C191: Калия хлорид | D191: Калия хлорид конц-т д/приг раствора для инфузий 40mg/ml 100ml №1 | E191: ПЛАТ | F191: Да | G191: уп | H191: 35 | I191: 63,59 | J191: 2225.65
A192: A12BA01 | B192: калия препарат | C192: Калия хлорид | D192: Калия хлорид конц-т д/приг раствора для инфузий 40mg/ml 100ml №35 | E192: Бюджет | F192: Да | G192: уп | H192: 5 | I192: 2894,38 | J192: 14,471.90
A193: A12BA01 | B193: калия препарат | C193: Калия хлорид | D193: Калия хлорид конц-т д/приг раствора для инфузий 40mg/ml 100ml №35 | E193: ОМС | F193: Да | G193: уп | H193: 72 | I193: 2894,38 | J193: 208395.36
A194: A12BA01 | B194: калия препарат | C194: Калия хлорид | D194: Калия хлорид конц-т д/приг раствора для инфузий 40mg/ml 100ml №35 | E194: ПЛАТ | F194: Да | G194: уп | H194: 9 | I194: 2894,38 | J194: 26049.42
A195: A12BA01 | B195: калия препарат | C195: Калия хлорид | D195: Калия хлорид концентрат для приготовления р-ра для инфузий 75mg/ml 200ml №28 | E195: ОМС | F195: Да | G195: уп | H195: 194 | I195: 2868,16 | J195: 556423.04
A196: A12CX | B196: калия и магния препарат | C196: Калия и магния аспарагинат | D196: Аспаркам табл №20 | E196: ОМС | F196: Да | G196: уп | H196: 250 | I196: 41,14 | J196: 10285
A197: A12CX | B197: калия и магния препарат | C197: Калия и магния аспарагинат | D197: Аспаркам табл №60 | E197: Бюджет | F197: Да | G197: уп | H197: 100 | I197: 103,73 | J197: 10,373.00
A198: A12CX | B198: калия и магния препарат | C198: Калия и магния аспарагинат | D198: Аспаркам табл №60 | E198: ОМС | F198: Да | G198: уп | H198: 710 | I198: 103,73 | J198: 73648.3
A199: A12CX | B199: калия и магния препарат | C199: Калия и магния аспарагинат | D199: Аспаркам табл №60 | E199: ПЛАТ | F199: Да | G199: уп | H199: 9 | I199: 103,73 | J199: 933.57
A200: A12CX | B200: калия и магния препарат | C200: Калия и магния аспарагинат | D200: Аспаркам- L раствор для в/в вв 10ml №10 | E200: ОМС | F200: Да | G200: уп | H200: 51 | I200: 94,48 | J200: 4818.48
A201: A12CX | B201: калия и магния препарат | C201: Калия и магния аспарагинат | D201: Аспаркам- L раствор для в/в вв 10ml №10 | E201: ПЛАТ | F201: Да | G201: уп | H201: 30 | I201: 94,48 | J201: 2834.4
A202: A12CX | B202: калия и магния препарат | C202: Калия и магния аспарагинат | D202: Калия и магния аспарагинат конц-т д/приг раствора для инфузий 10ml №10 | E202: ОМС | F202: Да | G202: уп | H202: 30 | I202: 227,7 | J202: 6831
A203: A12CX | B203: калия и магния препарат | C203: Калия и магния аспарагинат | D203: Калия и магния аспарагинат раствор для инфузий 250ml №1 | E203: Бюджет | F203: Да | G203: уп | H203: 350 | I203: 79,59 | J203: 27,856.50
A204: A12CX | B204: калия и магния препарат | C204: Калия и магния аспарагинат | D204: Калия и магния аспарагинат раствор для инфузий 250ml №1 | E204: ОМС | F204: Да | G204: уп | H204: 3410 | I204: 79,59 | J204: 271401.9
... 1322 more rows

Sheet Бюдж.ОПК
H1: "Утверждаю"
H2: Главный врач СПб ГБУЗ ГМПБ №2
H3: Волчков В.А.
H5: ______________________________
H6: "30 мая 2019 года
A10: ФОРМУЛЯРНЫЙ ПЕРЕЧЕНЬ ЛЕКАРСТВЕННЫХ ПРЕПАРАТОВ НА 2020 ГОД
D11: БЮДЖЕТ опк
A12: АТХ | B12: Группа | C12: МНН | D12: Название | E12: ИФ | F12: ЖНиВЛП | G12: Ед.изм | H12: Кол-во | I12: Цена | J12: Сумма
A13: A Пищеварительный тракт и обмен веществ
A14: A01AB11 | B14: противомикробное средство | C14: Метронидазол + Хлоргексидин | D14: Метрогил Дента гель стоматологический 20g №1 | E14: ПЛАТ | F14: Нет | G14: уп | H14: 20 | I14: 281,59 | J14: 5631,8
A15: A01AD11 | B15: НПВП | C15: Холина салицилат + Цеталкония хлорид | D15: Холисал гель стоматологический 10g | E15: ПЛАТ | F15: Нет | G15: уп | H15: 25 | I15: 417,43 | J15: 10435,75
A16: A01AВ11 | B16: противовоспалительное средство растительного происхождения | C16: ~ | D16: Стоматофит экстракт для местного применения, [жидкий] 100ml | E16: ПЛАТ | F16: Нет | G16: уп | H16: 20 | I16: 319,28 | J16: 6385,6
A17: A02BA03 | B17: желез желудка секрецию понижающее средство - H2-гистаминовых рецепторов блокатор | C17: Фамотидин | D17: Фамотидин лиоф д/пр р-ра д/в/в вв 20mg+5ml №5 | E17: Бюджет | F17: Да | G17: уп | H17: 271 | I17: 310,43 | J17: 84126,53
A18: A02BA03 | B18: желез желудка секрецию понижающее средство - H2-гистаминовых рецепторов блокатор | C18: Фамотидин | D18: Фамотидин лиоф д/пр р-ра д/в/в вв 20mg+5ml №5 | E18: ОМС | F18: Да | G18: уп | H18: 2453 | I18: 310,43 | J18: 761484,79
A19: A02BA03 | B19: желез желудка секрецию понижающее средство - H2-гистаминовых рецепторов блокатор | C19: Фамотидин | D19: Фамотидин лиоф д/пр р-ра д/в/в вв 20mg+5ml №5 | E19: ПЛАТ | F19: Да | G19: уп | H19: 128 | I19: 310,43 | J19: 39735,04
A20: A02BA03 | B20: желез желудка секрецию понижающее средство - H2-гистаминовых рецепторов блокатор | C20: Фамотидин | D20: Фамотидин табл п/п/о 20mg №20 | E20: Бюджет | F20: Да | G20: уп | H20: 20 | I20: 23,33 | J20: 466,6
A21: A02BA03 | B21: желез желудка секрецию понижающее средство - H2-гистаминовых рецепторов блокатор | C21: Фамотидин | D21: Фамотидин табл п/п/о 20mg №20 | E21: ОМС | F21: Да | G21: уп | H21: 395 | I21: 23,33 | J21: 9215,35
A22: A02BA03 | B22: желез желудка секрецию понижающее средство - H2-гистаминовых рецепторов блокатор | C22: Фамотидин | D22: Фамотидин табл п/п/о 20mg №20 | E22: ПЛАТ | F22: Да | G22: уп | H22: 8 | I22: 23,33 | J22: 186,64
A23: A02BA03 | B23: желез желудка секрецию понижающее средство - H2-гистаминовых рецепторов блокатор | C23: Фамотидин | D23: Фамотидин табл п/п/о 20mg №30 | E23: Бюджет | F23: Да | G23: уп | H23: 100 | I23: 34,43 | J23: 3443
A24: A02BA03 | B24: желез желудка секрецию понижающее средство - H2-гистаминовых рецепторов блокатор | C24: Фамотидин | D24: Фамотидин табл п/п/о 20mg №30 | E24: ОМС | F24: Да | G24: уп | H24: 2218 | I24: 34,43 | J24: 76365,74
A25: A02BA03 | B25: желез желудка секрецию понижающее средство - H2-гистаминовых рецепторов блокатор | C25: Фамотидин | D25: Фамотидин табл п/п/о 20mg №30 | E25: ПЛАТ | F25: Да | G25: уп | H25: 25 | I25: 34,43 | J25: 860,75
A26: A02BC01 | B26: желез желудка секрецию понижающее средство - протонного насоса ингибитор | C26: Омепразол | D26: Омез лиоф-т д/пригот р-ра д/инф 40mg №1 | E26: Бюджет | F26: Да | G26: уп | H26: 50 | I26: 150,3 | J26: 7515
A27: A02BC01 | B27: желез желудка секрецию понижающее средство - протонного насоса ингибитор | C27: Омепразол | D27: Омез лиоф-т д/пригот р-ра д/инф 40mg №1 | E27: ОМС | F27: Да | G27: уп | H27: 1225 | I27: 150,3 | J27: 184117,5
A28: A02BC01 | B28: желез желудка секрецию понижающее средство - протонного насоса ингибитор | C28: Омепразол | D28: Омез лиоф-т д/пригот р-ра д/инф 40mg №1 | E28: ПЛАТ | F28: Да | G28: уп | H28: 108 | I28: 150,3 | J28: 16232,4
A29: A02BC01 | B29: желез желудка секрецию понижающее средство - протонного насоса ингибитор | C29: Омепразол | D29: Омепразол капс к/раст 20mg №30 | E29: Бюджет | F29: Да | G29: уп | H29: 115 | I29: 32,94 | J29: 3788,1
A30: A02BC01 | B30: желез желудка секрецию понижающее средство - протонного насоса ингибитор | C30: Омепразол | D30: Омепразол капс к/раст 20mg №30 | E30: ОМС | F30: Да | G30: уп | H30: 4968 | I30: 32,94 | J30: 163645,92
A31: A02BC01 | B31: желез желудка секрецию понижающее средство - протонного насоса ингибитор | C31: Омепразол | D31: Омепразол капс к/раст 20mg №30 | E31: ПЛАТ | F31: Да | G31: уп | H31: 210 | I31: 32,94 | J31: 6917,4
A32: A02BC01 | B32: желез желудка секрецию понижающее средство - протонного насоса ингибитор | C32: Омепразол | D32: Омепразол лиоф-т д/пригот р-ра д/инф 40mg №1 | E32: ОМС | F32: Да | G32: уп | H32: 101 | I32: 272,26 | J32: 27498,26
A33: A02BC01 | B33: желез желудка секрецию понижающее средство - протонного насоса ингибитор | C33: Омепразол | D33: Ультоп капсулы 40mg №28 | E33: ОМС | F33: Да | G33: уп | H33: 19 | I33: 525,44 | J33: 9983,36
A34: A02BC01 | B34: желез желудка секрецию понижающее средство - протонного насоса ингибитор | C34: Омепразол | D34: Ультоп капсулы 40mg №28 | E34: ПЛАТ | F34: Да | G34: уп | H34: 21 | I34: 525,44 | J34: 11034,24
A35: А02BC02 | B35: желез желудка секрецию понижающее средство - протонного насоса ингибитор | C35: Пантопразол | D35: Нольпаза лиоф д/пр р-ра д/в/в вв 40mg №1 | E35: ОМС | F35: Нет | G35: уп | H35: 50 | I35: 301,45 | J35: 15072,5
A36: А02BC02 | B36: желез желудка секрецию понижающее средство - протонного насоса ингибитор | C36: Пантопразол | D36: Нольпаза лиоф д/пр р-ра д/в/в вв 40mg №1 | E36: ПЛАТ | F36: Нет | G36: уп | H36: 61 | I36: 301,45 | J36: 18388,45
A37: А02BC02 | B37: желез желудка секрецию понижающее средство - протонного насоса ингибитор | C37: Пантопразол | D37: Нольпаза табл п/к/р/о 40mg №14 | E37: ОМС | F37: Нет | G37: уп | H37: 298 | I37: 184,04 | J37: 54843,92
A38: А02BC02 | B38: желез желудка секрецию понижающее средство - протонного насоса ингибитор | C38: Пантопразол | D38: Нольпаза табл п/к/р/о 40mg №14 | E38: ПЛАТ | F38: Нет | G38: уп | H38: 20 | I38: 184,04 | J38: 3680,8
A39: A02BC04 | B39: желез желудка секрецию понижающее средство - протонного насоса ингибитор | C39: Рабепразол | D39: Зульбекс табл к/р п/п/о 20mg №28 | E39: ОМС | F39: Нет | G39: уп | H39: 20 | I39: 1680 | J39: 33600
A40: A02BC04 | B40: желез желудка секрецию понижающее средство - протонного насоса ингибитор | C40: Рабепразол | D40: Зульбекс табл к/р п/п/о 20mg №28 | E40: ПЛАТ | F40: Нет | G40: уп | H40: 8 | I40: 1680 | J40: 13440
A41: A02BC04 | B41: желез желудка секрецию понижающее средство - протонного насоса ингибитор | C41: Рабепразол | D41: Рабепразол-СЗ капсулы 20mg №28 | E41: ОМС | F41: Нет | G41: уп | H41: 20 | I41: 427,53 | J41: 8550,6
A42: A02BC05 | B42: желез желудка секрецию понижающее средство - протонного насоса ингибитор | C42: Эзомепразол | D42: Эманера капс к/раст 20mg №14 | E42: ОМС | F42: Да | G42: уп | H42: 55 | I42: 242,17 | J42: 13319,35
A43: A02BC05 | B43: желез желудка секрецию понижающее средство - протонного насоса ингибитор | C43: Эзомепразол | D43: Эманера капс к/раст 20mg №14 | E43: ПЛАТ | F43: Да | G43: уп | H43: 25 | I43: 242,17 | J43: 6054,25
A44: A02BC05 | B44: желез желудка секрецию понижающее средство - протонного насоса ингибитор | C44: Эзомепразол | D44: Эманера капс к/раст 40mg №28 | E44: ОМС | F44: Да | G44: уп | H44: 29 | I44: 727,99 | J44: 21111,71
A45: A02BC05 | B45: желез желудка секрецию понижающее средство - протонного насоса ингибитор | C45: Эзомепразол | D45: Эманера капс к/раст 40mg №28 | E45: ПЛАТ | F45: Да | G45: уп | H45: 15 | I45: 727,99 | J45: 10919,85
A46: A02BX | B46: рефлюкс-эзофагита средство лечения | C46: ~ | D46: Гевискон Форте суспензия д/ приема внутрь (в компл.мерн.лож) 150ml №1 | E46: ОМС | F46: Нет | G46: уп | H46: 10 | I46: 346,8 | J46: 3468
A47: A02BX | B47: рефлюкс-эзофагита средство лечения | C47: ~ | D47: Гевискон Форте суспензия д/ приема внутрь (в компл.мерн.лож) 150ml №1 | E47: ПЛАТ | F47: Нет | G47: уп | H47: 5 | I47: 346,8 | J47: 1734
A48: A02BX05 | B48: антисептическое кишечное и вяжущее средство | C48: Висмута трикалия дицитрат | D48: Висмута трикалия дицитрат табл п/п/о 120mg № 56 | E48: ОМС | F48: Да | G48: уп | H48: 73 | I48: 440,62 | J48: 32165,26
A49: A02BX05 | B49: антисептическое кишечное и вяжущее средство | C49: Висмута трикалия дицитрат | D49: Висмута трикалия дицитрат табл п/п/о 120mg № 56 | E49: ПЛАТ | F49: Да | G49: уп | H49: 15 | I49: 440,62 | J49: 6609,3
A50: A02BX05 | B50: антисептическое кишечное и вяжущее средство | C50: Висмута трикалия дицитрат | D50: Улькавис табл п/п/о 120mg № 56 | E50: ПЛАТ | F50: Да | G50: уп | H50: 5 | I50: 413,7 | J50: 2068,5
A51: A02АХ | B51: антацидное средство | C51: Алгелдрат+Магния гидроксид | D51: Алмагель суспензия д/ приема внутрь (в компл.мерн.лож) 170ml | E51: ОМС | F51: Нет | G51: уп | H51: 53 | I51: 266,66 | J51: 14132,98
A52: A02АХ | B52: антацидное средство | C52: Алгелдрат+Магния гидроксид | D52: Алмагель суспензия д/ приема внутрь (в компл.мерн.лож) 170ml | E52: ПЛАТ | F52: Нет | G52: уп | H52: 2 | I52: 266,66 | J52: 533,32
A53: A03Препараты для лечения функциональных нарушений со стороны ЖКТ
A54: A03AA | B54: м-холиноблокатор | C54: Платифиллин | D54: Платифиллина гидротартрат раствор для п/к вв 2mg/ml 1ml №10 | E54: ОМС | F54: Да | G54: уп | H54: 241 | I54: 69,75 | J54: 16809,75
A55: A03AA | B55: м-холиноблокатор | C55: Платифиллин | D55: Платифиллина гидротартрат раствор для п/к вв 2mg/ml 1ml №10 | E55: ПЛАТ | F55: Да | G55: уп | H55: 26 | I55: 69,75 | J55: 1813,5
A56: A03AA04 | B56: спазмолитическое средство | C56: Мебеверин | D56: Спарекс капс пролонг/д-я 200mg №30 | E56: ОМС | F56: Да | G56: уп | H56: 165 | I56: 514,84 | J56: 84948,6
A57: A03AA04 | B57: спазмолитическое средство | C57: Мебеверин | D57: Спарекс капс пролонг/д-я 200mg №30 | E57: ПЛАТ | F57: Да | G57: уп | H57: 45 | I57: 514,84 | J57: 23167,8
A58: A03AD01 | B58: спазмолитическое средство | C58: Папаверин | D58: Папаверина гидрохлорид раствор для инъекций 20mg/ml 2ml №10 | E58: Б.Опк | F58: Нет | G58: уп | H58: 2 | I58: 273,06 | J58: =H58*I58 -> 546.12
A59: A03AD01 | B59: спазмолитическое средство | C59: Папаверин | D59: Папаверина гидрохлорид раствор для инъекций 20mg/ml 2ml №10 | E59: Бюджет | F59: Нет | G59: уп | H59: 30 | I59: 273,06 | J59: 8191,8
A60: A03AD01 | B60: спазмолитическое средство | C60: Папаверин | D60: Папаверина гидрохлорид раствор для инъекций 20mg/ml 2ml №10 | E60: ОМС | F60: Нет | G60: уп | H60: 315 | I60: 273,06 | J60: 86013,9
A61: A03AD01 | B61: спазмолитическое средство | C61: Папаверин | D61: Папаверина гидрохлорид раствор для инъекций 20mg/ml 2ml №10 | E61: ПЛАТ | F61: Нет | G61: уп | H61: 10 | I61: 273,06 | J61: 2730,6
A62: A03AD02 | B62: спазмолитическое средство | C62: Дротаверин | D62: Дротаверин раствор для инъекций 20mg/ml 2ml №10 | E62: Бюджет | F62: Да | G62: уп | H62: 105 | I62: 59,01 | J62: 6196,05
A63: A03AD02 | B63: спазмолитическое средство | C63: Дротаверин | D63: Дротаверин раствор для инъекций 20mg/ml 2ml №10 | E63: ОМС | F63: Да | G63: уп | H63: 3134 | I63: 59,01 | J63: 184937,34
A64: A03AD02 | B64: спазмолитическое средство | C64: Дротаверин | D64: Дротаверин раствор для инъекций 20mg/ml 2ml №10 | E64: ПЛАТ | F64: Да | G64: уп | H64: 58 | I64: 59,01 | J64: 3422,58
A65: A03AD02 | B65: спазмолитическое средство | C65: Дротаверин | D65: Дротаверин табл 40mg №100 | E65: Бюджет | F65: Да | G65: уп | H65: 2 | I65: 58,25 | J65: 116,5
A66: A03AD02 | B66: спазмолитическое средство | C66: Дротаверин | D66: Дротаверин табл 40mg №100 | E66: ОМС | F66: Да | G66: уп | H66: 430 | I66: 58,25 | J66: 25047,5
A67: A03AD02 | B67: спазмолитическое средство | C67: Дротаверин | D67: Дротаверин табл 40mg №100 | E67: ПЛАТ | F67: Да | G67: уп | H67: 23 | I67: 58,25 | J67: 1339,75
A68: A03AD02 | B68: спазмолитическое средство | C68: Дротаверин | D68: Дротаверин табл 40mg №20 | E68: ОМС | F68: Да | G68: уп | H68: 57 | I68: 30,12 | J68: 1716,84
A69: A03AD02 | B69: спазмолитическое средство | C69: Дротаверин | D69: Дротаверин табл 40mg №20 | E69: ПЛАТ | F69: Да | G69: уп | H69: 5 | I69: 30,12 | J69: 150,6
A70: A03BA01 | B70: м-холиноблокатор | C70: Атропин | D70: Атропин капли глазные 1% 5ml | E70: ОМС | F70: Да | G70: уп | H70: 63 | I70: 52,27 | J70: 3241,41
A71: A03BA01 | B71: м-холиноблокатор | C71: Атропин | D71: Атропин капли глазные 1% 5ml | E71: ПЛАТ | F71: Да | G71: уп | H71: 4 | I71: 52,27 | J71: 209,08
A72: A03BA01 | B72: м-холиноблокатор | C72: Атропин | D72: Атропин раствор для инъекций 1mg/ml 1ml №5 | E72: ОМС | F72: Да | G72: уп | H72: 897 | I72: 12,01 | J72: 10772,97
A73: A03BA01 | B73: м-холиноблокатор | C73: Атропин | D73: Атропин раствор для инъекций 1mg/ml 1ml №5 | E73: ПЛАТ | F73: Да | G73: уп | H73: 2 | I73: 12,01 | J73: 24,02
A74: A03BA01 | B74: м-холиноблокатор | C74: Атропин | D74: Атропина сульфат раствор для инъекций 1mg/ml 1ml №10 | E74: ОМС | F74: Да | G74: уп | H74: 1544 | I74: 28,39 | J74: 43834,16
A75: A03FA01 | B75: противорвотное средство - дофаминовых рецепторов блокатор центральный | C75: Метоклопрамид | D75: Метоклопрамид раствор для в/в и в/м вв 5mg/ml 2ml №10 | E75: Бюджет | F75: Да | G75: уп | H75: 49 | I75: 123,89 | J75: 6070,61
A76: A03FA01 | B76: противорвотное средство - дофаминовых рецепторов блокатор центральный | C76: Метоклопрамид | D76: Метоклопрамид раствор для в/в и в/м вв 5mg/ml 2ml №10 | E76: ОМС | F76: Да | G76: уп | H76: 1543 | I76: 123,89 | J76: 191162,27
A77: A03FA01 | B77: противорвотное средство - дофаминовых рецепторов блокатор центральный | C77: Метоклопрамид | D77: Метоклопрамид раствор для в/в и в/м вв 5mg/ml 2ml №10 | E77: ПЛАТ | F77: Да | G77: уп | H77: 72 | I77: 123,89 | J77: 8920,08
A78: A03FA01 | B78: противорвотное средство - дофаминовых рецепторов блокатор центральный | C78: Метоклопрамид | D78: Метоклопрамид табл 10mg №50 | E78: ОМС | F78: Да | G78: уп | H78: 69 | I78: 26,79 | J78: 1848,51
A79: A03FA01 | B79: противорвотное средство - дофаминовых рецепторов блокатор центральный | C79: Метоклопрамид | D79: Метоклопрамид табл 10mg №50 | E79: ПЛАТ | F79: Да | G79: уп | H79: 3 | I79: 26,79 | J79: 80,37
A80: А04АА01 | B80: противорвотное средство - серотониновых рецепторов антагонист | C80: Ондансетрон | D80: Латран раствор для в/в и в/м вв 2mg/ml 2ml №5 | E80: Бюджет | F80: Да | G80: уп | H80: 10 | I80: 456,12 | J80: 4561,2
A81: А04АА01 | B81: противорвотное средство - серотониновых рецепторов антагонист | C81: Ондансетрон | D81: Латран раствор для в/в и в/м вв 2mg/ml 2ml №5 | E81: ОМС | F81: Да | G81: уп | H81: 90 | I81: 456,12 | J81: 41050,8
A82: А04АА01 | B82: противорвотное средство - серотониновых рецепторов антагонист | C82: Ондансетрон | D82: Латран раствор для в/в и в/м вв 2mg/ml 2ml №5 | E82: ПЛАТ | F82: Да | G82: уп | H82: 21 | I82: 456,12 | J82: 9578,52
A83: А05АА02 | B83: гепатопротекторное средство | C83: Урсодезоксихолевая кислота | D83: Урсодезоксихолевая кислота капсулы 250mg №50 | E83: ОМС | F83: Да | G83: уп | H83: 32 | I83: 571,14 | J83: 18276,48
A84: А05АА02 | B84: гепатопротекторное средство | C84: Урсодезоксихолевая кислота | D84: Урсодезоксихолевая кислота капсулы 250mg №50 | E84: ПЛАТ | F84: Да | G84: уп | H84: 8 | I84: 571,14 | J84: 4569,12
A85: A05BA | B85: гипоазотемическое средство | C85: Орнитин | D85: Гепа-Мерц гран д/р-ра перор 5g №30 | E85: Бюджет | F85: Нет | G85: уп | H85: 2 | I85: 2095,42 | J85: 4190,84
A86: A05BA | B86: гипоазотемическое средство | C86: Орнитин | D86: Гепа-Мерц гран д/р-ра перор 5g №30 | E86: ОМС | F86: Нет | G86: уп | H86: 15 | I86: 2095,42 | J86: 31431,3
A87: A05BA | B87: гипоазотемическое средство | C87: Орнитин | D87: Гепа-Мерц гран д/р-ра перор 5g №30 | E87: ПЛАТ | F87: Нет | G87: уп | H87: 10 | I87: 2095,42 | J87: 20954,2
A88: A05BA | B88: метаболическое средство | C88: Инозин+Меглюмин+Метионин+Никотинамид+Янтарная кислота | D88: Ремаксол раствор для инфузий 400ml №1 | E88: Бюджет | F88: Да | G88: уп | H88: 90 | I88: 398,47 | J88: 35862,3
A89: A05BA | B89: метаболическое средство | C89: Инозин+Меглюмин+Метионин+Никотинамид+Янтарная кислота | D89: Ремаксол раствор для инфузий 400ml №1 | E89: ОМС | F89: Да | G89: уп | H89: 160 | I89: 398,47 | J89: 63755,2
A90: A05BA | B90: метаболическое средство | C90: Инозин+Меглюмин+Метионин+Никотинамид+Янтарная кислота | D90: Ремаксол раствор для инфузий 400ml №1 | E90: ПЛАТ | F90: Да | G90: уп | H90: 100 | I90: 398,47 | J90: 39847
A91: A06AA01 | B91: слабительное средство | C91: Парафин жидкий | D91: Вазелиновое масло масло д/приема внутрь 25ml | E91: ОМС | F91: Нет | G91: уп | H91: 273 | I91: 36,63 | J91: 9999,99
A92: A06AA01 | B92: слабительное средство | C92: Парафин жидкий | D92: Вазелиновое масло масло д/приема внутрь 25ml | E92: ПЛАТ | F92: Нет | G92: уп | H92: 30 | I92: 36,63 | J92: 1098,9
A93: A06AB02 | B93: слабительное средство | C93: Бисакодил | D93: Бисакодил табл п/к/р/о 5mg №30 | E93: ОМС | F93: Да | G93: уп | H93: 135 | I93: 20,96 | J93: 2829,6
A94: A06AB02 | B94: слабительное средство | C94: Бисакодил | D94: Бисакодил табл п/к/р/о 5mg №30 | E94: ПЛАТ | F94: Да | G94: уп | H94: 2 | I94: 20,96 | J94: 41,92
A95: A06AB02 | B95: слабительное средство | C95: Бисакодил | D95: Бисакодил-Нижфарм супп рект 10mg №10 | E95: ОМС | F95: Да | G95: уп | H95: 65 | I95: 42,62 | J95: 2770,3
A96: A06AB02 | B96: слабительное средство | C96: Бисакодил | D96: Бисакодил-Нижфарм супп рект 10mg №10 | E96: ПЛАТ | F96: Да | G96: уп | H96: 8 | I96: 42,62 | J96: 340,96
A97: А06АВ06 | B97: слабительное средство растительного происхождения | C97: Сеннозиды А и В | D97: Сенадексин табл №20 | E97: ОМС | F97: Да | G97: уп | H97: 354 | I97: 15,84 | J97: 5607,36
A98: А06АВ06 | B98: слабительное средство растительного происхождения | C98: Сеннозиды А и В | D98: Сенадексин табл №20 | E98: ПЛАТ | F98: Да | G98: уп | H98: 3 | I98: 15,84 | J98: 47,52
A99: A06AD11 | B99: слабительное средство | C99: Лактулоза | D99: Нормазе сироп 667mg/ml 200ml | E99: ОМС | F99: Да | G99: уп | H99: 107 | I99: 278,3 | J99: 29778,1
A100: A06AD11 | B100: слабительное средство | C100: Лактулоза | D100: Порталак сироп 667mg/ml 500ml | E100: ОМС | F100: Да | G100: уп | H100: 7 | I100: 398,47 | J100: 2789,29
A101: A06AD11 | B101: слабительное средство | C101: Лактулоза | D101: Порталак сироп 667mg/ml 500ml | E101: ПЛАТ | F101: Да | G101: уп | H101: 11 | I101: 398,47 | J101: 4383,17
A102: A06AD15 | B102: слабительное средство | C102: Макрогол | D102: Фортранс порошок д/приг суспензии д/вн прим 64g №4 | E102: ПЛАТ | F102: Да | G102: уп | H102: 83 | I102: 517,38 | J102: 42942,54
A103: A06АВ05 | B103: слабительное средство растительного происхождения | C103: ~ | D103: Касторовое масло масло д/приема внутрь 30ml | E103: ОМС | F103: Нет | G103: уп | H103: 125 | I103: 36,63 | J103: 4578,75
A104: A07AA11 | B104: антибиотик-рифамицин | C104: Рифаксимин | D104: Альфа Нормикс табл п/п/о 200mg №12 | E104: ОМС | F104: Нет | G104: уп | H104: 70 | I104: 1069,34 | J104: 74853,8
A105: A07AA11 | B105: антибиотик-рифамицин | C105: Рифаксимин | D105: Альфа Нормикс табл п/п/о 200mg №12 | E105: ПЛАТ | F105: Нет | G105: уп | H105: 20 | I105: 1069,34 | J105: 21386,8
A106: A07AX03 | B106: противомикробное средство - нитрофуран | C106: Нифуроксазид | D106: Экофурил капсулы 200mg №16 | E106: ОМС | F106: Нет | G106: уп | H106: 20 | I106: 459,56 | J106: 9191,2
A107: A07AX03 | B107: противомикробное средство - нитрофуран | C107: Нифуроксазид | D107: Экофурил капсулы 200mg №16 | E107: ПЛАТ | F107: Нет | G107: уп | H107: 15 | I107: 459,56 | J107: 6893,4
A108: A07BA01 | B108: энтеросорбирующее средство | C108: Уголь активированный | D108: Уголь активированный табл 250mg №10 | E108: ОМС | F108: Нет | G108: уп | H108: 408 | I108: 4,33 | J108: 1766,64
A109: A07BA01 | B109: энтеросорбирующее средство | C109: Уголь активированный | D109: Уголь активированный табл 250mg №10 | E109: ПЛАТ | F109: Нет | G109: уп | H109: 20 | I109: 4,33 | J109: 86,6
A110: A07BC05 | B110: противодиарейное средство | C110: Диосмектит | D110: Неосмектин порошок д/приг суспензии д/вн прим 3g №30 | E110: ОМС | F110: Да | G110: уп | H110: 33 | I110: 341,55 | J110: 11271,15
A111: A07BC05 | B111: противодиарейное средство | C111: Диосмектит | D111: Неосмектин порошок д/приг суспензии д/вн прим 3g №30 | E111: ПЛАТ | F111: Да | G111: уп | H111: 20 | I111: 341,55 | J111: 6831
A112: A07DA03 | B112: противодиарейное средство | C112: Лоперамид | D112: Лоперамид табл 2mg №10 | E112: ОМС | F112: Да | G112: уп | H112: 35 | I112: 25,06 | J112: 877,1
A113: A07DA03 | B113: противодиарейное средство | C113: Лоперамид | D113: Лоперамид табл 2mg №20 | E113: ОМС | F113: Да | G113: уп | H113: 251 | I113: 27,21 | J113: 6829,71
A114: A07DA03 | B114: противодиарейное средство | C114: Лоперамид | D114: Лоперамид табл 2mg №20 | E114: ПЛАТ | F114: Да | G114: уп | H114: 14 | I114: 27,21 | J114: 380,94
A115: A07EC02 | B115: противомикробное и противовоспалительное кишечное средство | C115: Сульфасалазин | D115: Сульфасалазин-ЕН табл п/к/р/о 500mg №50 | E115: ОМС | F115: Да | G115: уп | H115: 20 | I115: 359,34 | J115: 7186,8
A116: A07EC02 | B116: противомикробное и противовоспалительное кишечное средство | C116: Сульфасалазин | D116: Сульфасалазин-ЕН табл п/к/р/о 500mg №50 | E116: ПЛАТ | F116: Да | G116: уп | H116: 3 | I116: 359,34 | J116: 1078,02
A117: A07FA | B117: средство, нормализующее микрофлору кишечника | C117: ~ | D117: Хилак Форте капл д/пр внутрь 100ml №1 | E117: ПЛАТ | F117: Нет | G117: уп | H117: 15 | I117: 565,48 | J117: 8482,2
A118: A07FA | B118: эубиотик | C118: Бифидобактерии бифидум | D118: Бифидумбактерин лиоф д/приг р-ра д/приема внутрь и мест прим 5dosis №10 | E118: ОМС | F118: Да | G118: уп | H118: 12 | I118: 86,51 | J118: 1038,12
A119: A07FA | B119: эубиотик | C119: Бифидобактерии лонгум+Энтерококкус фециум | D119: Бифиформ капс к/раст №30 | E119: ОМС | F119: Нет | G119: уп | H119: 42 | I119: 615,87 | J119: 25866,54
A120: A07FA | B120: эубиотик | C120: Бифидобактерии лонгум+Энтерококкус фециум | D120: Бифиформ капс к/раст №30 | E120: ПЛАТ | F120: Нет | G120: уп | H120: 49 | I120: 615,87 | J120: 30177,63
A121: A07FA02 | B121: противодиарейное средство | C121: Сахаромицеты Boulardii | D121: Энтерол капсулы 250mg №30 | E121: ОМС | F121: Нет | G121: уп | H121: 60 | I121: 570,54 | J121: 34232,4
A122: A07FA02 | B122: противодиарейное средство | C122: Сахаромицеты Boulardii | D122: Энтерол капсулы 250mg №30 | E122: ПЛАТ | F122: Нет | G122: уп | H122: 20 | I122: 570,54 | J122: 11410,8
A123: A07FA51 | B123: эубиотик | C123: ~ | D123: Линекс капс №16 | E123: ОМС | F123: Нет | G123: уп | H123: 10 | I123: 394,94 | J123: 3949,4
A124: A07FA51 | B124: эубиотик | C124: ~ | D124: Линекс капс №16 | E124: ПЛАТ | F124: Нет | G124: уп | H124: 2 | I124: 394,94 | J124: 789,88
A125: А09АА02 | B125: пищеварительное ферментное средство | C125: Панкреатин | D125: Креон 25000 капс к/раст 300mg №20 | E125: ОМС | F125: Да | G125: уп | H125: 55 | I125: 562,03 | J125: 30911,65
A126: А09АА02 | B126: пищеварительное ферментное средство | C126: Панкреатин | D126: Креон 25000 капс к/раст 300mg №20 | E126: ПЛАТ | F126: Да | G126: уп | H126: 45 | I126: 562,03 | J126: 25291,35
A127: А09АА02 | B127: пищеварительное ферментное средство | C127: Панкреатин | D127: Мезим форте 10000 табл п/к/р/о №20 | E127: ОМС | F127: Да | G127: уп | H127: 758 | I127: 180,66 | J127: 136940,28
A128: А09АА02 | B128: пищеварительное ферментное средство | C128: Панкреатин | D128: Мезим форте 10000 табл п/к/р/о №20 | E128: ПЛАТ | F128: Да | G128: уп | H128: 142 | I128: 180,66 | J128: 25653,72
A129: А09АА02 | B129: пищеварительное ферментное средство | C129: Панкреатин | D129: Микразим капсулы 25000 ЕД №50 | E129: ОМС | F129: Да | G129: уп | H129: 326 | I129: 792,55 | J129: 258371,3
A130: А09АА02 | B130: пищеварительное ферментное средство | C130: Панкреатин | D130: Микразим капсулы 25000 ЕД №50 | E130: ПЛАТ | F130: Да | G130: уп | H130: 54 | I130: 792,55 | J130: 42797,7
A131: А09АА02 | B131: пищеварительное ферментное средство | C131: Панкреатин | D131: Микразим капсулы 40000 EД №50 | E131: ОМС | F131: Да | G131: уп | H131: 4 | I131: 1516,61 | J131: 6066,44
A132: А09АА02 | B132: пищеварительное ферментное средство | C132: Панкреатин | D132: Микразим капсулы 40000 EД №50 | E132: ПЛАТ | F132: Да | G132: уп | H132: 4 | I132: 1516,61 | J132: 6066,44
A133: A10AB01 | B133: гипогликемическое средство - инсулин короткого действия | C133: Инсулин растворимый [человеческий генно-инженерный] | D133: Инсуман Рапид ГТ раствор для инъекций 100МЕ/ml 3ml №5 | E133: Бюджет | F133: Да | G133: уп | H133: 5 | I133: 1120,14 | J133: 5600,7
A134: A10AB01 | B134: гипогликемическое средство - инсулин короткого действия | C134: Инсулин растворимый [человеческий генно-инженерный] | D134: Инсуман Рапид ГТ раствор для инъекций 100МЕ/ml 3ml №5 | E134: ОМС | F134: Да | G134: уп | H134: 43 | I134: 1120,14 | J134: 48166,02
A135: A10AB01 | B135: гипогликемическое средство - инсулин короткого действия | C135: Инсулин растворимый [человеческий генно-инженерный] | D135: Инсуман Рапид ГТ раствор для инъекций 100МЕ/ml 3ml №5 | E135: ПЛАТ | F135: Да | G135: уп | H135: 3 | I135: 1120,14 | J135: 3360,42
A136: A10AB01 | B136: гипогликемическое средство - инсулин короткого действия | C136: Инсулин растворимый [человеческий генно-инженерный] | D136: Росинсулин Р раствор для инъекций 100МЕ/ml 3ml №5 | E136: Бюджет | F136: Да | G136: уп | H136: 5 | I136: 1516,57 | J136: 7582,85
A137: A10AB01 | B137: гипогликемическое средство - инсулин короткого действия | C137: Инсулин растворимый [человеческий генно-инженерный] | D137: Росинсулин Р раствор для инъекций 100МЕ/ml 3ml №5 | E137: ОМС | F137: Да | G137: уп | H137: 47 | I137: 1516,57 | J137: 71278,79
A138: A10AB01 | B138: гипогликемическое средство - инсулин короткого действия | C138: Инсулин растворимый [человеческий генно-инженерный] | D138: Росинсулин Р раствор для инъекций 100МЕ/ml 5ml №5 | E138: Бюджет | F138: Да | G138: уп | H138: 14 | I138: 1085,06 | J138: 15190,84
A139: A10AB01 | B139: гипогликемическое средство - инсулин короткого действия | C139: Инсулин растворимый [человеческий генно-инженерный] | D139: Росинсулин Р раствор для инъекций 100МЕ/ml 5ml №5 | E139: ОМС | F139: Да | G139: уп | H139: 116 | I139: 1085,06 | J139: 125866,96
A140: A10AB01 | B140: гипогликемическое средство - инсулин короткого действия | C140: Инсулин растворимый [человеческий генно-инженерный] | D140: Росинсулин Р раствор для инъекций 100МЕ/ml 5ml №5 | E140: ПЛАТ | F140: Да | G140: уп | H140: 2 | I140: 1085,06 | J140: 2170,12
A141: A10AB01 | B141: гипогликемическое средство - инсулин короткого действия | C141: Инсулин растворимый [человеческий генно-инженерный] | D141: Росинсулин Р раствор для п/к вв 100ME/ml 5ml №5 | E141: ОМС | F141: Да | G141: уп | H141: 47 | I141: 1043,32 | J141: 49036,04
A142: A10AC01 | B142: гипогликемическое средство - инсулин средней продолжительности действия | C142: Инсулин-изофан | D142: Росинсулин С суспензия для п/к вв 100ME/ml 5ml №5 | E142: Бюджет | F142: Да | G142: уп | H142: 8 | I142: 1046,36 | J142: 8370,88
A143: A10AC01 | B143: гипогликемическое средство - инсулин средней продолжительности действия | C143: Инсулин-изофан | D143: Росинсулин С суспензия для п/к вв 100ME/ml 5ml №5 | E143: ОМС | F143: Да | G143: уп | H143: 134 | I143: 1046,36 | J143: 140212,24
A144: A10AC01 | B144: гипогликемическое средство - инсулин средней продолжительности действия | C144: Инсулин-изофан | D144: Росинсулин С суспензия для п/к вв 100ME/ml 5ml №5 | E144: ПЛАТ | F144: Да | G144: уп | H144: 2 | I144: 1046,36 | J144: 2092,72
A145: A10AЕ04 | B145: гипогликемическое средство - инсулина длительного действия аналог | C145: Инсулин гларгин | D145: Туджео СолоСтар р-р для п/к введ, картриджи в шприц-ручках СолоСтар 300ME/ml 1,5ml №3 | E145: Бюджет | F145: Да | G145: уп | H145: 12 | I145: 3208,15 | J145: 38497,8
A146: A10AЕ04 | B146: гипогликемическое средство - инсулина длительного действия аналог | C146: Инсулин гларгин | D146: Туджео СолоСтар р-р для п/к введ, картриджи в шприц-ручках СолоСтар 300ME/ml 1,5ml №3 | E146: ОМС | F146: Да | G146: уп | H146: 145 | I146: 3208,15 | J146: 465181,75
A147: A10AЕ04 | B147: гипогликемическое средство - инсулина длительного действия аналог | C147: Инсулин гларгин | D147: Туджео СолоСтар р-р для п/к введ, картриджи в шприц-ручках СолоСтар 300ME/ml 1,5ml №3 | E147: ПЛАТ | F147: Да | G147: уп | H147: 9 | I147: 3208,15 | J147: 28873,35
A148: A10BA02 | B148: гипогликемическое средство для перорального применения группы бигуанидов | C148: Метформин | D148: Форметин табл 0,5g №60 | E148: Бюджет | F148: Да | G148: уп | H148: 3 | I148: 93,43 | J148: 280,29
A149: A10BA02 | B149: гипогликемическое средство для перорального применения группы бигуанидов | C149: Метформин | D149: Форметин табл 0,5g №60 | E149: ОМС | F149: Да | G149: уп | H149: 93 | I149: 93,43 | J149: 8688,99
A150: A10BA02 | B150: гипогликемическое средство для перорального применения группы бигуанидов | C150: Метформин | D150: Форметин табл 0,5g №60 | E150: ПЛАТ | F150: Да | G150: уп | H150: 7 | I150: 93,43 | J150: 654,01
A151: A10BA02 | B151: гипогликемическое средство для перорального применения группы бигуанидов | C151: Метформин | D151: Форметин табл 0,85g №60 | E151: Бюджет | F151: Да | G151: уп | H151: 5 | I151: 180,33 | J151: 901,65
A152: A10BA02 | B152: гипогликемическое средство для перорального применения группы бигуанидов | C152: Метформин | D152: Форметин табл 0,85g №60 | E152: ОМС | F152: Да | G152: уп | H152: 252 | I152: 180,33 | J152: 45443,16
A153: A10BA02 | B153: гипогликемическое средство для перорального применения группы бигуанидов | C153: Метформин | D153: Форметин табл 0,85g №60 | E153: ПЛАТ | F153: Да | G153: уп | H153: 3 | I153: 180,33 | J153: 540,99
A154: A10BA02 | B154: гипогликемическое средство для перорального применения группы бигуанидов | C154: Метформин | D154: Форметин табл 1g №30 | E154: Бюджет | F154: Да | G154: уп | H154: 5 | I154: 153,01 | J154: 765,05
A155: A10BA02 | B155: гипогликемическое средство для перорального применения группы бигуанидов | C155: Метформин | D155: Форметин табл 1g №30 | E155: ОМС | F155: Да | G155: уп | H155: 115 | I155: 153,01 | J155: 17596,15
A156: A10BA02 | B156: гипогликемическое средство для перорального применения группы бигуанидов | C156: Метформин | D156: Форметин табл 1g №30 | E156: ПЛАТ | F156: Да | G156: уп | H156: 3 | I156: 153,01 | J156: 459,03
A157: A10BB01 | B157: гипогликемическое средство для перорального применения группы сульфонилмочевины II поколения | C157: Глибенкламид | D157: Глибенкламид табл 5mg №120 | E157: ОМС | F157: Да | G157: уп | H157: 15 | I157: 97,94 | J157: 1469,1
A158: A10BB01 | B158: гипогликемическое средство для перорального применения группы сульфонилмочевины II поколения | C158: Глибенкламид | D158: Глибенкламид табл 5mg №120 | E158: ПЛАТ | F158: Да | G158: уп | H158: 1 | I158: 97,94 | J158: 97,94
A159: A10BB09 | B159: гипогликемическое средство для перорального применения группы сульфонилмочевины II поколения | C159: Гликлазид | D159: Гликлазид МВ табл с модифиц. высвобождением 30 mg №60 | E159: ПЛАТ | F159: Да | G159: уп | H159: 3 | I159: 138,13 | J159: 414,39
A160: A10BB09 | B160: гипогликемическое средство для перорального применения группы сульфонилмочевины II поколения | C160: Гликлазид | D160: Гликлазид МВ табл с модифиц. высвобождением 60mg №60 | E160: ОМС | F160: Да | G160: уп | H160: 15 | I160: 138,13 | J160: 2071,95
A161: A11CC03 | B161: витамин - кальциево-фосфорного обмена регулятор | C161: Альфакальцидол | D161: Альфа Д3-Тева капсулы 0,25mkg №30 | E161: ПЛАТ | F161: Да | G161: уп | H161: 2 | I161: 299,85 | J161: 599,7
A162: A11DA01 | B162: витамин | C162: Тиамин | D162: Тиамин раствор для в/м вв 50mg/ml 1ml №10 | E162: Бюджет | F162: Да | G162: уп | H162: 7 | I162: 27,49 | J162: 192,43
A163: A11DA01 | B163: витамин | C163: Тиамин | D163: Тиамин раствор для в/м вв 50mg/ml 1ml №10 | E163: ОМС | F163: Да | G163: уп | H163: 813 | I163: 27,49 | J163: 22349,37
A164: A11DA01 | B164: витамин | C164: Тиамин | D164: Тиамин раствор для в/м вв 50mg/ml 1ml №10 | E164: ПЛАТ | F164: Да | G164: уп | H164: 18 | I164: 27,49 | J164: 494,82
A165: A11EA | B165: витамины группы B | C165: Поливитамины | D165: Нейромультивит табл п/п/о №20 | E165: ПЛАТ | F165: Нет | G165: уп | H165: 3 | I165: 796,09 | J165: 2388,27
A166: A11GA01 | B166: витамин | C166: Аскорбиновая кислота | D166: Аскорбиновая кислота раствор для в/в и в/м вв 50mg/ml 2ml №10 | E166: Бюджет | F166: Да | G166: уп | H166: 25 | I166: 37,69 | J166: 942,25
A167: A11GA01 | B167: витамин | C167: Аскорбиновая кислота | D167: Аскорбиновая кислота раствор для в/в и в/м вв 50mg/ml 2ml №10 | E167: ОМС | F167: Да | G167: уп | H167: 920 | I167: 37,69 | J167: 34539,3
A168: A11GA01 | B168: витамин | C168: Аскорбиновая кислота | D168: Аскорбиновая кислота раствор для в/в и в/м вв 50mg/ml 2ml №10 | E168: ПЛАТ | F168: Да | G168: уп | H168: 170 | I168: 37,69 | J168: 6298,9
A169: A11HA02 | B169: витамин | C169: Пиридоксин | D169: Пиридоксин раствор для инъекций 50mg/ml 1ml №10 | E169: Бюджет | F169: Да | G169: уп | H169: 9 | I169: 27,44 | J169: 246,96
A170: A11HA02 | B170: витамин | C170: Пиридоксин | D170: Пиридоксин раствор для инъекций 50mg/ml 1ml №10 | E170: ОМС | F170: Да | G170: уп | H170: 779 | I170: 27,44 | J170: 21375,76
A171: A11HA02 | B171: витамин | C171: Пиридоксин | D171: Пиридоксин раствор для инъекций 50mg/ml 1ml №10 | E171: ПЛАТ | F171: Да | G171: уп | H171: 18 | I171: 27,44 | J171: 493,92
A172: А11НА03 | B172: витамин | C172: Витамин Е | D172: Лайфевит капсулы 100mg №30 | E172: ОМС | F172: Нет | G172: уп | H172: 20 | I172: 188,7 | J172: 3774
A173: А11НА03 | B173: витамин | C173: Витамин Е | D173: альфа-Токоферола ацетат (Витамин E) капсулы 100mg №10 | E173: ОМС | F173: Нет | G173: уп | H173: 50 | I173: 85,35 | J173: 4267,5
A174: A11HA04 | B174: витамин | C174: Рибофлавин | D174: Рибофлавин - мононуклеотид раствор для в/м вв 10mg/ml 1ml №10 | E174: ОМС | F174: Нет | G174: уп | H174: 60 | I174: 115,43 | J174: 6925,8
A175: A11HA04 | B175: витамин | C175: Рибофлавин | D175: Рибофлавин - мононуклеотид раствор для в/м вв 10mg/ml 1ml №10 | E175: ПЛАТ | F175: Нет | G175: уп | H175: 2 | I175: 115,43 | J175: 230,86
A176: A11JA | B176: поливитаминное средство | C176: Витамин Е+ Ретинол | D176: Аевит капсулы №10 | E176: ПЛАТ | F176: Нет | G176: уп | H176: 20 | I176: 39,18 | J176: 976,8
A177: A12AA03 | B177: кальциево-фосфорного обмена регулятор | C177: Кальция глюконат | D177: Кальция глюконат Б.Браун раствор для инъекций 10% 10ml №20 | E177: ОМС | F177: Да | G177: уп | H177: 143 | I177: 379,5 | J177: 54268,5
A178: A12AA03 | B178: кальциево-фосфорного обмена регулятор | C178: Кальция глюконат | D178: Кальция глюконат Б.Браун раствор для инъекций 10% 10ml №20 | E178: ПЛАТ | F178: Да | G178: уп | H178: 3 | I178: 379,5 | J178: 1138,5
A179: A12AX | B179: кальциево-фосфорного обмена регулятор | C179: Кальция карбонат + Колекальциферол | D179: Кальций-Д3 Никомед Форте табл жеват 500mg+400ME №30 | E179: ОМС | F179: Нет | G179: уп | H179: 4 | I179: 578,2 | J179: 2312,8
A180: A12AX | B180: кальциево-фосфорного обмена регулятор | C180: Кальция карбонат + Колекальциферол | D180: Кальций-Д3 Никомед Форте табл жеват 500mg+400ME №30 | E180: ПЛАТ | F180: Нет | G180: уп | H180: 2 | I180: 578,2 | J180: 1156,4
A181: A12BA01 | B181: калия препарат | C181: Калия хлорид | D181: Калия хлорид Б. Браун конц-т д/приг раствора для инфузий 40mg/ml 10ml №20 | E181: Бюджет | F181: Да | G181: уп | H181: 28 | I181: 245,41 | J181: 6871,48
A182: A12BA01 | B182: калия препарат | C182: Калия хлорид | D182: Калия хлорид Б. Браун конц-т д/приг раствора для инфузий 40mg/ml 10ml №20 | E182: ОМС | F182: Да | G182: уп | H182: 877 | I182: 245,41 | J182: 215224,57
A183: A12BA01 | B183: калия препарат | C183: Калия хлорид | D183: Калия хлорид Б. Браун конц-т д/приг раствора для инфузий 40mg/ml 10ml №20 | E183: ПЛАТ | F183: Да | G183: уп | H183: 115 | I183: 245,41 | J183: 28222,15
A184: A12BA01 | B184: калия препарат | C184: Калия хлорид | D184: Калия хлорид конц-т д/приг раствора для инфузий 40mg/ml 100ml №1 | E184: ОМС | F184: Да | G184: уп | H184: 1780 | I184: 63,59 | J184: 113190,2
A185: A12BA01 | B185: калия препарат | C185: Калия хлорид | D185: Калия хлорид конц-т д/приг раствора для инфузий 40mg/ml 100ml №1 | E185: ПЛАТ | F185: Да | G185: уп | H185: 35 | I185: 63,59 | J185: 2225,65
A186: A12BA01 | B186: калия препарат | C186: Калия хлорид | D186: Калия хлорид конц-т д/приг раствора для инфузий 40mg/ml 100ml №35 | E186: Бюджет | F186: Да | G186: уп | H186: 5 | I186: 2894,38 | J186: 14471,9
A187: A12BA01 | B187: калия препарат | C187: Калия хлорид | D187: Калия хлорид конц-т д/приг раствора для инфузий 40mg/ml 100ml №35 | E187: ОМС | F187: Да | G187: уп | H187: 72 | I187: 2894,38 | J187: 208395,36
A188: A12BA01 | B188: калия препарат | C188: Калия хлорид | D188: Калия хлорид конц-т д/приг раствора для инфузий 40mg/ml 100ml №35 | E188: ПЛАТ | F188: Да | G188: уп | H188: 9 | I188: 2894,38 | J188: 26049,42
A189: A12BA01 | B189: калия препарат | C189: Калия хлорид | D189: Калия хлорид концентрат для приготовления р-ра для инфузий 75mg/ml 200ml №28 | E189: ОМС | F189: Да | G189: уп | H189: 194 | I189: 2868,16 | J189: 556423,04
A190: A12CX | B190: калия и магния препарат | C190: Калия и магния аспарагинат | D190: Аспаркам табл №20 | E190: ОМС | F190: Да | G190: уп | H190: 250 | I190: 41,14 | J190: 10285
A191: A12CX | B191: калия и магния препарат | C191: Калия и магния аспарагинат | D191: Аспаркам табл №60 | E191: Бюджет | F191: Да | G191: уп | H191: 100 | I191: 103,73 | J191: 10373
A192: A12CX | B192: калия и магния препарат | C192: Калия и магния аспарагинат | D192: Аспаркам табл №60 | E192: ОМС | F192: Да | G192: уп | H192: 710 | I192: 103,73 | J192: 73648,3
A193: A12CX | B193: калия и магния препарат | C193: Калия и магния аспарагинат | D193: Аспаркам табл №60 | E193: ПЛАТ | F193: Да | G193: уп | H193: 9 | I193: 103,73 | J193: 933,57
A194: A12CX | B194: калия и магния препарат | C194: Калия и магния аспарагинат | D194: Аспаркам- L раствор для в/в вв 10ml №10 | E194: ОМС | F194: Да | G194: уп | H194: 51 | I194: 94,48 | J194: 4818,48
A195: A12CX | B195: калия и магния препарат | C195: Калия и магния аспарагинат | D195: Аспаркам- L раствор для в/в вв 10ml №10 | E195: ПЛАТ | F195: Да | G195: уп | H195: 30 | I195: 94,48 | J195: 2834,4
A196: A12CX | B196: калия и магния препарат | C196: Калия и магния аспарагинат | D196: Калия и магния аспарагинат конц-т д/приг раствора для инфузий 10ml №10 | E196: ОМС | F196: Да | G196: уп | H196: 30 | I196: 227,7 | J196: 6831
A197: A12CX | B197: калия и магния препарат | C197: Калия и магния аспарагинат | D197: Калия и магния аспарагинат раствор для инфузий 250ml №1 | E197: Бюджет | F197: Да | G197: уп | H197: 350 | I197: 79,59 | J197: 27856,5
A198: A12CX | B198: калия и магния препарат | C198: Калия и магния аспарагинат | D198: Калия и магния аспарагинат раствор для инфузий 250ml №1 | E198: ОМС | F198: Да | G198: уп | H198: 3410 | I198: 79,59 | J198: 271401,9
A199: A12CX | B199: калия и магния препарат | C199: Калия и магния аспарагинат | D199: Калия и магния аспарагинат раствор для инфузий 250ml №1 | E199: ПЛАТ | F199: Да | G199: уп | H199: 54 | I199: 79,59 | J199: 4297,86
A200: A12CX | B200: калия и магния препарат | C200: Калия и магния аспарагинат | D200: Калия и магния аспарагинат раствор для инфузий 500ml №1 | E200: Бюджет | F200: Да | G200: уп | H200: 240 | I200: 148,19 | J200: 35565,6
A201: A12CX | B201: калия и магния препарат | C201: Калия и магния аспарагинат | D201: Калия и магния аспарагинат раствор для инфузий 500ml №1 | E201: ОМС | F201: Да | G201: уп | H201: 365 | I201: 148,19 | J201: 54089,35
A202: A14AB01 | B202: анаболическое стероидное средство | C202: Нандролон | D202: Ретаболил раствор для в/м вв 50mg/ml 1ml | E202: ОМС | F202: Да | G202: амп | H202: 20 | I202: 239,83 | J202: 4796,6
A203: A14AB01 | B203: анаболическое стероидное средство | C203: Нандролон | D203: Ретаболил раствор для в/м вв 50mg/ml 1ml | E203: ПЛАТ | F203: Да | G203: амп | H203: 5 | I203: 239,83 | J203: 1199,15
A204: A16AA02 | B204: гепатопротекторное средство | C204: Адеметионин | D204: Гептор лиоф-т д/приг р-ра для в/в и в/м вв 400mg+р-ль 5ml №5 | E204: Бюджет | F204: Да | G204: уп | H204: 22 | I204: 1475,53 | J204: 32461,66
... 1274 more rows

Sheet Ф.кв.ОРТО
H1: "Утверждаю"
H2: Главный врач СПб ГБУЗ ГМПБ №2
H3: Волчков В.А.
H5: ______________________________
H6: "30 мая 2019 года
A10: ФОРМУЛЯРНЫЙ ПЕРЕЧЕНЬ ЛЕКАРСТВЕННЫХ ПРЕПАРАТОВ НА 2020 ГОД
D11: Ф.кв.ОРТО
A12: АТХ | B12: Группа | C12: МНН | D12: Название | E12: ИФ | F12: ЖНиВЛП | G12: Ед.изм | H12: Кол-во | I12: Цена | J12: Сумма
A13: A01AB11 | B13: противомикробное средство | C13: Метронидазол + Хлоргексидин | D13: Метрогил Дента гель стоматологический 20g №1 | E13: ПЛАТ | F13: Нет | G13: уп | H13: 20 | I13: 281,59 | J13: 5631,8
A14: A01AD11 | B14: НПВП | C14: Холина салицилат + Цеталкония хлорид | D14: Холисал гель стоматологический 10g | E14: ПЛАТ | F14: Нет | G14: уп | H14: 25 | I14: 417,43 | J14: 10435,75
A15: A01AВ11 | B15: противовоспалительное средство растительного происхождения | C15: ~ | D15: Стоматофит экстракт для местного применения, [жидкий] 100ml | E15: ПЛАТ | F15: Нет | G15: уп | H15: 20 | I15: 319,28 | J15: 6385,6
A16: A02BA03 | B16: желез желудка секрецию понижающее средство - H2-гистаминовых рецепторов блокатор | C16: Фамотидин | D16: Фамотидин лиоф д/пр р-ра д/в/в вв 20mg+5ml №5 | E16: Бюджет | F16: Да | G16: уп | H16: 271 | I16: 310,43 | J16: 84126,53
A17: A02BA03 | B17: желез желудка секрецию понижающее средство - H2-гистаминовых рецепторов блокатор | C17: Фамотидин | D17: Фамотидин лиоф д/пр р-ра д/в/в вв 20mg+5ml №5 | E17: ОМС | F17: Да | G17: уп | H17: 2453 | I17: 310,43 | J17: 761484,79
A18: A02BA03 | B18: желез желудка секрецию понижающее средство - H2-гистаминовых рецепторов блокатор | C18: Фамотидин | D18: Фамотидин лиоф д/пр р-ра д/в/в вв 20mg+5ml №5 | E18: ПЛАТ | F18: Да | G18: уп | H18: 128 | I18: 310,43 | J18: 39735,04
A19: A02BA03 | B19: желез желудка секрецию понижающее средство - H2-гистаминовых рецепторов блокатор | C19: Фамотидин | D19: Фамотидин табл п/п/о 20mg №20 | E19: Бюджет | F19: Да | G19: уп | H19: 20 | I19: 23,33 | J19: 466,6
A20: A02BA03 | B20: желез желудка секрецию понижающее средство - H2-гистаминовых рецепторов блокатор | C20: Фамотидин | D20: Фамотидин табл п/п/о 20mg №20 | E20: ОМС | F20: Да | G20: уп | H20: 395 | I20: 23,33 | J20: 9215,35
A21: A02BA03 | B21: желез желудка секрецию понижающее средство - H2-гистаминовых рецепторов блокатор | C21: Фамотидин | D21: Фамотидин табл п/п/о 20mg №20 | E21: ПЛАТ | F21: Да | G21: уп | H21: 8 | I21: 23,33 | J21: 186,64
A22: A02BA03 | B22: желез желудка секрецию понижающее средство - H2-гистаминовых рецепторов блокатор | C22: Фамотидин | D22: Фамотидин табл п/п/о 20mg №30 | E22: Бюджет | F22: Да | G22: уп | H22: 100 | I22: 34,43 | J22: 3443
A23: A02BA03 | B23: желез желудка секрецию понижающее средство - H2-гистаминовых рецепторов блокатор | C23: Фамотидин | D23: Фамотидин табл п/п/о 20mg №30 | E23: ОМС | F23: Да | G23: уп | H23: 2218 | I23: 34,43 | J23: 76365,74
A24: A02BA03 | B24: желез желудка секрецию понижающее средство - H2-гистаминовых рецепторов блокатор | C24: Фамотидин | D24: Фамотидин табл п/п/о 20mg №30 | E24: ПЛАТ | F24: Да | G24: уп | H24: 25 | I24: 34,43 | J24: 860,75
A25: A02BC01 | B25: желез желудка секрецию понижающее средство - протонного насоса ингибитор | C25: Омепразол | D25: Омез лиоф-т д/пригот р-ра д/инф 40mg №1 | E25: Бюджет | F25: Да | G25: уп | H25: 50 | I25: 150,3 | J25: 7515
A26: A02BC01 | B26: желез желудка секрецию понижающее средство - протонного насоса ингибитор | C26: Омепразол | D26: Омез лиоф-т д/пригот р-ра д/инф 40mg №1 | E26: ОМС | F26: Да | G26: уп | H26: 1225 | I26: 150,3 | J26: 184117,5
A27: A02BC01 | B27: желез желудка секрецию понижающее средство - протонного насоса ингибитор | C27: Омепразол | D27: Омез лиоф-т д/пригот р-ра д/инф 40mg №1 | E27: ПЛАТ | F27: Да | G27: уп | H27: 108 | I27: 150,3 | J27: 16232,4
A28: A02BC01 | B28: желез желудка секрецию понижающее средство - протонного насоса ингибитор | C28: Омепразол | D28: Омепразол капс к/раст 20mg №30 | E28: Бюджет | F28: Да | G28: уп | H28: 115 | I28: 32,94 | J28: 3788,1
A29: A02BC01 | B29: желез желудка секрецию понижающее средство - протонного насоса ингибитор | C29: Омепразол | D29: Омепразол капс к/раст 20mg №30 | E29: ОМС | F29: Да | G29: уп | H29: 4968 | I29: 32,94 | J29: 163645,92
A30: A02BC01 | B30: желез желудка секрецию понижающее средство - протонного насоса ингибитор | C30: Омепразол | D30: Омепразол капс к/раст 20mg №30 | E30: ПЛАТ | F30: Да | G30: уп | H30: 210 | I30: 32,94 | J30: 6917,4
A31: A02BC01 | B31: желез желудка секрецию понижающее средство - протонного насоса ингибитор | C31: Омепразол | D31: Омепразол лиоф-т д/пригот р-ра д/инф 40mg №1 | E31: ОМС | F31: Да | G31: уп | H31: 101 | I31: 272,26 | J31: 27498,26
A32: A02BC01 | B32: желез желудка секрецию понижающее средство - протонного насоса ингибитор | C32: Омепразол | D32: Ультоп капсулы 40mg №28 | E32: ОМС | F32: Да | G32: уп | H32: 19 | I32: 525,44 | J32: 9983,36
A33: A02BC01 | B33: желез желудка секрецию понижающее средство - протонного насоса ингибитор | C33: Омепразол | D33: Ультоп капсулы 40mg №28 | E33: ПЛАТ | F33: Да | G33: уп | H33: 21 | I33: 525,44 | J33: 11034,24
A34: А02BC02 | B34: желез желудка секрецию понижающее средство - протонного насоса ингибитор | C34: Пантопразол | D34: Нольпаза лиоф д/пр р-ра д/в/в вв 40mg №1 | E34: ОМС | F34: Нет | G34: уп | H34: 50 | I34: 301,45 | J34: 15072,5
A35: А02BC02 | B35: желез желудка секрецию понижающее средство - протонного насоса ингибитор | C35: Пантопразол | D35: Нольпаза лиоф д/пр р-ра д/в/в вв 40mg №1 | E35: ПЛАТ | F35: Нет | G35: уп | H35: 61 | I35: 301,45 | J35: 18388,45
A36: А02BC02 | B36: желез желудка секрецию понижающее средство - протонного насоса ингибитор | C36: Пантопразол | D36: Нольпаза табл п/к/р/о 40mg №14 | E36: ОМС | F36: Нет | G36: уп | H36: 298 | I36: 184,04 | J36: 54843,92
A37: А02BC02 | B37: желез желудка секрецию понижающее средство - протонного насоса ингибитор | C37: Пантопразол | D37: Нольпаза табл п/к/р/о 40mg №14 | E37: ПЛАТ | F37: Нет | G37: уп | H37: 20 | I37: 184,04 | J37: 3680,8
A38: A02BC04 | B38: желез желудка секрецию понижающее средство - протонного насоса ингибитор | C38: Рабепразол | D38: Зульбекс табл к/р п/п/о 20mg №28 | E38: ОМС | F38: Нет | G38: уп | H38: 20 | I38: 1680 | J38: 33600
A39: A02BC04 | B39: желез желудка секрецию понижающее средство - протонного насоса ингибитор | C39: Рабепразол | D39: Зульбекс табл к/р п/п/о 20mg №28 | E39: ПЛАТ | F39: Нет | G39: уп | H39: 8 | I39: 1680 | J39: 13440
A40: A02BC04 | B40: желез желудка секрецию понижающее средство - протонного насоса ингибитор | C40: Рабепразол | D40: Рабепразол-СЗ капсулы 20mg №28 | E40: ОМС | F40: Нет | G40: уп | H40: 20 | I40: 427,53 | J40: 8550,6
A41: A02BC05 | B41: желез желудка секрецию понижающее средство - протонного насоса ингибитор | C41: Эзомепразол | D41: Эманера капс к/раст 20mg №14 | E41: ОМС | F41: Да | G41: уп | H41: 55 | I41: 242,17 | J41: 13319,35
A42: A02BC05 | B42: желез желудка секрецию понижающее средство - протонного насоса ингибитор | C42: Эзомепразол | D42: Эманера капс к/раст 20mg №14 | E42: ПЛАТ | F42: Да | G42: уп | H42: 25 | I42: 242,17 | J42: 6054,25
A43: A02BC05 | B43: желез желудка секрецию понижающее средство - протонного насоса ингибитор | C43: Эзомепразол | D43: Эманера капс к/раст 40mg №28 | E43: ОМС | F43: Да | G43: уп | H43: 29 | I43: 727,99 | J43: 21111,71
A44: A02BC05 | B44: желез желудка секрецию понижающее средство - протонного насоса ингибитор | C44: Эзомепразол | D44: Эманера капс к/раст 40mg №28 | E44: ПЛАТ | F44: Да | G44: уп | H44: 15 | I44: 727,99 | J44: 10919,85
A45: A02BX | B45: рефлюкс-эзофагита средство лечения | C45: ~ | D45: Гевискон Форте суспензия д/ приема внутрь (в компл.мерн.лож) 150ml №1 | E45: ОМС | F45: Нет | G45: уп | H45: 10 | I45: 346,8 | J45: 3468
A46: A02BX | B46: рефлюкс-эзофагита средство лечения | C46: ~ | D46: Гевискон Форте суспензия д/ приема внутрь (в компл.мерн.лож) 150ml №1 | E46: ПЛАТ | F46: Нет | G46: уп | H46: 5 | I46: 346,8 | J46: 1734
A47: A02BX05 | B47: антисептическое кишечное и вяжущее средство | C47: Висмута трикалия дицитрат | D47: Висмута трикалия дицитрат табл п/п/о 120mg № 56 | E47: ОМС | F47: Да | G47: уп | H47: 73 | I47: 440,62 | J47: 32165,26
A48: A02BX05 | B48: антисептическое кишечное и вяжущее средство | C48: Висмута трикалия дицитрат | D48: Висмута трикалия дицитрат табл п/п/о 120mg № 56 | E48: ПЛАТ | F48: Да | G48: уп | H48: 15 | I48: 440,62 | J48: 6609,3
A49: A02BX05 | B49: антисептическое кишечное и вяжущее средство | C49: Висмута трикалия дицитрат | D49: Улькавис табл п/п/о 120mg № 56 | E49: ПЛАТ | F49: Да | G49: уп | H49: 5 | I49: 413,7 | J49: 2068,5
A50: A02АХ | B50: антацидное средство | C50: Алгелдрат+Магния гидроксид | D50: Алмагель суспензия д/ приема внутрь (в компл.мерн.лож) 170ml | E50: ОМС | F50: Нет | G50: уп | H50: 53 | I50: 266,66 | J50: 14132,98
A51: A02АХ | B51: антацидное средство | C51: Алгелдрат+Магния гидроксид | D51: Алмагель суспензия д/ приема внутрь (в компл.мерн.лож) 170ml | E51: ПЛАТ | F51: Нет | G51: уп | H51: 2 | I51: 266,66 | J51: 533,32
A52: A03AA | B52: м-холиноблокатор | C52: Платифиллин | D52: Платифиллина гидротартрат раствор для п/к вв 2mg/ml 1ml №10 | E52: ОМС | F52: Да | G52: уп | H52: 241 | I52: 69,75 | J52: 16809,75
A53: A03AA | B53: м-холиноблокатор | C53: Платифиллин | D53: Платифиллина гидротартрат раствор для п/к вв 2mg/ml 1ml №10 | E53: ПЛАТ | F53: Да | G53: уп | H53: 26 | I53: 69,75 | J53: 1813,5
A54: A03AA04 | B54: спазмолитическое средство | C54: Мебеверин | D54: Спарекс капс пролонг/д-я 200mg №30 | E54: ОМС | F54: Да | G54: уп | H54: 165 | I54: 514,84 | J54: 84948,6
A55: A03AA04 | B55: спазмолитическое средство | C55: Мебеверин | D55: Спарекс капс пролонг/д-я 200mg №30 | E55: ПЛАТ | F55: Да | G55: уп | H55: 45 | I55: 514,84 | J55: 23167,8
A56: A03AD01 | B56: спазмолитическое средство | C56: Папаверин | D56: Папаверина гидрохлорид раствор для инъекций 20mg/ml 2ml №10 | E56: Б.Опк | F56: Нет | G56: уп | H56: 2 | I56: 273,06 | J56: 546,12
A57: A03AD01 | B57: спазмолитическое средство | C57: Папаверин | D57: Папаверина гидрохлорид раствор для инъекций 20mg/ml 2ml №10 | E57: Бюджет | F57: Нет | G57: уп | H57: 30 | I57: 273,06 | J57: 8191,8
A58: A03AD01 | B58: спазмолитическое средство | C58: Папаверин | D58: Папаверина гидрохлорид раствор для инъекций 20mg/ml 2ml №10 | E58: ОМС | F58: Нет | G58: уп | H58: 315 | I58: 273,06 | J58: 86013,9
A59: A03AD01 | B59: спазмолитическое средство | C59: Папаверин | D59: Папаверина гидрохлорид раствор для инъекций 20mg/ml 2ml №10 | E59: ПЛАТ | F59: Нет | G59: уп | H59: 10 | I59: 273,06 | J59: 2730,6
A60: A03AD02 | B60: спазмолитическое средство | C60: Дротаверин | D60: Дротаверин раствор для инъекций 20mg/ml 2ml №10 | E60: Бюджет | F60: Да | G60: уп | H60: 105 | I60: 59,01 | J60: 6196,05
A61: A03AD02 | B61: спазмолитическое средство | C61: Дротаверин | D61: Дротаверин раствор для инъекций 20mg/ml 2ml №10 | E61: ОМС | F61: Да | G61: уп | H61: 3134 | I61: 59,01 | J61: 184937,34
A62: A03AD02 | B62: спазмолитическое средство | C62: Дротаверин | D62: Дротаверин раствор для инъекций 20mg/ml 2ml №10 | E62: ПЛАТ | F62: Да | G62: уп | H62: 58 | I62: 59,01 | J62: 3422,58
A63: A03AD02 | B63: спазмолитическое средство | C63: Дротаверин | D63: Дротаверин табл 40mg №100 | E63: Бюджет | F63: Да | G63: уп | H63: 2 | I63: 58,25 | J63: 116,5
A64: A03AD02 | B64: спазмолитическое средство | C64: Дротаверин | D64: Дротаверин табл 40mg №100 | E64: ОМС | F64: Да | G64: уп | H64: 430 | I64: 58,25 | J64: 25047,5
A65: A03AD02 | B65: спазмолитическое средство | C65: Дротаверин | D65: Дротаверин табл 40mg №100 | E65: ПЛАТ | F65: Да | G65: уп | H65: 23 | I65: 58,25 | J65: 1339,75
A66: A03AD02 | B66: спазмолитическое средство | C66: Дротаверин | D66: Дротаверин табл 40mg №20 | E66: ОМС | F66: Да | G66: уп | H66: 57 | I66: 30,12 | J66: 1716,84
A67: A03AD02 | B67: спазмолитическое средство | C67: Дротаверин | D67: Дротаверин табл 40mg №20 | E67: ПЛАТ | F67: Да | G67: уп | H67: 5 | I67: 30,12 | J67: 150,6
A68: A03BA01 | B68: м-холиноблокатор | C68: Атропин | D68: Атропин капли глазные 1% 5ml | E68: ОМС | F68: Да | G68: уп | H68: 63 | I68: 52,27 | J68: 3241,41
A69: A03BA01 | B69: м-холиноблокатор | C69: Атропин | D69: Атропин капли глазные 1% 5ml | E69: ПЛАТ | F69: Да | G69: уп | H69: 4 | I69: 52,27 | J69: 209,08
A70: A03BA01 | B70: м-холиноблокатор | C70: Атропин | D70: Атропин раствор для инъекций 1mg/ml 1ml №5 | E70: ОМС | F70: Да | G70: уп | H70: 897 | I70: 12,01 | J70: 10772,97
A71: A03BA01 | B71: м-холиноблокатор | C71: Атропин | D71: Атропин раствор для инъекций 1mg/ml 1ml №5 | E71: ПЛАТ | F71: Да | G71: уп | H71: 2 | I71: 12,01 | J71: 24,02
A72: A03BA01 | B72: м-холиноблокатор | C72: Атропин | D72: Атропина сульфат раствор для инъекций 1mg/ml 1ml №10 | E72: ОМС | F72: Да | G72: уп | H72: 1544 | I72: 28,39 | J72: 43834,16
A73: A03FA01 | B73: противорвотное средство - дофаминовых рецепторов блокатор центральный | C73: Метоклопрамид | D73: Метоклопрамид раствор для в/в и в/м вв 5mg/ml 2ml №10 | E73: Бюджет | F73: Да | G73: уп | H73: 49 | I73: 123,89 | J73: 6070,61
A74: A03FA01 | B74: противорвотное средство - дофаминовых рецепторов блокатор центральный | C74: Метоклопрамид | D74: Метоклопрамид раствор для в/в и в/м вв 5mg/ml 2ml №10 | E74: ОМС | F74: Да | G74: уп | H74: 1543 | I74: 123,89 | J74: 191162,27
A75: A03FA01 | B75: противорвотное средство - дофаминовых рецепторов блокатор центральный | C75: Метоклопрамид | D75: Метоклопрамид раствор для в/в и в/м вв 5mg/ml 2ml №10 | E75: ПЛАТ | F75: Да | G75: уп | H75: 72 | I75: 123,89 | J75: 8920,08
A76: A03FA01 | B76: противорвотное средство - дофаминовых рецепторов блокатор центральный | C76: Метоклопрамид | D76: Метоклопрамид табл 10mg №50 | E76: ОМС | F76: Да | G76: уп | H76: 69 | I76: 26,79 | J76: 1848,51
A77: A03FA01 | B77: противорвотное средство - дофаминовых рецепторов блокатор центральный | C77: Метоклопрамид | D77: Метоклопрамид табл 10mg №50 | E77: ПЛАТ | F77: Да | G77: уп | H77: 3 | I77: 26,79 | J77: 80,37
A78: А04АА01 | B78: противорвотное средство - серотониновых рецепторов антагонист | C78: Ондансетрон | D78: Латран раствор для в/в и в/м вв 2mg/ml 2ml №5 | E78: Бюджет | F78: Да | G78: уп | H78: 10 | I78: 456,12 | J78: 4561,2
A79: А04АА01 | B79: противорвотное средство - серотониновых рецепторов антагонист | C79: Ондансетрон | D79: Латран раствор для в/в и в/м вв 2mg/ml 2ml №5 | E79: ОМС | F79: Да | G79: уп | H79: 90 | I79: 456,12 | J79: 41050,8
A80: А04АА01 | B80: противорвотное средство - серотониновых рецепторов антагонист | C80: Ондансетрон | D80: Латран раствор для в/в и в/м вв 2mg/ml 2ml №5 | E80: ПЛАТ | F80: Да | G80: уп | H80: 21 | I80: 456,12 | J80: 9578,52
A81: А05АА02 | B81: гепатопротекторное средство | C81: Урсодезоксихолевая кислота | D81: Урсодезоксихолевая кислота капсулы 250mg №50 | E81: ОМС | F81: Да | G81: уп | H81: 32 | I81: 571,14 | J81: 18276,48
A82: А05АА02 | B82: гепатопротекторное средство | C82: Урсодезоксихолевая кислота | D82: Урсодезоксихолевая кислота капсулы 250mg №50 | E82: ПЛАТ | F82: Да | G82: уп | H82: 8 | I82: 571,14 | J82: 4569,12
A83: A05BA | B83: гипоазотемическое средство | C83: Орнитин | D83: Гепа-Мерц гран д/р-ра перор 5g №30 | E83: Бюджет | F83: Нет | G83: уп | H83: 2 | I83: 2095,42 | J83: 4190,84
A84: A05BA | B84: гипоазотемическое средство | C84: Орнитин | D84: Гепа-Мерц гран д/р-ра перор 5g №30 | E84: ОМС | F84: Нет | G84: уп | H84: 15 | I84: 2095,42 | J84: 31431,3
A85: A05BA | B85: гипоазотемическое средство | C85: Орнитин | D85: Гепа-Мерц гран д/р-ра перор 5g №30 | E85: ПЛАТ | F85: Нет | G85: уп | H85: 10 | I85: 2095,42 | J85: 20954,2
A86: A05BA | B86: метаболическое средство | C86: Инозин+Меглюмин+Метионин+Никотинамид+Янтарная кислота | D86: Ремаксол раствор для инфузий 400ml №1 | E86: Бюджет | F86: Да | G86: уп | H86: 90 | I86: 398,47 | J86: 35862,3
A87: A05BA | B87: метаболическое средство | C87: Инозин+Меглюмин+Метионин+Никотинамид+Янтарная кислота | D87: Ремаксол раствор для инфузий 400ml №1 | E87: ОМС | F87: Да | G87: уп | H87: 160 | I87: 398,47 | J87: 63755,2
A88: A05BA | B88: метаболическое средство | C88: Инозин+Меглюмин+Метионин+Никотинамид+Янтарная кислота | D88: Ремаксол раствор для инфузий 400ml №1 | E88: ПЛАТ | F88: Да | G88: уп | H88: 100 | I88: 398,47 | J88: 39847
A89: A06AA01 | B89: слабительное средство | C89: Парафин жидкий | D89: Вазелиновое масло масло д/приема внутрь 25ml | E89: ОМС | F89: Нет | G89: уп | H89: 273 | I89: 36,63 | J89: 9999,99
A90: A06AA01 | B90: слабительное средство | C90: Парафин жидкий | D90: Вазелиновое масло масло д/приема внутрь 25ml | E90: ПЛАТ | F90: Нет | G90: уп | H90: 30 | I90: 36,63 | J90: 1098,9
A91: A06AB02 | B91: слабительное средство | C91: Бисакодил | D91: Бисакодил табл п/к/р/о 5mg №30 | E91: ОМС | F91: Да | G91: уп | H91: 135 | I91: 20,96 | J91: 2829,6
A92: A06AB02 | B92: слабительное средство | C92: Бисакодил | D92: Бисакодил табл п/к/р/о 5mg №30 | E92: ПЛАТ | F92: Да | G92: уп | H92: 2 | I92: 20,96 | J92: 41,92
A93: A06AB02 | B93: слабительное средство | C93: Бисакодил | D93: Бисакодил-Нижфарм супп рект 10mg №10 | E93: ОМС | F93: Да | G93: уп | H93: 65 | I93: 42,62 | J93: 2770,3
A94: A06AB02 | B94: слабительное средство | C94: Бисакодил | D94: Бисакодил-Нижфарм супп рект 10mg №10 | E94: ПЛАТ | F94: Да | G94: уп | H94: 8 | I94: 42,62 | J94: 340,96
A95: А06АВ06 | B95: слабительное средство растительного происхождения | C95: Сеннозиды А и В | D95: Сенадексин табл №20 | E95: ОМС | F95: Да | G95: уп | H95: 354 | I95: 15,84 | J95: 5607,36
A96: А06АВ06 | B96: слабительное средство растительного происхождения | C96: Сеннозиды А и В | D96: Сенадексин табл №20 | E96: ПЛАТ | F96: Да | G96: уп | H96: 3 | I96: 15,84 | J96: 47,52
A97: A06AD11 | B97: слабительное средство | C97: Лактулоза | D97: Нормазе сироп 667mg/ml 200ml | E97: ОМС | F97: Да | G97: уп | H97: 107 | I97: 278,3 | J97: 29778,1
A98: A06AD11 | B98: слабительное средство | C98: Лактулоза | D98: Порталак сироп 667mg/ml 500ml | E98: ОМС | F98: Да | G98: уп | H98: 7 | I98: 398,47 | J98: 2789,29
A99: A06AD11 | B99: слабительное средство | C99: Лактулоза | D99: Порталак сироп 667mg/ml 500ml | E99: ПЛАТ | F99: Да | G99: уп | H99: 11 | I99: 398,47 | J99: 4383,17
A100: A06AD15 | B100: слабительное средство | C100: Макрогол | D100: Фортранс порошок д/приг суспензии д/вн прим 64g №4 | E100: ПЛАТ | F100: Да | G100: уп | H100: 83 | I100: 517,38 | J100: 42942,54
A101: A06АВ05 | B101: слабительное средство растительного происхождения | C101: ~ | D101: Касторовое масло масло д/приема внутрь 30ml | E101: ОМС | F101: Нет | G101: уп | H101: 125 | I101: 36,63 | J101: 4578,75
A102: A07AA11 | B102: антибиотик-рифамицин | C102: Рифаксимин | D102: Альфа Нормикс табл п/п/о 200mg №12 | E102: ОМС | F102: Нет | G102: уп | H102: 70 | I102: 1069,34 | J102: 74853,8
A103: A07AA11 | B103: антибиотик-рифамицин | C103: Рифаксимин | D103: Альфа Нормикс табл п/п/о 200mg №12 | E103: ПЛАТ | F103: Нет | G103: уп | H103: 20 | I103: 1069,34 | J103: 21386,8
A104: A07AX03 | B104: противомикробное средство - нитрофуран | C104: Нифуроксазид | D104: Экофурил капсулы 200mg №16 | E104: ОМС | F104: Нет | G104: уп | H104: 20 | I104: 459,56 | J104: 9191,2
A105: A07AX03 | B105: противомикробное средство - нитрофуран | C105: Нифуроксазид | D105: Экофурил капсулы 200mg №16 | E105: ПЛАТ | F105: Нет | G105: уп | H105: 15 | I105: 459,56 | J105: 6893,4
A106: A07BA01 | B106: энтеросорбирующее средство | C106: Уголь активированный | D106: Уголь активированный табл 250mg №10 | E106: ОМС | F106: Нет | G106: уп | H106: 408 | I106: 4,33 | J106: 1766,64
A107: A07BA01 | B107: энтеросорбирующее средство | C107: Уголь активированный | D107: Уголь активированный табл 250mg №10 | E107: ПЛАТ | F107: Нет | G107: уп | H107: 20 | I107: 4,33 | J107: 86,6
A108: A07BC05 | B108: противодиарейное средство | C108: Диосмектит | D108: Неосмектин порошок д/приг суспензии д/вн прим 3g №30 | E108: ОМС | F108: Да | G108: уп | H108: 33 | I108: 341,55 | J108: 11271,15
A109: A07BC05 | B109: противодиарейное средство | C109: Диосмектит | D109: Неосмектин порошок д/приг суспензии д/вн прим 3g №30 | E109: ПЛАТ | F109: Да | G109: уп | H109: 20 | I109: 341,55 | J109: 6831
A110: A07DA03 | B110: противодиарейное средство | C110: Лоперамид | D110: Лоперамид табл 2mg №10 | E110: ОМС | F110: Да | G110: уп | H110: 35 | I110: 25,06 | J110: 877,1
A111: A07DA03 | B111: противодиарейное средство | C111: Лоперамид | D111: Лоперамид табл 2mg №20 | E111: ОМС | F111: Да | G111: уп | H111: 251 | I111: 27,21 | J111: 6829,71
A112: A07DA03 | B112: противодиарейное средство | C112: Лоперамид | D112: Лоперамид табл 2mg №20 | E112: ПЛАТ | F112: Да | G112: уп | H112: 14 | I112: 27,21 | J112: 380,94
A113: A07EC02 | B113: противомикробное и противовоспалительное кишечное средство | C113: Сульфасалазин | D113: Сульфасалазин-ЕН табл п/к/р/о 500mg №50 | E113: ОМС | F113: Да | G113: уп | H113: 20 | I113: 359,34 | J113: 7186,8
A114: A07EC02 | B114: противомикробное и противовоспалительное кишечное средство | C114: Сульфасалазин | D114: Сульфасалазин-ЕН табл п/к/р/о 500mg №50 | E114: ПЛАТ | F114: Да | G114: уп | H114: 3 | I114: 359,34 | J114: 1078,02
A115: A07FA | B115: средство, нормализующее микрофлору кишечника | C115: ~ | D115: Хилак Форте капл д/пр внутрь 100ml №1 | E115: ПЛАТ | F115: Нет | G115: уп | H115: 15 | I115: 565,48 | J115: 8482,2
A116: A07FA | B116: эубиотик | C116: Бифидобактерии бифидум | D116: Бифидумбактерин лиоф д/приг р-ра д/приема внутрь и мест прим 5dosis №10 | E116: ОМС | F116: Да | G116: уп | H116: 12 | I116: 86,51 | J116: 1038,12
A117: A07FA | B117: эубиотик | C117: Бифидобактерии лонгум+Энтерококкус фециум | D117: Бифиформ капс к/раст №30 | E117: ОМС | F117: Нет | G117: уп | H117: 42 | I117: 615,87 | J117: 25866,54
A118: A07FA | B118: эубиотик | C118: Бифидобактерии лонгум+Энтерококкус фециум | D118: Бифиформ капс к/раст №30 | E118: ПЛАТ | F118: Нет | G118: уп | H118: 49 | I118: 615,87 | J118: 30177,63
A119: A07FA02 | B119: противодиарейное средство | C119: Сахаромицеты Boulardii | D119: Энтерол капсулы 250mg №30 | E119: ОМС | F119: Нет | G119: уп | H119: 60 | I119: 570,54 | J119: 34232,4
A120: A07FA02 | B120: противодиарейное средство | C120: Сахаромицеты Boulardii | D120: Энтерол капсулы 250mg №30 | E120: ПЛАТ | F120: Нет | G120: уп | H120: 20 | I120: 570,54 | J120: 11410,8
A121: A07FA51 | B121: эубиотик | C121: ~ | D121: Линекс капс №16 | E121: ОМС | F121: Нет | G121: уп | H121: 10 | I121: 394,94 | J121: 3949,4
A122: A07FA51 | B122: эубиотик | C122: ~ | D122: Линекс капс №16 | E122: ПЛАТ | F122: Нет | G122: уп | H122: 2 | I122: 394,94 | J122: 789,88
A123: А09АА02 | B123: пищеварительное ферментное средство | C123: Панкреатин | D123: Креон 25000 капс к/раст 300mg №20 | E123: ОМС | F123: Да | G123: уп | H123: 55 | I123: 562,03 | J123: 30911,65
A124: А09АА02 | B124: пищеварительное ферментное средство | C124: Панкреатин | D124: Креон 25000 капс к/раст 300mg №20 | E124: ПЛАТ | F124: Да | G124: уп | H124: 45 | I124: 562,03 | J124: 25291,35
A125: А09АА02 | B125: пищеварительное ферментное средство | C125: Панкреатин | D125: Мезим форте 10000 табл п/к/р/о №20 | E125: ОМС | F125: Да | G125: уп | H125: 758 | I125: 180,66 | J125: 136940,28
A126: А09АА02 | B126: пищеварительное ферментное средство | C126: Панкреатин | D126: Мезим форте 10000 табл п/к/р/о №20 | E126: ПЛАТ | F126: Да | G126: уп | H126: 142 | I126: 180,66 | J126: 25653,72
A127: А09АА02 | B127: пищеварительное ферментное средство | C127: Панкреатин | D127: Микразим капсулы 25000 ЕД №50 | E127: ОМС | F127: Да | G127: уп | H127: 326 | I127: 792,55 | J127: 258371,3
A128: А09АА02 | B128: пищеварительное ферментное средство | C128: Панкреатин | D128: Микразим капсулы 25000 ЕД №50 | E128: ПЛАТ | F128: Да | G128: уп | H128: 54 | I128: 792,55 | J128: 42797,7
A129: А09АА02 | B129: пищеварительное ферментное средство | C129: Панкреатин | D129: Микразим капсулы 40000 EД №50 | E129: ОМС | F129: Да | G129: уп | H129: 4 | I129: 1516,61 | J129: 6066,44
A130: А09АА02 | B130: пищеварительное ферментное средство | C130: Панкреатин | D130: Микразим капсулы 40000 EД №50 | E130: ПЛАТ | F130: Да | G130: уп | H130: 4 | I130: 1516,61 | J130: 6066,44
A131: A10AB01 | B131: гипогликемическое средство - инсулин короткого действия | C131: Инсулин растворимый [человеческий генно-инженерный] | D131: Инсуман Рапид ГТ раствор для инъекций 100МЕ/ml 3ml №5 | E131: Бюджет | F131: Да | G131: уп | H131: 5 | I131: 1120,14 | J131: 5600,7
A132: A10AB01 | B132: гипогликемическое средство - инсулин короткого действия | C132: Инсулин растворимый [человеческий генно-инженерный] | D132: Инсуман Рапид ГТ раствор для инъекций 100МЕ/ml 3ml №5 | E132: ОМС | F132: Да | G132: уп | H132: 43 | I132: 1120,14 | J132: 48166,02
A133: A10AB01 | B133: гипогликемическое средство - инсулин короткого действия | C133: Инсулин растворимый [человеческий генно-инженерный] | D133: Инсуман Рапид ГТ раствор для инъекций 100МЕ/ml 3ml №5 | E133: ПЛАТ | F133: Да | G133: уп | H133: 3 | I133: 1120,14 | J133: 3360,42
A134: A10AB01 | B134: гипогликемическое средство - инсулин короткого действия | C134: Инсулин растворимый [человеческий генно-инженерный] | D134: Росинсулин Р раствор для инъекций 100МЕ/ml 3ml №5 | E134: Бюджет | F134: Да | G134: уп | H134: 5 | I134: 1516,57 | J134: 7582,85
A135: A10AB01 | B135: гипогликемическое средство - инсулин короткого действия | C135: Инсулин растворимый [человеческий генно-инженерный] | D135: Росинсулин Р раствор для инъекций 100МЕ/ml 3ml №5 | E135: ОМС | F135: Да | G135: уп | H135: 47 | I135: 1516,57 | J135: 71278,79
A136: A10AB01 | B136: гипогликемическое средство - инсулин короткого действия | C136: Инсулин растворимый [человеческий генно-инженерный] | D136: Росинсулин Р раствор для инъекций 100МЕ/ml 5ml №5 | E136: Бюджет | F136: Да | G136: уп | H136: 14 | I136: 1085,06 | J136: 15190,84
A137: A10AB01 | B137: гипогликемическое средство - инсулин короткого действия | C137: Инсулин растворимый [человеческий генно-инженерный] | D137: Росинсулин Р раствор для инъекций 100МЕ/ml 5ml №5 | E137: ОМС | F137: Да | G137: уп | H137: 116 | I137: 1085,06 | J137: 125866,96
A138: A10AB01 | B138: гипогликемическое средство - инсулин короткого действия | C138: Инсулин растворимый [человеческий генно-инженерный] | D138: Росинсулин Р раствор для инъекций 100МЕ/ml 5ml №5 | E138: ПЛАТ | F138: Да | G138: уп | H138: 2 | I138: 1085,06 | J138: 2170,12
A139: A10AB01 | B139: гипогликемическое средство - инсулин короткого действия | C139: Инсулин растворимый [человеческий генно-инженерный] | D139: Росинсулин Р раствор для п/к вв 100ME/ml 5ml №5 | E139: ОМС | F139: Да | G139: уп | H139: 47 | I139: 1043,32 | J139: 49036,04
A140: A10AC01 | B140: гипогликемическое средство - инсулин средней продолжительности действия | C140: Инсулин-изофан | D140: Росинсулин С суспензия для п/к вв 100ME/ml 5ml №5 | E140: Бюджет | F140: Да | G140: уп | H140: 8 | I140: 1046,36 | J140: 8370,88
A141: A10AC01 | B141: гипогликемическое средство - инсулин средней продолжительности действия | C141: Инсулин-изофан | D141: Росинсулин С суспензия для п/к вв 100ME/ml 5ml №5 | E141: ОМС | F141: Да | G141: уп | H141: 134 | I141: 1046,36 | J141: 140212,24
A142: A10AC01 | B142: гипогликемическое средство - инсулин средней продолжительности действия | C142: Инсулин-изофан | D142: Росинсулин С суспензия для п/к вв 100ME/ml 5ml №5 | E142: ПЛАТ | F142: Да | G142: уп | H142: 2 | I142: 1046,36 | J142: 2092,72
A143: A10AЕ04 | B143: гипогликемическое средство - инсулина длительного действия аналог | C143: Инсулин гларгин | D143: Туджео СолоСтар р-р для п/к введ, картриджи в шприц-ручках СолоСтар 300ME/ml 1,5ml №3 | E143: Бюджет | F143: Да | G143: уп | H143: 12 | I143: 3208,15 | J143: 38497,8
A144: A10AЕ04 | B144: гипогликемическое средство - инсулина длительного действия аналог | C144: Инсулин гларгин | D144: Туджео СолоСтар р-р для п/к введ, картриджи в шприц-ручках СолоСтар 300ME/ml 1,5ml №3 | E144: ОМС | F144: Да | G144: уп | H144: 145 | I144: 3208,15 | J144: 465181,75
A145: A10AЕ04 | B145: гипогликемическое средство - инсулина длительного действия аналог | C145: Инсулин гларгин | D145: Туджео СолоСтар р-р для п/к введ, картриджи в шприц-ручках СолоСтар 300ME/ml 1,5ml №3 | E145: ПЛАТ | F145: Да | G145: уп | H145: 9 | I145: 3208,15 | J145: 28873,35
A146: A10BA02 | B146: гипогликемическое средство для перорального применения группы бигуанидов | C146: Метформин | D146: Форметин табл 0,5g №60 | E146: Бюджет | F146: Да | G146: уп | H146: 3 | I146: 93,43 | J146: 280,29
A147: A10BA02 | B147: гипогликемическое средство для перорального применения группы бигуанидов | C147: Метформин | D147: Форметин табл 0,5g №60 | E147: ОМС | F147: Да | G147: уп | H147: 93 | I147: 93,43 | J147: 8688,99
A148: A10BA02 | B148: гипогликемическое средство для перорального применения группы бигуанидов | C148: Метформин | D148: Форметин табл 0,5g №60 | E148: ПЛАТ | F148: Да | G148: уп | H148: 7 | I148: 93,43 | J148: 654,01
A149: A10BA02 | B149: гипогликемическое средство для перорального применения группы бигуанидов | C149: Метформин | D149: Форметин табл 0,85g №60 | E149: Бюджет | F149: Да | G149: уп | H149: 5 | I149: 180,33 | J149: 901,65
A150: A10BA02 | B150: гипогликемическое средство для перорального применения группы бигуанидов | C150: Метформин | D150: Форметин табл 0,85g №60 | E150: ОМС | F150: Да | G150: уп | H150: 252 | I150: 180,33 | J150: 45443,16
A151: A10BA02 | B151: гипогликемическое средство для перорального применения группы бигуанидов | C151: Метформин | D151: Форметин табл 0,85g №60 | E151: ПЛАТ | F151: Да | G151: уп | H151: 3 | I151: 180,33 | J151: 540,99
A152: A10BA02 | B152: гипогликемическое средство для перорального применения группы бигуанидов | C152: Метформин | D152: Форметин табл 1g №30 | E152: Бюджет | F152: Да | G152: уп | H152: 5 | I152: 153,01 | J152: 765,05
A153: A10BA02 | B153: гипогликемическое средство для перорального применения группы бигуанидов | C153: Метформин | D153: Форметин табл 1g №30 | E153: ОМС | F153: Да | G153: уп | H153: 115 | I153: 153,01 | J153: 17596,15
A154: A10BA02 | B154: гипогликемическое средство для перорального применения группы бигуанидов | C154: Метформин | D154: Форметин табл 1g №30 | E154: ПЛАТ | F154: Да | G154: уп | H154: 3 | I154: 153,01 | J154: 459,03
A155: A10BB01 | B155: гипогликемическое средство для перорального применения группы сульфонилмочевины II поколения | C155: Глибенкламид | D155: Глибенкламид табл 5mg №120 | E155: ОМС | F155: Да | G155: уп | H155: 15 | I155: 97,94 | J155: 1469,1
A156: A10BB01 | B156: гипогликемическое средство для перорального применения группы сульфонилмочевины II поколения | C156: Глибенкламид | D156: Глибенкламид табл 5mg №120 | E156: ПЛАТ | F156: Да | G156: уп | H156: 1 | I156: 97,94 | J156: 97,94
A157: A10BB09 | B157: гипогликемическое средство для перорального применения группы сульфонилмочевины II поколения | C157: Гликлазид | D157: Гликлазид МВ табл с модифиц. высвобождением 30 mg №60 | E157: ПЛАТ | F157: Да | G157: уп | H157: 3 | I157: 138,13 | J157: 414,39
A158: A10BB09 | B158: гипогликемическое средство для перорального применения группы сульфонилмочевины II поколения | C158: Гликлазид | D158: Гликлазид МВ табл с модифиц. высвобождением 60mg №60 | E158: ОМС | F158: Да | G158: уп | H158: 15 | I158: 138,13 | J158: 2071,95
A159: A11CC03 | B159: витамин - кальциево-фосфорного обмена регулятор | C159: Альфакальцидол | D159: Альфа Д3-Тева капсулы 0,25mkg №30 | E159: ПЛАТ | F159: Да | G159: уп | H159: 2 | I159: 299,85 | J159: 599,7
A160: A11DA01 | B160: витамин | C160: Тиамин | D160: Тиамин раствор для в/м вв 50mg/ml 1ml №10 | E160: Бюджет | F160: Да | G160: уп | H160: 7 | I160: 27,49 | J160: 192,43
A161: A11DA01 | B161: витамин | C161: Тиамин | D161: Тиамин раствор для в/м вв 50mg/ml 1ml №10 | E161: ОМС | F161: Да | G161: уп | H161: 813 | I161: 27,49 | J161: 22349,37
A162: A11DA01 | B162: витамин | C162: Тиамин | D162: Тиамин раствор для в/м вв 50mg/ml 1ml №10 | E162: ПЛАТ | F162: Да | G162: уп | H162: 18 | I162: 27,49 | J162: 494,82
A163: A11EA | B163: витамины группы B | C163: Поливитамины | D163: Нейромультивит табл п/п/о №20 | E163: ПЛАТ | F163: Нет | G163: уп | H163: 3 | I163: 796,09 | J163: 2388,27
A164: A11GA01 | B164: витамин | C164: Аскорбиновая кислота | D164: Аскорбиновая кислота раствор для в/в и в/м вв 50mg/ml 2ml №10 | E164: Бюджет | F164: Да | G164: уп | H164: 25 | I164: 37,69 | J164: 942,25
A165: A11GA01 | B165: витамин | C165: Аскорбиновая кислота | D165: Аскорбиновая кислота раствор для в/в и в/м вв 50mg/ml 2ml №10 | E165: ОМС | F165: Да | G165: уп | H165: 920 | I165: 37,69 | J165: 34539,3
A166: A11GA01 | B166: витамин | C166: Аскорбиновая кислота | D166: Аскорбиновая кислота раствор для в/в и в/м вв 50mg/ml 2ml №10 | E166: ПЛАТ | F166: Да | G166: уп | H166: 170 | I166: 37,69 | J166: 6298,9
A167: A11HA02 | B167: витамин | C167: Пиридоксин | D167: Пиридоксин раствор для инъекций 50mg/ml 1ml №10 | E167: Бюджет | F167: Да | G167: уп | H167: 9 | I167: 27,44 | J167: 246,96
A168: A11HA02 | B168: витамин | C168: Пиридоксин | D168: Пиридоксин раствор для инъекций 50mg/ml 1ml №10 | E168: ОМС | F168: Да | G168: уп | H168: 779 | I168: 27,44 | J168: 21375,76
A169: A11HA02 | B169: витамин | C169: Пиридоксин | D169: Пиридоксин раствор для инъекций 50mg/ml 1ml №10 | E169: ПЛАТ | F169: Да | G169: уп | H169: 18 | I169: 27,44 | J169: 493,92
A170: А11НА03 | B170: витамин | C170: Витамин Е | D170: Лайфевит капсулы 100mg №30 | E170: ОМС | F170: Нет | G170: уп | H170: 20 | I170: 188,7 | J170: 3774
A171: А11НА03 | B171: витамин | C171: Витамин Е | D171: альфа-Токоферола ацетат (Витамин E) капсулы 100mg №10 | E171: ОМС | F171: Нет | G171: уп | H171: 50 | I171: 85,35 | J171: 4267,5
A172: A11HA04 | B172: витамин | C172: Рибофлавин | D172: Рибофлавин - мононуклеотид раствор для в/м вв 10mg/ml 1ml №10 | E172: ОМС | F172: Нет | G172: уп | H172: 60 | I172: 115,43 | J172: 6925,8
A173: A11HA04 | B173: витамин | C173: Рибофлавин | D173: Рибофлавин - мононуклеотид раствор для в/м вв 10mg/ml 1ml №10 | E173: ПЛАТ | F173: Нет | G173: уп | H173: 2 | I173: 115,43 | J173: 230,86
A174: A11JA | B174: поливитаминное средство | C174: Витамин Е+ Ретинол | D174: Аевит капсулы №10 | E174: ПЛАТ | F174: Нет | G174: уп | H174: 20 | I174: 39,18 | J174: 976,8
A175: A12AA03 | B175: кальциево-фосфорного обмена регулятор | C175: Кальция глюконат | D175: Кальция глюконат Б.Браун раствор для инъекций 10% 10ml №20 | E175: ОМС | F175: Да | G175: уп | H175: 143 | I175: 379,5 | J175: 54268,5
A176: A12AA03 | B176: кальциево-фосфорного обмена регулятор | C176: Кальция глюконат | D176: Кальция глюконат Б.Браун раствор для инъекций 10% 10ml №20 | E176: ПЛАТ | F176: Да | G176: уп | H176: 3 | I176: 379,5 | J176: 1138,5
A177: A12AX | B177: кальциево-фосфорного обмена регулятор | C177: Кальция карбонат + Колекальциферол | D177: Кальций-Д3 Никомед Форте табл жеват 500mg+400ME №30 | E177: ОМС | F177: Нет | G177: уп | H177: 4 | I177: 578,2 | J177: 2312,8
A178: A12AX | B178: кальциево-фосфорного обмена регулятор | C178: Кальция карбонат + Колекальциферол | D178: Кальций-Д3 Никомед Форте табл жеват 500mg+400ME №30 | E178: ПЛАТ | F178: Нет | G178: уп | H178: 2 | I178: 578,2 | J178: 1156,4
A179: A12BA01 | B179: калия препарат | C179: Калия хлорид | D179: Калия хлорид Б. Браун конц-т д/приг раствора для инфузий 40mg/ml 10ml №20 | E179: Бюджет | F179: Да | G179: уп | H179: 28 | I179: 245,41 | J179: 6871,48
A180: A12BA01 | B180: калия препарат | C180: Калия хлорид | D180: Калия хлорид Б. Браун конц-т д/приг раствора для инфузий 40mg/ml 10ml №20 | E180: ОМС | F180: Да | G180: уп | H180: 877 | I180: 245,41 | J180: 215224,57
A181: A12BA01 | B181: калия препарат | C181: Калия хлорид | D181: Калия хлорид Б. Браун конц-т д/приг раствора для инфузий 40mg/ml 10ml №20 | E181: ПЛАТ | F181: Да | G181: уп | H181: 115 | I181: 245,41 | J181: 28222,15
A182: A12BA01 | B182: калия препарат | C182: Калия хлорид | D182: Калия хлорид конц-т д/приг раствора для инфузий 40mg/ml 100ml №1 | E182: ОМС | F182: Да | G182: уп | H182: 1780 | I182: 63,59 | J182: 113190,2
A183: A12BA01 | B183: калия препарат | C183: Калия хлорид | D183: Калия хлорид конц-т д/приг раствора для инфузий 40mg/ml 100ml №1 | E183: ПЛАТ | F183: Да | G183: уп | H183: 35 | I183: 63,59 | J183: 2225,65
A184: A12BA01 | B184: калия препарат | C184: Калия хлорид | D184: Калия хлорид конц-т д/приг раствора для инфузий 40mg/ml 100ml №35 | E184: Бюджет | F184: Да | G184: уп | H184: 5 | I184: 2894,38 | J184: 14471,9
A185: A12BA01 | B185: калия препарат | C185: Калия хлорид | D185: Калия хлорид конц-т д/приг раствора для инфузий 40mg/ml 100ml №35 | E185: ОМС | F185: Да | G185: уп | H185: 72 | I185: 2894,38 | J185: 208395,36
A186: A12BA01 | B186: калия препарат | C186: Калия хлорид | D186: Калия хлорид конц-т д/приг раствора для инфузий 40mg/ml 100ml №35 | E186: ПЛАТ | F186: Да | G186: уп | H186: 9 | I186: 2894,38 | J186: 26049,42
A187: A12BA01 | B187: калия препарат | C187: Калия хлорид | D187: Калия хлорид концентрат для приготовления р-ра для инфузий 75mg/ml 200ml №28 | E187: ОМС | F187: Да | G187: уп | H187: 194 | I187: 2868,16 | J187: 556423,04
A188: A12CX | B188: калия и магния препарат | C188: Калия и магния аспарагинат | D188: Аспаркам табл №20 | E188: ОМС | F188: Да | G188: уп | H188: 250 | I188: 41,14 | J188: 10285
A189: A12CX | B189: калия и магния препарат | C189: Калия и магния аспарагинат | D189: Аспаркам табл №60 | E189: Бюджет | F189: Да | G189: уп | H189: 100 | I189: 103,73 | J189: 10373
A190: A12CX | B190: калия и магния препарат | C190: Калия и магния аспарагинат | D190: Аспаркам табл №60 | E190: ОМС | F190: Да | G190: уп | H190: 710 | I190: 103,73 | J190: 73648,3
A191: A12CX | B191: калия и магния препарат | C191: Калия и магния аспарагинат | D191: Аспаркам табл №60 | E191: ПЛАТ | F191: Да | G191: уп | H191: 9 | I191: 103,73 | J191: 933,57
A192: A12CX | B192: калия и магния препарат | C192: Калия и магния аспарагинат | D192: Аспаркам- L раствор для в/в вв 10ml №10 | E192: ОМС | F192: Да | G192: уп | H192: 51 | I192: 94,48 | J192: 4818,48
A193: A12CX | B193: калия и магния препарат | C193: Калия и магния аспарагинат | D193: Аспаркам- L раствор для в/в вв 10ml №10 | E193: ПЛАТ | F193: Да | G193: уп | H193: 30 | I193: 94,48 | J193: 2834,4
A194: A12CX | B194: калия и магния препарат | C194: Калия и магния аспарагинат | D194: Калия и магния аспарагинат конц-т д/приг раствора для инфузий 10ml №10 | E194: ОМС | F194: Да | G194: уп | H194: 30 | I194: 227,7 | J194: 6831
A195: A12CX | B195: калия и магния препарат | C195: Калия и магния аспарагинат | D195: Калия и магния аспарагинат раствор для инфузий 250ml №1 | E195: Бюджет | F195: Да | G195: уп | H195: 350 | I195: 79,59 | J195: 27856,5
A196: A12CX | B196: калия и магния препарат | C196: Калия и магния аспарагинат | D196: Калия и магния аспарагинат раствор для инфузий 250ml №1 | E196: ОМС | F196: Да | G196: уп | H196: 3410 | I196: 79,59 | J196: 271401,9
A197: A12CX | B197: калия и магния препарат | C197: Калия и магния аспарагинат | D197: Калия и магния аспарагинат раствор для инфузий 250ml №1 | E197: ПЛАТ | F197: Да | G197: уп | H197: 54 | I197: 79,59 | J197: 4297,86
A198: A12CX | B198: калия и магния препарат | C198: Калия и магния аспарагинат | D198: Калия и магния аспарагинат раствор для инфузий 500ml №1 | E198: Бюджет | F198: Да | G198: уп | H198: 240 | I198: 148,19 | J198: 35565,6
A199: A12CX | B199: калия и магния препарат | C199: Калия и магния аспарагинат | D199: Калия и магния аспарагинат раствор для инфузий 500ml №1 | E199: ОМС | F199: Да | G199: уп | H199: 365 | I199: 148,19 | J199: 54089,35
A200: A14AB01 | B200: анаболическое стероидное средство | C200: Нандролон | D200: Ретаболил раствор для в/м вв 50mg/ml 1ml | E200: ОМС | F200: Да | G200: амп | H200: 20 | I200: 239,83 | J200: 4796,6
A201: A14AB01 | B201: анаболическое стероидное средство | C201: Нандролон | D201: Ретаболил раствор для в/м вв 50mg/ml 1ml | E201: ПЛАТ | F201: Да | G201: амп | H201: 5 | I201: 239,83 | J201: 1199,15
A202: A16AA02 | B202: гепатопротекторное средство | C202: Адеметионин | D202: Гептор лиоф-т д/приг р-ра для в/в и в/м вв 400mg+р-ль 5ml №5 | E202: Бюджет | F202: Да | G202: уп | H202: 22 | I202: 1475,53 | J202: 32461,66
A203: A16AA02 | B203: гепатопротекторное средство | C203: Адеметионин | D203: Гептор лиоф-т д/приг р-ра для в/в и в/м вв 400mg+р-ль 5ml №5 | E203: ОМС | F203: Да | G203: уп | H203: 80 | I203: 1475,53 | J203: 118042,4
A204: A16AA02 | B204: гепатопротекторное средство | C204: Адеметионин | D204: Гептор лиоф-т д/приг р-ра для в/в и в/м вв 400mg+р-ль 5ml №5 | E204: ПЛАТ | F204: Да | G204: уп | H204: 82 | I204: 1475,53 | J204: 118650,26
... 1251 more rows

Sheet Лист2
A1: АТХ | B1: Группа | C1: МНН | D1: Название | E1: ИФ | F1: ЖНиВЛП | G1: Ед.изм | H1: Кол-во | I1: Цена | J1: Сумма
A2: A01AB11 | B2: противомикробное средство | C2: Метронидазол + Хлоргексидин | D2: Метрогил Дента гель стоматологический 20g №1 | E2: ПЛАТ | F2: Нет | G2: уп | H2: 20 | I2: 281.59 | J2: =H2*I2 -> 5,631.80
A3: A01AD11 | B3: НПВП | C3: Холина салицилат + Цеталкония хлорид | D3: Холисал гель стоматологический 10g | E3: ПЛАТ | F3: Нет | G3: уп | H3: 25 | I3: 417.43 | J3: =H3*I3 -> 10,435.75
A4: A02BA03 | B4: желез желудка секрецию понижающее средство - H2-гистаминовых рецепторов блокатор | C4: Фамотидин | D4: Фамотидин лиоф д/пр р-ра д/в/в вв 20mg+5ml №5 | E4: Бюджет | F4: Да | G4: уп | H4: 271 | I4: 310.43 | J4: 84,126.53
A5: A02BA03 | B5: желез желудка секрецию понижающее средство - H2-гистаминовых рецепторов блокатор | C5: Фамотидин | D5: Фамотидин лиоф д/пр р-ра д/в/в вв 20mg+5ml №5 | E5: ОМС | F5: Да | G5: уп | H5: 2453 | I5: 310.43 | J5: 761,484.79
A6: A02BA03 | B6: желез желудка секрецию понижающее средство - H2-гистаминовых рецепторов блокатор | C6: Фамотидин | D6: Фамотидин лиоф д/пр р-ра д/в/в вв 20mg+5ml №5 | E6: ПЛАТ | F6: Да | G6: уп | H6: 128 | I6: 310.43 | J6: 39,735.04
A7: A02BA03 | B7: желез желудка секрецию понижающее средство - H2-гистаминовых рецепторов блокатор | C7: Фамотидин | D7: Фамотидин табл п/п/о 20mg №20 | E7: Бюджет | F7: Да | G7: уп | H7: 20 | I7: 23.33 | J7: 466.60
A8: A02BA03 | B8: желез желудка секрецию понижающее средство - H2-гистаминовых рецепторов блокатор | C8: Фамотидин | D8: Фамотидин табл п/п/о 20mg №20 | E8: ОМС | F8: Да | G8: уп | H8: 395 | I8: 23.33 | J8: 9,215.35
A9: A02BA03 | B9: желез желудка секрецию понижающее средство - H2-гистаминовых рецепторов блокатор | C9: Фамотидин | D9: Фамотидин табл п/п/о 20mg №20 | E9: ПЛАТ | F9: Да | G9: уп | H9: 8 | I9: 23.33 | J9: 186.64
A10: A02BA03 | B10: желез желудка секрецию понижающее средство - H2-гистаминовых рецепторов блокатор | C10: Фамотидин | D10: Фамотидин табл п/п/о 20mg №30 | E10: Бюджет | F10: Да | G10: уп | H10: 100 | I10: 34.43 | J10: 3,443.00
A11: A02BA03 | B11: желез желудка секрецию понижающее средство - H2-гистаминовых рецепторов блокатор | C11: Фамотидин | D11: Фамотидин табл п/п/о 20mg №30 | E11: ОМС | F11: Да | G11: уп | H11: 2218 | I11: 34.43 | J11: 76,365.74
A12: A02BA03 | B12: желез желудка секрецию понижающее средство - H2-гистаминовых рецепторов блокатор | C12: Фамотидин | D12: Фамотидин табл п/п/о 20mg №30 | E12: ПЛАТ | F12: Да | G12: уп | H12: 25 | I12: 34.43 | J12: 860.75
A13: A02BC01 | B13: желез желудка секрецию понижающее средство - протонного насоса ингибитор | C13: Омепразол | D13: Омез лиоф-т д/пригот р-ра д/инф 40mg №1 | E13: Бюджет | F13: Да | G13: уп | H13: 50 | I13: 150.3 | J13: 7,515.00
A14: A02BC01 | B14: желез желудка секрецию понижающее средство - протонного насоса ингибитор | C14: Омепразол | D14: Омез лиоф-т д/пригот р-ра д/инф 40mg №1 | E14: ОМС | F14: Да | G14: уп | H14: 1225 | I14: 150.3 | J14: 184,117.50
A15: A02BC01 | B15: желез желудка секрецию понижающее средство - протонного насоса ингибитор | C15: Омепразол | D15: Омез лиоф-т д/пригот р-ра д/инф 40mg №1 | E15: ПЛАТ | F15: Да | G15: уп | H15: 108 | I15: 150.3 | J15: 16,232.40
A16: A02BC01 | B16: желез желудка секрецию понижающее средство - протонного насоса ингибитор | C16: Омепразол | D16: Омепразол капс к/раст 20mg №30 | E16: Бюджет | F16: Да | G16: уп | H16: 115 | I16: 32.94 | J16: 3,788.10
A17: A02BC01 | B17: желез желудка секрецию понижающее средство - протонного насоса ингибитор | C17: Омепразол | D17: Омепразол капс к/раст 20mg №30 | E17: ОМС | F17: Да | G17: уп | H17: 4968 | I17: 32.94 | J17: 163,645.92
A18: A02BC01 | B18: желез желудка секрецию понижающее средство - протонного насоса ингибитор | C18: Омепразол | D18: Омепразол капс к/раст 20mg №30 | E18: ПЛАТ | F18: Да | G18: уп | H18: 210 | I18: 32.94 | J18: 6,917.40
A19: A02BC01 | B19: желез желудка секрецию понижающее средство - протонного насоса ингибитор | C19: Омепразол | D19: Омепразол лиоф-т д/пригот р-ра д/инф 40mg №1 | E19: ОМС | F19: Да | G19: уп | H19: 101 | I19: 272.26 | J19: 27,498.26
A20: A02BC01 | B20: желез желудка секрецию понижающее средство - протонного насоса ингибитор | C20: Омепразол | D20: Ультоп капсулы 40mg №28 | E20: ОМС | F20: Да | G20: уп | H20: 19 | I20: 525.44 | J20: 9,983.36
A21: A02BC01 | B21: желез желудка секрецию понижающее средство - протонного насоса ингибитор | C21: Омепразол | D21: Ультоп капсулы 40mg №28 | E21: ПЛАТ | F21: Да | G21: уп | H21: 21 | I21: 525.44 | J21: 11,034.24
A22: A02BC04 | B22: желез желудка секрецию понижающее средство - протонного насоса ингибитор | C22: Рабепразол | D22: Зульбекс табл к/р п/п/о 20mg №28 | E22: ОМС | F22: Нет | G22: уп | H22: 20 | I22: 1680 | J22: 33,600.00
A23: A02BC04 | B23: желез желудка секрецию понижающее средство - протонного насоса ингибитор | C23: Рабепразол | D23: Зульбекс табл к/р п/п/о 20mg №28 | E23: ПЛАТ | F23: Нет | G23: уп | H23: 8 | I23: 1680 | J23: 13,440.00
A24: A02BC04 | B24: желез желудка секрецию понижающее средство - протонного насоса ингибитор | C24: Рабепразол | D24: Рабепразол-СЗ капсулы 20mg №28 | E24: ОМС | F24: Нет | G24: уп | H24: 20 | I24: 427.53 | J24: 8,550.60
A25: A02BC05 | B25: желез желудка секрецию понижающее средство - протонного насоса ингибитор | C25: Эзомепразол | D25: Эманера капс к/раст 20mg №14 | E25: ОМС | F25: Да | G25: уп | H25: 55 | I25: 242.17 | J25: 13,319.35
A26: A02BC05 | B26: желез желудка секрецию понижающее средство - протонного насоса ингибитор | C26: Эзомепразол | D26: Эманера капс к/раст 20mg №14 | E26: ПЛАТ | F26: Да | G26: уп | H26: 25 | I26: 242.17 | J26: 6,054.25
A27: A02BC05 | B27: желез желудка секрецию понижающее средство - протонного насоса ингибитор | C27: Эзомепразол | D27: Эманера капс к/раст 40mg №28 | E27: ОМС | F27: Да | G27: уп | H27: 29 | I27: 727.99 | J27: 21,111.71
A28: A02BC05 | B28: желез желудка секрецию понижающее средство - протонного насоса ингибитор | C28: Эзомепразол | D28: Эманера капс к/раст 40mg №28 | E28: ПЛАТ | F28: Да | G28: уп | H28: 15 | I28: 727.99 | J28: 10,919.85
A29: A02BX | B29: рефлюкс-эзофагита средство лечения | C29: ~ | D29: Гевискон Форте суспензия д/ приема внутрь (в компл.мерн.лож) 150ml №1 | E29: ОМС | F29: Нет | G29: уп | H29: 10 | I29: 346.8 | J29: 3,468.00
A30: A02BX | B30: рефлюкс-эзофагита средство лечения | C30: ~ | D30: Гевискон Форте суспензия д/ приема внутрь (в компл.мерн.лож) 150ml №1 | E30: ПЛАТ | F30: Нет | G30: уп | H30: 5 | I30: 346.8 | J30: 1,734.00
A31: A02BX05 | B31: антисептическое кишечное и вяжущее средство | C31: Висмута трикалия дицитрат | D31: Висмута трикалия дицитрат табл п/п/о 120mg № 56 | E31: ОМС | F31: Да | G31: уп | H31: 73 | I31: 440.62 | J31: 32,165.26
A32: A02BX05 | B32: антисептическое кишечное и вяжущее средство | C32: Висмута трикалия дицитрат | D32: Висмута трикалия дицитрат табл п/п/о 120mg № 56 | E32: ПЛАТ | F32: Да | G32: уп | H32: 15 | I32: 440.62 | J32: 6,609.30
A33: A02BX05 | B33: антисептическое кишечное и вяжущее средство | C33: Висмута трикалия дицитрат | D33: Улькавис табл п/п/о 120mg № 56 | E33: ПЛАТ | F33: Да | G33: уп | H33: 5 | I33: 413.7 | J33: 2,068.50
A34: A02АХ | B34: антацидное средство | C34: Алгелдрат+Магния гидроксид | D34: Алмагель суспензия д/ приема внутрь (в компл.мерн.лож) 170ml | E34: ОМС | F34: Нет | G34: уп | H34: 53 | I34: 266.66 | J34: 14,132.98
A35: A02АХ | B35: антацидное средство | C35: Алгелдрат+Магния гидроксид | D35: Алмагель суспензия д/ приема внутрь (в компл.мерн.лож) 170ml | E35: ПЛАТ | F35: Нет | G35: уп | H35: 2 | I35: 266.66 | J35: 533.32
A36: A03AA | B36: м-холиноблокатор | C36: Платифиллин | D36: Платифиллина гидротартрат раствор для п/к вв 2mg/ml 1ml №10 | E36: ОМС | F36: Да | G36: уп | H36: 241 | I36: 69.75 | J36: 16,809.75
A37: A03AA | B37: м-холиноблокатор | C37: Платифиллин | D37: Платифиллина гидротартрат раствор для п/к вв 2mg/ml 1ml №10 | E37: ПЛАТ | F37: Да | G37: уп | H37: 26 | I37: 69.75 | J37: 1,813.50
A38: A03AA04 | B38: спазмолитическое средство | C38: Мебеверин | D38: Спарекс капс пролонг/д-я 200mg №30 | E38: ОМС | F38: Да | G38: уп | H38: 165 | I38: 514.84 | J38: 84,948.60
A39: A03AA04 | B39: спазмолитическое средство | C39: Мебеверин | D39: Спарекс капс пролонг/д-я 200mg №30 | E39: ПЛАТ | F39: Да | G39: уп | H39: 45 | I39: 514.84 | J39: 23,167.80
A40: A03AD01 | B40: спазмолитическое средство | C40: Папаверин | D40: Папаверина гидрохлорид раствор для инъекций 20mg/ml 2ml №10 | E40: Б.Опк | F40: Нет | G40: уп | H40: 2 | I40: 273.06 | J40: 546.12
A41: A03AD01 | B41: спазмолитическое средство | C41: Папаверин | D41: Папаверина гидрохлорид раствор для инъекций 20mg/ml 2ml №10 | E41: Бюджет | F41: Нет | G41: уп | H41: 30 | I41: 273.06 | J41: 8,191.80
A42: A03AD01 | B42: спазмолитическое средство | C42: Папаверин | D42: Папаверина гидрохлорид раствор для инъекций 20mg/ml 2ml №10 | E42: ОМС | F42: Нет | G42: уп | H42: 315 | I42: 273.06 | J42: 86,013.90
A43: A03AD01 | B43: спазмолитическое средство | C43: Папаверин | D43: Папаверина гидрохлорид раствор для инъекций 20mg/ml 2ml №10 | E43: ПЛАТ | F43: Нет | G43: уп | H43: 10 | I43: 273.06 | J43: 2,730.60
A44: A03AD02 | B44: спазмолитическое средство | C44: Дротаверин | D44: Дротаверин раствор для инъекций 20mg/ml 2ml №10 | E44: Бюджет | F44: Да | G44: уп | H44: 105 | I44: 59.01 | J44: 6,196.05
A45: A03AD02 | B45: спазмолитическое средство | C45: Дротаверин | D45: Дротаверин раствор для инъекций 20mg/ml 2ml №10 | E45: ОМС | F45: Да | G45: уп | H45: 3134 | I45: 59.01 | J45: 184,937.34
A46: A03AD02 | B46: спазмолитическое средство | C46: Дротаверин | D46: Дротаверин раствор для инъекций 20mg/ml 2ml №10 | E46: ПЛАТ | F46: Да | G46: уп | H46: 58 | I46: 59.01 | J46: 3,422.58
A47: A03AD02 | B47: спазмолитическое средство | C47: Дротаверин | D47: Дротаверин табл 40mg №100 | E47: Бюджет | F47: Да | G47: уп | H47: 2 | I47: 58.25 | J47: 116.50
A48: A03AD02 | B48: спазмолитическое средство | C48: Дротаверин | D48: Дротаверин табл 40mg №100 | E48: ОМС | F48: Да | G48: уп | H48: 430 | I48: 58.25 | J48: 25,047.50
A49: A03AD02 | B49: спазмолитическое средство | C49: Дротаверин | D49: Дротаверин табл 40mg №100 | E49: ПЛАТ | F49: Да | G49: уп | H49: 23 | I49: 58.25 | J49: 1,339.75
A50: A03AD02 | B50: спазмолитическое средство | C50: Дротаверин | D50: Дротаверин табл 40mg №20 | E50: ОМС | F50: Да | G50: уп | H50: 57 | I50: 30.12 | J50: 1,716.84
A51: A03AD02 | B51: спазмолитическое средство | C51: Дротаверин | D51: Дротаверин табл 40mg №20 | E51: ПЛАТ | F51: Да | G51: уп | H51: 5 | I51: 30.12 | J51: 150.60
A52: A03BA01 | B52: м-холиноблокатор | C52: Атропин | D52: Атропин капли глазные 1% 5ml | E52: ОМС | F52: Да | G52: уп | H52: 63 | I52: 52.27 | J52: 3,293.01
A53: A03BA01 | B53: м-холиноблокатор | C53: Атропин | D53: Атропин капли глазные 1% 5ml | E53: ПЛАТ | F53: Да | G53: уп | H53: 4 | I53: 52.27 | J53: 209.08
A54: A03BA01 | B54: м-холиноблокатор | C54: Атропин | D54: Атропин раствор для инъекций 1mg/ml 1ml №5 | E54: ОМС | F54: Да | G54: уп | H54: 897 | I54: 12.01 | J54: 10,772.97
A55: A03BA01 | B55: м-холиноблокатор | C55: Атропин | D55: Атропин раствор для инъекций 1mg/ml 1ml №5 | E55: ПЛАТ | F55: Да | G55: уп | H55: 2 | I55: 12.01 | J55: 24.02
A56: A03BA01 | B56: м-холиноблокатор | C56: Атропин | D56: Атропина сульфат раствор для инъекций 1mg/ml 1ml №10 | E56: ОМС | F56: Да | G56: уп | H56: 1544 | I56: 28.39 | J56: 43,834.16
A57: A03FA01 | B57: противорвотное средство - дофаминовых рецепторов блокатор центральный | C57: Метоклопрамид | D57: Метоклопрамид раствор для в/в и в/м вв 5mg/ml 2ml №10 | E57: Бюджет | F57: Да | G57: уп | H57: 49 | I57: 123.89 | J57: 6,070.61
A58: A03FA01 | B58: противорвотное средство - дофаминовых рецепторов блокатор центральный | C58: Метоклопрамид | D58: Метоклопрамид раствор для в/в и в/м вв 5mg/ml 2ml №10 | E58: ОМС | F58: Да | G58: уп | H58: 1543 | I58: 123.89 | J58: 191,162.27
A59: A03FA01 | B59: противорвотное средство - дофаминовых рецепторов блокатор центральный | C59: Метоклопрамид | D59: Метоклопрамид раствор для в/в и в/м вв 5mg/ml 2ml №10 | E59: ПЛАТ | F59: Да | G59: уп | H59: 72 | I59: 123.89 | J59: 8,920.08
A60: A03FA01 | B60: противорвотное средство - дофаминовых рецепторов блокатор центральный | C60: Метоклопрамид | D60: Метоклопрамид табл 10mg №50 | E60: ОМС | F60: Да | G60: уп | H60: 69 | I60: 26.79 | J60: 1,848.51
A61: A03FA01 | B61: противорвотное средство - дофаминовых рецепторов блокатор центральный | C61: Метоклопрамид | D61: Метоклопрамид табл 10mg №50 | E61: ПЛАТ | F61: Да | G61: уп | H61: 3 | I61: 26.79 | J61: 80.37
A62: A05BA | B62: гипоазотемическое средство | C62: Орнитин | D62: Гепа-Мерц гран д/р-ра перор 5g №30 | E62: Бюджет | F62: Нет | G62: уп | H62: 2 | I62: 2095.42 | J62: 4,190.84
A63: A05BA | B63: гипоазотемическое средство | C63: Орнитин | D63: Гепа-Мерц гран д/р-ра перор 5g №30 | E63: ОМС | F63: Нет | G63: уп | H63: 15 | I63: 2095.42 | J63: 31,431.30
A64: A05BA | B64: гипоазотемическое средство | C64: Орнитин | D64: Гепа-Мерц гран д/р-ра перор 5g №30 | E64: ПЛАТ | F64: Нет | G64: уп | H64: 10 | I64: 2095.42 | J64: 20,954.20
A65: A05BA | B65: метаболическое средство | C65: Инозин+Меглюмин+Метионин+Никотинамид+Янтарная кислота | D65: Ремаксол раствор для инфузий 400ml №1 | E65: Бюджет | F65: Да | G65: уп | H65: 90 | I65: 398.47 | J65: 35,862.30
A66: A05BA | B66: метаболическое средство | C66: Инозин+Меглюмин+Метионин+Никотинамид+Янтарная кислота | D66: Ремаксол раствор для инфузий 400ml №1 | E66: ОМС | F66: Да | G66: уп | H66: 160 | I66: 398.47 | J66: 63,755.20
A67: A05BA | B67: метаболическое средство | C67: Инозин+Меглюмин+Метионин+Никотинамид+Янтарная кислота | D67: Ремаксол раствор для инфузий 400ml №1 | E67: ПЛАТ | F67: Да | G67: уп | H67: 100 | I67: 398.47 | J67: =H67*I67 -> 39,847.00
A68: A06AA01 | B68: слабительное средство | C68: Парафин жидкий | D68: Вазелиновое масло масло д/приема внутрь 25ml | E68: ОМС | F68: Нет | G68: уп | H68: 273 | I68: 36.63 | J68: 9,999.99
A69: A06AA01 | B69: слабительное средство | C69: Парафин жидкий | D69: Вазелиновое масло масло д/приема внутрь 25ml | E69: ПЛАТ | F69: Нет | G69: уп | H69: 30 | I69: 36.63 | J69: 1,098.90
A70: A06AB02 | B70: слабительное средство | C70: Бисакодил | D70: Бисакодил табл п/к/р/о 5mg №30 | E70: ОМС | F70: Да | G70: уп | H70: 135 | I70: 20.96 | J70: 2,829.60
A71: A06AB02 | B71: слабительное средство | C71: Бисакодил | D71: Бисакодил табл п/к/р/о 5mg №30 | E71: ПЛАТ | F71: Да | G71: уп | H71: 2 | I71: 20.96 | J71: 41.92
A72: A06AB02 | B72: слабительное средство | C72: Бисакодил | D72: Бисакодил-Нижфарм супп рект 10mg №10 | E72: ОМС | F72: Да | G72: уп | H72: 65 | I72: 42.62 | J72: 2,770.30
A73: A06AB02 | B73: слабительное средство | C73: Бисакодил | D73: Бисакодил-Нижфарм супп рект 10mg №10 | E73: ПЛАТ | F73: Да | G73: уп | H73: 8 | I73: 42.62 | J73: 340.96
A74: A06AD11 | B74: слабительное средство | C74: Лактулоза | D74: Нормазе сироп 667mg/ml 200ml | E74: ОМС | F74: Да | G74: уп | H74: 107 | I74: 278.3 | J74: 29,778.10
A75: A06AD11 | B75: слабительное средство | C75: Лактулоза | D75: Порталак сироп 667mg/ml 500ml | E75: ОМС | F75: Да | G75: уп | H75: 7 | I75: 398.47 | J75: 2,789.29
A76: A06AD11 | B76: слабительное средство | C76: Лактулоза | D76: Порталак сироп 667mg/ml 500ml | E76: ПЛАТ | F76: Да | G76: уп | H76: 11 | I76: 398.47 | J76: 4,383.17
A77: A06AD15 | B77: слабительное средство | C77: Макрогол | D77: Фортранс порошок д/приг суспензии д/вн прим 64g №4 | E77: ПЛАТ | F77: Да | G77: уп | H77: 83 | I77: 517.38 | J77: 42,942.54
A78: A06АВ05 | B78: слабительное средство растительного происхождения | C78: ~ | D78: Касторовое масло масло д/приема внутрь 30ml | E78: ОМС | F78: Нет | G78: уп | H78: 125 | I78: 36.63 | J78: 4,578.75
A79: A07AA11 | B79: антибиотик-рифамицин | C79: Рифаксимин | D79: Альфа Нормикс табл п/п/о 200mg №12 | E79: ОМС | F79: Нет | G79: уп | H79: 70 | I79: 1069.34 | J79: 74,853.80
A80: A07AA11 | B80: антибиотик-рифамицин | C80: Рифаксимин | D80: Альфа Нормикс табл п/п/о 200mg №12 | E80: ПЛАТ | F80: Нет | G80: уп | H80: 20 | I80: 1069.34 | J80: 21,386.80
A81: A07AX03 | B81: противомикробное средство - нитрофуран | C81: Нифуроксазид | D81: Экофурил капсулы 200mg №16 | E81: ОМС | F81: Нет | G81: уп | H81: 20 | I81: 459.56 | J81: 9,191.20
A82: A07AX03 | B82: противомикробное средство - нитрофуран | C82: Нифуроксазид | D82: Экофурил капсулы 200mg №16 | E82: ПЛАТ | F82: Нет | G82: уп | H82: 15 | I82: 459.56 | J82: 6,893.40
A83: A07BA01 | B83: энтеросорбирующее средство | C83: Уголь активированный | D83: Уголь активированный табл 250mg №10 | E83: ОМС | F83: Нет | G83: уп | H83: 408 | I83: 4.33 | J83: 1,766.64
A84: A07BA01 | B84: энтеросорбирующее средство | C84: Уголь активированный | D84: Уголь активированный табл 250mg №10 | E84: ПЛАТ | F84: Нет | G84: уп | H84: 20 | I84: 4.33 | J84: 86.60
A85: A07BC05 | B85: противодиарейное средство | C85: Диосмектит | D85: Неосмектин порошок д/приг суспензии д/вн прим 3g №30 | E85: ОМС | F85: Да | G85: уп | H85: 33 | I85: 341.55 | J85: 11,271.15
A86: A07BC05 | B86: противодиарейное средство | C86: Диосмектит | D86: Неосмектин порошок д/приг суспензии д/вн прим 3g №30 | E86: ПЛАТ | F86: Да | G86: уп | H86: 20 | I86: 341.55 | J86: 6,831.00
A87: A07DA03 | B87: противодиарейное средство | C87: Лоперамид | D87: Лоперамид табл 2mg №10 | E87: ОМС | F87: Да | G87: уп | H87: 35 | I87: 25.06 | J87: 877.10
A88: A07DA03 | B88: противодиарейное средство | C88: Лоперамид | D88: Лоперамид табл 2mg №20 | E88: ОМС | F88: Да | G88: уп | H88: 251 | I88: 27.21 | J88: 6,829.71
A89: A07DA03 | B89: противодиарейное средство | C89: Лоперамид | D89: Лоперамид табл 2mg №20 | E89: ПЛАТ | F89: Да | G89: уп | H89: 14 | I89: 27.21 | J89: 380.94
A90: A07EC02 | B90: противомикробное и противовоспалительное кишечное средство | C90: Сульфасалазин | D90: Сульфасалазин-ЕН табл п/к/р/о 500mg №50 | E90: ОМС | F90: Да | G90: уп | H90: 20 | I90: 359.34 | J90: 7,186.80
A91: A07EC02 | B91: противомикробное и противовоспалительное кишечное средство | C91: Сульфасалазин | D91: Сульфасалазин-ЕН табл п/к/р/о 500mg №50 | E91: ПЛАТ | F91: Да | G91: уп | H91: 3 | I91: 359.34 | J91: 1,078.02
A92: A07FA | B92: средство, нормализующее микрофлору кишечника | C92: ~ | D92: Хилак Форте капл д/пр внутрь 100ml №1 | E92: ПЛАТ | F92: Нет | G92: уп | H92: 15 | I92: 565.48 | J92: 8,482.20
A93: A07FA | B93: эубиотик | C93: Бифидобактерии бифидум | D93: Бифидумбактерин лиоф д/приг р-ра д/приема внутрь и мест прим 5dosis №10 | E93: ОМС | F93: Да | G93: уп | H93: 12 | I93: 86.51 | J93: 1,038.12
A94: A07FA | B94: эубиотик | C94: Бифидобактерии лонгум+Энтерококкус фециум | D94: Бифиформ капс к/раст №30 | E94: ОМС | F94: Нет | G94: уп | H94: 42 | I94: 615.87 | J94: 25,866.54
A95: A07FA | B95: эубиотик | C95: Бифидобактерии лонгум+Энтерококкус фециум | D95: Бифиформ капс к/раст №30 | E95: ПЛАТ | F95: Нет | G95: уп | H95: 49 | I95: 615.87 | J95: 30,177.63
A96: A07FA02 | B96: противодиарейное средство | C96: Сахаромицеты Boulardii | D96: Энтерол капсулы 250mg №30 | E96: ОМС | F96: Нет | G96: уп | H96: 60 | I96: 570.54 | J96: 34,232.40
A97: A07FA02 | B97: противодиарейное средство | C97: Сахаромицеты Boulardii | D97: Энтерол капсулы 250mg №30 | E97: ПЛАТ | F97: Нет | G97: уп | H97: 20 | I97: 570.54 | J97: 11,410.80
A98: A07FA51 | B98: эубиотик | C98: ~ | D98: Линекс капс №16 | E98: ОМС | F98: Нет | G98: уп | H98: 10 | I98: 394.94 | J98: 3,949.40
A99: A07FA51 | B99: эубиотик | C99: ~ | D99: Линекс капс №16 | E99: ПЛАТ | F99: Нет | G99: уп | H99: 2 | I99: 394.94 | J99: 789.88
A100: A10AB01 | B100: гипогликемическое средство - инсулин короткого действия | C100: Инсулин растворимый [человеческий генно-инженерный] | D100: Инсуман Рапид ГТ раствор для инъекций 100МЕ/ml 3ml №5 | E100: Бюджет | F100: Да | G100: уп | H100: 5 | I100: 1120.14 | J100: 5,600.70
A101: A10AB01 | B101: гипогликемическое средство - инсулин короткого действия | C101: Инсулин растворимый [человеческий генно-инженерный] | D101: Инсуман Рапид ГТ раствор для инъекций 100МЕ/ml 3ml №5 | E101: ОМС | F101: Да | G101: уп | H101: 43 | I101: 1120.14 | J101: 48,166.02
A102: A10AB01 | B102: гипогликемическое средство - инсулин короткого действия | C102: Инсулин растворимый [человеческий генно-инженерный] | D102: Инсуман Рапид ГТ раствор для инъекций 100МЕ/ml 3ml №5 | E102: ПЛАТ | F102: Да | G102: уп | H102: 3 | I102: 1120.14 | J102: 3,360.42
A103: A10AB01 | B103: гипогликемическое средство - инсулин короткого действия | C103: Инсулин растворимый [человеческий генно-инженерный] | D103: Росинсулин Р раствор для инъекций 100МЕ/ml 3ml №5 | E103: Бюджет | F103: Да | G103: уп | H103: 5 | I103: 1516.57 | J103: 7,582.85
A104: A10AB01 | B104: гипогликемическое средство - инсулин короткого действия | C104: Инсулин растворимый [человеческий генно-инженерный] | D104: Росинсулин Р раствор для инъекций 100МЕ/ml 3ml №5 | E104: ОМС | F104: Да | G104: уп | H104: 47 | I104: 1516.57 | J104: 71,278.79
A105: A10AB01 | B105: гипогликемическое средство - инсулин короткого действия | C105: Инсулин растворимый [человеческий генно-инженерный] | D105: Росинсулин Р раствор для инъекций 100МЕ/ml 5ml №5 | E105: Бюджет | F105: Да | G105: уп | H105: 14 | I105: 1085.06 | J105: 15,190.84
A106: A10AB01 | B106: гипогликемическое средство - инсулин короткого действия | C106: Инсулин растворимый [человеческий генно-инженерный] | D106: Росинсулин Р раствор для инъекций 100МЕ/ml 5ml №5 | E106: ОМС | F106: Да | G106: уп | H106: 116 | I106: 1085.06 | J106: 125,866.96
A107: A10AB01 | B107: гипогликемическое средство - инсулин короткого действия | C107: Инсулин растворимый [человеческий генно-инженерный] | D107: Росинсулин Р раствор для инъекций 100МЕ/ml 5ml №5 | E107: ПЛАТ | F107: Да | G107: уп | H107: 2 | I107: 1085.06 | J107: 2,170.12
A108: A10AB01 | B108: гипогликемическое средство - инсулин короткого действия | C108: Инсулин растворимый [человеческий генно-инженерный] | D108: Росинсулин Р раствор для п/к вв 100ME/ml 5ml №5 | E108: ОМС | F108: Да | G108: уп | H108: 47 | I108: 1043.32 | J108: 49,036.04
A109: A10AC01 | B109: гипогликемическое средство - инсулин средней продолжительности действия | C109: Инсулин-изофан | D109: Росинсулин С суспензия для п/к вв 100ME/ml 5ml №5 | E109: Бюджет | F109: Да | G109: уп | H109: 8 | I109: 1046.36 | J109: 8,370.88
A110: A10AC01 | B110: гипогликемическое средство - инсулин средней продолжительности действия | C110: Инсулин-изофан | D110: Росинсулин С суспензия для п/к вв 100ME/ml 5ml №5 | E110: ОМС | F110: Да | G110: уп | H110: 134 | I110: 1046.36 | J110: 140,212.24
A111: A10AC01 | B111: гипогликемическое средство - инсулин средней продолжительности действия | C111: Инсулин-изофан | D111: Росинсулин С суспензия для п/к вв 100ME/ml 5ml №5 | E111: ПЛАТ | F111: Да | G111: уп | H111: 2 | I111: 1046.36 | J111: 2,092.72
A112: A10AЕ04 | B112: гипогликемическое средство - инсулина длительного действия аналог | C112: Инсулин гларгин | D112: Туджео СолоСтар р-р для п/к введ, картриджи в шприц-ручках СолоСтар 300ME/ml 1,5ml №3 | E112: Бюджет | F112: Да | G112: уп | H112: 12 | I112: 3208.15 | J112: 38,497.80
A113: A10AЕ04 | B113: гипогликемическое средство - инсулина длительного действия аналог | C113: Инсулин гларгин | D113: Туджео СолоСтар р-р для п/к введ, картриджи в шприц-ручках СолоСтар 300ME/ml 1,5ml №3 | E113: ОМС | F113: Да | G113: уп | H113: 145 | I113: 3208.15 | J113: 465,181.75
A114: A10AЕ04 | B114: гипогликемическое средство - инсулина длительного действия аналог | C114: Инсулин гларгин | D114: Туджео СолоСтар р-р для п/к введ, картриджи в шприц-ручках СолоСтар 300ME/ml 1,5ml №3 | E114: ПЛАТ | F114: Да | G114: уп | H114: 9 | I114: 3208.15 | J114: 28,873.35
A115: A10BA02 | B115: гипогликемическое средство для перорального применения группы бигуанидов | C115: Метформин | D115: Форметин табл 0,5g №60 | E115: Бюджет | F115: Да | G115: уп | H115: 3 | I115: 93.43 | J115: 280.29
A116: A10BA02 | B116: гипогликемическое средство для перорального применения группы бигуанидов | C116: Метформин | D116: Форметин табл 0,5g №60 | E116: ОМС | F116: Да | G116: уп | H116: 93 | I116: 93.43 | J116: 8,688.99
A117: A10BA02 | B117: гипогликемическое средство для перорального применения группы бигуанидов | C117: Метформин | D117: Форметин табл 0,5g №60 | E117: ПЛАТ | F117: Да | G117: уп | H117: 7 | I117: 93.43 | J117: 654.01
A118: A10BA02 | B118: гипогликемическое средство для перорального применения группы бигуанидов | C118: Метформин | D118: Форметин табл 0,85g №60 | E118: Бюджет | F118: Да | G118: уп | H118: 5 | I118: 180.33 | J118: 901.65
A119: A10BA02 | B119: гипогликемическое средство для перорального применения группы бигуанидов | C119: Метформин | D119: Форметин табл 0,85g №60 | E119: ОМС | F119: Да | G119: уп | H119: 252 | I119: 180.33 | J119: 45,443.16
A120: A10BA02 | B120: гипогликемическое средство для перорального применения группы бигуанидов | C120: Метформин | D120: Форметин табл 0,85g №60 | E120: ПЛАТ | F120: Да | G120: уп | H120: 3 | I120: 180.33 | J120: 540.99
A121: A10BA02 | B121: гипогликемическое средство для перорального применения группы бигуанидов | C121: Метформин | D121: Форметин табл 1g №30 | E121: Бюджет | F121: Да | G121: уп | H121: 5 | I121: 153.01 | J121: 765.05
A122: A10BA02 | B122: гипогликемическое средство для перорального применения группы бигуанидов | C122: Метформин | D122: Форметин табл 1g №30 | E122: ОМС | F122: Да | G122: уп | H122: 115 | I122: 153.01 | J122: 17,596.15
A123: A10BA02 | B123: гипогликемическое средство для перорального применения группы бигуанидов | C123: Метформин | D123: Форметин табл 1g №30 | E123: ПЛАТ | F123: Да | G123: уп | H123: 3 | I123: 153.01 | J123: 459.03
A124: A10BB01 | B124: гипогликемическое средство для перорального применения группы сульфонилмочевины II поколения | C124: Глибенкламид | D124: Глибенкламид табл 5mg №120 | E124: ОМС | F124: Да | G124: уп | H124: 15 | I124: 97.94 | J124: 1,469.10
A125: A10BB01 | B125: гипогликемическое средство для перорального применения группы сульфонилмочевины II поколения | C125: Глибенкламид | D125: Глибенкламид табл 5mg №120 | E125: ПЛАТ | F125: Да | G125: уп | H125: 1 | I125: 97.94 | J125: 97.94
A126: A10BB09 | B126: гипогликемическое средство для перорального применения группы сульфонилмочевины II поколения | C126: Гликлазид | D126: Гликлазид МВ табл с модифиц. высвобождением 30 mg №60 | E126: ПЛАТ | F126: Да | G126: уп | H126: 3 | I126: 138.13 | J126: 414.39
A127: A10BB09 | B127: гипогликемическое средство для перорального применения группы сульфонилмочевины II поколения | C127: Гликлазид | D127: Гликлазид МВ табл с модифиц. высвобождением 60mg №60 | E127: ОМС | F127: Да | G127: уп | H127: 15 | I127: 138.13 | J127: 2,071.95
A128: A11CC03 | B128: витамин - кальциево-фосфорного обмена регулятор | C128: Альфакальцидол | D128: Альфа Д3-Тева капсулы 0,25mkg №30 | E128: ПЛАТ | F128: Да | G128: уп | H128: 2 | I128: 299.85 | J128: 599.70
A129: A11DA01 | B129: витамин | C129: Тиамин | D129: Тиамин раствор для в/м вв 50mg/ml 1ml №10 | E129: Бюджет | F129: Да | G129: уп | H129: 7 | I129: 27.49 | J129: 192.43
A130: A11DA01 | B130: витамин | C130: Тиамин | D130: Тиамин раствор для в/м вв 50mg/ml 1ml №10 | E130: ОМС | F130: Да | G130: уп | H130: 813 | I130: 27.49 | J130: 22,349.37
A131: A11DA01 | B131: витамин | C131: Тиамин | D131: Тиамин раствор для в/м вв 50mg/ml 1ml №10 | E131: ПЛАТ | F131: Да | G131: уп | H131: 18 | I131: 27.49 | J131: =H131*I131 -> 494.82
A132: A11EA | B132: витамины группы B | C132: Поливитамины | D132: Нейромультивит табл п/п/о №20 | E132: ПЛАТ | F132: Нет | G132: уп | H132: 3 | I132: 796.09 | J132: 2,388.27
A133: A11GA01 | B133: витамин | C133: Аскорбиновая кислота | D133: Аскорбиновая кислота раствор для в/в и в/м вв 50mg/ml 2ml №10 | E133: Бюджет | F133: Да | G133: уп | H133: 25 | I133: 37.69 | J133: 942.25
A134: A11GA01 | B134: витамин | C134: Аскорбиновая кислота | D134: Аскорбиновая кислота раствор для в/в и в/м вв 50mg/ml 2ml №10 | E134: ОМС | F134: Да | G134: уп | H134: 920 | I134: 37.69 | J134: 34,674.80
A135: A11GA01 | B135: витамин | C135: Аскорбиновая кислота | D135: Аскорбиновая кислота раствор для в/в и в/м вв 50mg/ml 2ml №10 | E135: ПЛАТ | F135: Да | G135: уп | H135: 170 | I135: 37.69 | J135: 6,407.30
A136: A11HA02 | B136: витамин | C136: Пиридоксин | D136: Пиридоксин раствор для инъекций 50mg/ml 1ml №10 | E136: Бюджет | F136: Да | G136: уп | H136: 9 | I136: 27.44 | J136: 246.96
A137: A11HA02 | B137: витамин | C137: Пиридоксин | D137: Пиридоксин раствор для инъекций 50mg/ml 1ml №10 | E137: ОМС | F137: Да | G137: уп | H137: 779 | I137: 27.44 | J137: 21,375.76
A138: A11HA02 | B138: витамин | C138: Пиридоксин | D138: Пиридоксин раствор для инъекций 50mg/ml 1ml №10 | E138: ПЛАТ | F138: Да | G138: уп | H138: 18 | I138: 27.44 | J138: 493.92
A139: A11HA04 | B139: витамин | C139: Рибофлавин | D139: Рибофлавин - мононуклеотид раствор для в/м вв 10mg/ml 1ml №10 | E139: ОМС | F139: Нет | G139: уп | H139: 60 | I139: 115.43 | J139: 6,925.80
A140: A11HA04 | B140: витамин | C140: Рибофлавин | D140: Рибофлавин - мононуклеотид раствор для в/м вв 10mg/ml 1ml №10 | E140: ПЛАТ | F140: Нет | G140: уп | H140: 2 | I140: 115.43 | J140: 230.86
A141: A11JA | B141: поливитаминное средство | C141: Витамин Е+ Ретинол | D141: Аевит капсулы №10 | E141: ПЛАТ | F141: Нет | G141: уп | H141: 20 | I141: 39.18 | J141: 783.60
A142: A12AA03 | B142: кальциево-фосфорного обмена регулятор | C142: Кальция глюконат | D142: Кальция глюконат Б.Браун раствор для инъекций 10% 10ml №20 | E142: ОМС | F142: Да | G142: уп | H142: 143 | I142: 379.5 | J142: 54,268.50
A143: A12AA03 | B143: кальциево-фосфорного обмена регулятор | C143: Кальция глюконат | D143: Кальция глюконат Б.Браун раствор для инъекций 10% 10ml №20 | E143: ПЛАТ | F143: Да | G143: уп | H143: 3 | I143: 379.5 | J143: 1,138.50
A144: A12AX | B144: кальциево-фосфорного обмена регулятор | C144: Кальция карбонат + Колекальциферол | D144: Кальций-Д3 Никомед Форте табл жеват 500mg+400ME №30 | E144: ОМС | F144: Нет | G144: уп | H144: 4 | I144: 578.2 | J144: 2,312.80
A145: A12AX | B145: кальциево-фосфорного обмена регулятор | C145: Кальция карбонат + Колекальциферол | D145: Кальций-Д3 Никомед Форте табл жеват 500mg+400ME №30 | E145: ПЛАТ | F145: Нет | G145: уп | H145: 2 | I145: 578.2 | J145: 1,156.40
A146: A12BA01 | B146: калия препарат | C146: Калия хлорид | D146: Калия хлорид Б. Браун конц-т д/приг раствора для инфузий 40mg/ml 10ml №20 | E146: Бюджет | F146: Да | G146: уп | H146: 28 | I146: 245.41 | J146: 6,871.48
A147: A12BA01 | B147: калия препарат | C147: Калия хлорид | D147: Калия хлорид Б. Браун конц-т д/приг раствора для инфузий 40mg/ml 10ml №20 | E147: ОМС | F147: Да | G147: уп | H147: 877 | I147: 245.41 | J147: 215,224.57
A148: A12BA01 | B148: калия препарат | C148: Калия хлорид | D148: Калия хлорид Б. Браун конц-т д/приг раствора для инфузий 40mg/ml 10ml №20 | E148: ПЛАТ | F148: Да | G148: уп | H148: 115 | I148: 245.41 | J148: 28,222.15
A149: A12BA01 | B149: калия препарат | C149: Калия хлорид | D149: Калия хлорид конц-т д/приг раствора для инфузий 40mg/ml 100ml №1 | E149: ОМС | F149: Да | G149: уп | H149: 1780 | I149: 63.59 | J149: 113,190.20
A150: A12BA01 | B150: калия препарат | C150: Калия хлорид | D150: Калия хлорид конц-т д/приг раствора для инфузий 40mg/ml 100ml №1 | E150: ПЛАТ | F150: Да | G150: уп | H150: 35 | I150: 63.59 | J150: 2,225.65
A151: A12BA01 | B151: калия препарат | C151: Калия хлорид | D151: Калия хлорид конц-т д/приг раствора для инфузий 40mg/ml 100ml №35 | E151: Бюджет | F151: Да | G151: уп | H151: 5 | I151: 2894.38 | J151: 14,471.90
A152: A12BA01 | B152: калия препарат | C152: Калия хлорид | D152: Калия хлорид конц-т д/приг раствора для инфузий 40mg/ml 100ml №35 | E152: ОМС | F152: Да | G152: уп | H152: 72 | I152: 2894.38 | J152: 208,395.36
A153: A12BA01 | B153: калия препарат | C153: Калия хлорид | D153: Калия хлорид конц-т д/приг раствора для инфузий 40mg/ml 100ml №35 | E153: ПЛАТ | F153: Да | G153: уп | H153: 9 | I153: 2894.38 | J153: 26,049.42
A154: A12BA01 | B154: калия препарат | C154: Калия хлорид | D154: Калия хлорид концентрат для приготовления р-ра для инфузий 75mg/ml 200ml №28 | E154: ОМС | F154: Да | G154: уп | H154: 194 | I154: 2868.16 | J154: 556,423.04
A155: A12CX | B155: калия и магния препарат | C155: Калия и магния аспарагинат | D155: Аспаркам табл №20 | E155: ОМС | F155: Да | G155: уп | H155: 250 | I155: 41.14 | J155: 10,285.00
A156: A12CX | B156: калия и магния препарат | C156: Калия и магния аспарагинат | D156: Аспаркам табл №60 | E156: Бюджет | F156: Да | G156: уп | H156: 100 | I156: 103.73 | J156: 10,373.00
A157: A12CX | B157: калия и магния препарат | C157: Калия и магния аспарагинат | D157: Аспаркам табл №60 | E157: ОМС | F157: Да | G157: уп | H157: 710 | I157: 103.73 | J157: 73,648.30
A158: A12CX | B158: калия и магния препарат | C158: Калия и магния аспарагинат | D158: Аспаркам табл №60 | E158: ПЛАТ | F158: Да | G158: уп | H158: 9 | I158: 103.73 | J158: 933.57
A159: A12CX | B159: калия и магния препарат | C159: Калия и магния аспарагинат | D159: Аспаркам- L раствор для в/в вв 10ml №10 | E159: ОМС | F159: Да | G159: уп | H159: 51 | I159: 94.48 | J159: 4,818.48
A160: A12CX | B160: калия и магния препарат | C160: Калия и магния аспарагинат | D160: Аспаркам- L раствор для в/в вв 10ml №10 | E160: ПЛАТ | F160: Да | G160: уп | H160: 30 | I160: 94.48 | J160: 2,834.40
A161: A12CX | B161: калия и магния препарат | C161: Калия и магния аспарагинат | D161: Калия и магния аспарагинат конц-т д/приг раствора для инфузий 10ml №10 | E161: ОМС | F161: Да | G161: уп | H161: 30 | I161: 227.7 | J161: 6,831.00
A162: A12CX | B162: калия и магния препарат | C162: Калия и магния аспарагинат | D162: Калия и магния аспарагинат раствор для инфузий 250ml №1 | E162: Бюджет | F162: Да | G162: уп | H162: 350 | I162: 79.59 | J162: 27,856.50
A163: A12CX | B163: калия и магния препарат | C163: Калия и магния аспарагинат | D163: Калия и магния аспарагинат раствор для инфузий 250ml №1 | E163: ОМС | F163: Да | G163: уп | H163: 3410 | I163: 79.59 | J163: 271,401.90
A164: A12CX | B164: калия и магния препарат | C164: Калия и магния аспарагинат | D164: Калия и магния аспарагинат раствор для инфузий 250ml №1 | E164: ПЛАТ | F164: Да | G164: уп | H164: 54 | I164: 79.59 | J164: 4,297.86
A165: A12CX | B165: калия и магния препарат | C165: Калия и магния аспарагинат | D165: Калия и магния аспарагинат раствор для инфузий 500ml №1 | E165: Бюджет | F165: Да | G165: уп | H165: 240 | I165: 148.19 | J165: 35,565.60
A166: A12CX | B166: калия и магния препарат | C166: Калия и магния аспарагинат | D166: Калия и магния аспарагинат раствор для инфузий 500ml №1 | E166: ОМС | F166: Да | G166: уп | H166: 365 | I166: 148.19 | J166: 54,089.35
A167: A14AB01 | B167: анаболическое стероидное средство | C167: Нандролон | D167: Ретаболил раствор для в/м вв 50mg/ml 1ml | E167: ОМС | F167: Да | G167: амп | H167: 20 | I167: 239.83 | J167: 4,796.60
A168: A14AB01 | B168: анаболическое стероидное средство | C168: Нандролон | D168: Ретаболил раствор для в/м вв 50mg/ml 1ml | E168: ПЛАТ | F168: Да | G168: амп | H168: 5 | I168: 239.83 | J168: 1,199.15
A169: A16AA02 | B169: гепатопротекторное средство | C169: Адеметионин | D169: Гептор лиоф-т д/приг р-ра для в/в и в/м вв 400mg+р-ль 5ml №5 | E169: Бюджет | F169: Да | G169: уп | H169: 22 | I169: 1475.53 | J169: 32,461.66
A170: A16AA02 | B170: гепатопротекторное средство | C170: Адеметионин | D170: Гептор лиоф-т д/приг р-ра для в/в и в/м вв 400mg+р-ль 5ml №5 | E170: ОМС | F170: Да | G170: уп | H170: 80 | I170: 1475.53 | J170: 118,042.40
A171: A16AA02 | B171: гепатопротекторное средство | C171: Адеметионин | D171: Гептор лиоф-т д/приг р-ра для в/в и в/м вв 400mg+р-ль 5ml №5 | E171: ПЛАТ | F171: Да | G171: уп | H171: 82 | I171: 1475.53 | J171: 120,993.46
A172: A16AA02 | B172: гепатопротекторное средство | C172: Адеметионин | D172: Гептор табл п/к/р/о 400mg №40 | E172: ОМС | F172: Да | G172: уп | H172: 56 | I172: 2246.91 | J172: 125,826.96
A173: A16AA02 | B173: гепатопротекторное средство | C173: Адеметионин | D173: Гептор табл п/к/р/о 400mg №40 | E173: ПЛАТ | F173: Да | G173: уп | H173: 17 | I173: 2246.91 | J173: 38,197.47
A174: A16AA02 | B174: гепатопротекторное средство | C174: Адеметионин | D174: Гептор табл п/к/р/о 400mg №20 | E174: ПЛАТ | F174: Да | G174: уп | H174: 1 | I174: 1123.45 | J174: 1,123.45
A175: A16AX01 | B175: метаболическое средство | C175: Тиоктовая кислота | D175: Октолипен табл п/п/о 600mg №30 | E175: ОМС | F175: Да | G175: уп | H175: 25 | I175: 708.51 | J175: 17,712.75
A176: A16AX01 | B176: метаболическое средство | C176: Тиоктовая кислота | D176: Октолипен табл п/п/о 600mg №30 | E176: ПЛАТ | F176: Да | G176: уп | H176: 7 | I176: 708.51 | J176: 4,959.57
A177: A16AX01 | B177: метаболическое средство | C177: Тиоктовая кислота | D177: Тиолепта раствор для инфузий 12mg/ml 50ml №10 | E177: ОМС | F177: Да | G177: уп | H177: 65 | I177: 2110.73 | J177: 137,197.45
A178: A16AX01 | B178: метаболическое средство | C178: Тиоктовая кислота | D178: Тиолипон конц-т д/приг раствора для в/в вв 30mg/ml 10ml №10 | E178: ОМС | F178: Да | G178: уп | H178: 135 | I178: 420.18 | J178: 56,724.30
A179: A16AX01 | B179: метаболическое средство | C179: Тиоктовая кислота | D179: Тиолипон конц-т д/приг раствора для в/в вв 30mg/ml 10ml №10 | E179: ПЛАТ | F179: Да | G179: уп | H179: 108 | I179: 420.18 | J179: 45,379.44
A180: B01AA03 | B180: антикоагулянтное средство непрямого действия | C180: Варфарин | D180: Варфарин Канон табл 2,5mg №50 | E180: ОМС | F180: Да | G180: уп | H180: 41 | I180: 139.36 | J180: 5,713.76
A181: B01AA03 | B181: антикоагулянтное средство непрямого действия | C181: Варфарин | D181: Варфарин-OBL табл 2,5mg №50 | E181: Бюджет | F181: Да | G181: уп | H181: 5 | I181: 100.1 | J181: 500.50
A182: B01AA03 | B182: антикоагулянтное средство непрямого действия | C182: Варфарин | D182: Варфарин-OBL табл 2,5mg №50 | E182: ОМС | F182: Да | G182: уп | H182: 88 | I182: 100.1 | J182: 8,808.80
A183: B01AA03 | B183: антикоагулянтное средство непрямого действия | C183: Варфарин | D183: Варфарин-OBL табл 2,5mg №50 | E183: ПЛАТ | F183: Да | G183: уп | H183: 2 | I183: 100.1 | J183: 200.20
A184: B01AB05 | B184: антикоагулянтное средство прямого действия | C184: Эноксапарин натрия | D184: Анфибра раствор для инъекций 2000анти-Ха МЕ/0,2ml №10 | E184: ОМС | F184: Да | G184: уп | H184: 10 | I184: 1799.16 | J184: 17,991.60
A185: B01AB05 | B185: антикоагулянтное средство прямого действия | C185: Эноксапарин натрия | D185: Анфибра раствор для инъекций 4000анти-Ха МЕ/0,4ml №10 | E185: Бюджет | F185: Да | G185: уп | H185: 110 | I185: 2621.11 | J185: 288,322.10
A186: B01AB05 | B186: антикоагулянтное средство прямого действия | C186: Эноксапарин натрия | D186: Анфибра раствор для инъекций 4000анти-Ха МЕ/0,4ml №10 | E186: ОМС | F186: Да | G186: уп | H186: 1237 | I186: 2621.11 | J186: 3,242,313.07
A187: B01AB05 | B187: антикоагулянтное средство прямого действия | C187: Эноксапарин натрия | D187: Анфибра раствор для инъекций 4000анти-Ха МЕ/0,4ml №10 | E187: ПЛАТ | F187: Да | G187: уп | H187: 46 | I187: 2621.11 | J187: 120,571.06
A188: B01AB05 | B188: антикоагулянтное средство прямого действия | C188: Эноксапарин натрия | D188: Анфибра раствор для инъекций 6000анти-Ха МЕ/0,6ml №10 | E188: ОМС | F188: Да | G188: уп | H188: 75 | I188: 3387.43 | J188: 254,057.25
A189: B01AB05 | B189: антикоагулянтное средство прямого действия | C189: Эноксапарин натрия | D189: Анфибра раствор для инъекций 6000анти-Ха МЕ/0,6ml №10 | E189: ПЛАТ | F189: Да | G189: уп | H189: 6 | I189: 3387.43 | J189: 20,324.58
A190: B01AB05 | B190: антикоагулянтное средство прямого действия | C190: Эноксапарин натрия | D190: Анфибра раствор для инъекций 8000анти-Ха МЕ/0,8ml №10 | E190: Бюджет | F190: Да | G190: уп | H190: 20 | I190: 5337.65 | J190: 106,753.00
A191: B01AB05 | B191: антикоагулянтное средство прямого действия | C191: Эноксапарин натрия | D191: Анфибра раствор для инъекций 8000анти-Ха МЕ/0,8ml №10 | E191: ОМС | F191: Да | G191: уп | H191: 64 | I191: 5337.65 | J191: 341,609.60
A192: B01AB05 | B192: антикоагулянтное средство прямого действия | C192: Эноксапарин натрия | D192: Анфибра раствор для инъекций 8000анти-Ха МЕ/0,8ml №10 | E192: ПЛАТ | F192: Да | G192: уп | H192: 8 | I192: 5337.65 | J192: 42,701.20
A193: B01AB06 | B193: антикоагулянтное средство прямого действия | C193: Надропарин кальция | D193: Фраксипарин р-р д/подкож введ (шприц) 9500 МЕ/ml 0.3ml №10 | E193: Бюджет | F193: Нет | G193: уп | H193: 20 | I193: 2655.67 | J193: 53,113.40
A194: B01AB06 | B194: антикоагулянтное средство прямого действия | C194: Надропарин кальция | D194: Фраксипарин р-р д/подкож введ (шприц) 9500 МЕ/ml 0.3ml №10 | E194: ПЛАТ | F194: Нет | G194: уп | H194: 5 | I194: 2655.67 | J194: 13,278.35
A195: B01AC04 | B195: антиагрегантное средство | C195: Клопидогрел | D195: Плавикс табл п/п/о 300mg №10 | E195: Бюджет | F195: Да | G195: уп. | H195: 8 | I195: 2288.55 | J195: =H195*I195 -> 18,308.40
A196: B01AC04 | B196: антиагрегантное средство | C196: Клопидогрел | D196: Плавикс табл п/п/о 300mg №10 | E196: ОМС | F196: Да | G196: уп. | H196: 149 | I196: 2288.55 | J196: 340,993.95
A197: B01AC04 | B197: антиагрегантное средство | C197: Клопидогрел | D197: Плавикс табл п/п/о 75mg №100 | E197: Бюджет | F197: Да | G197: уп | H197: 6 | I197: 3418.4 | J197: 20,510.40
A198: B01AC04 | B198: антиагрегантное средство | C198: Клопидогрел | D198: Плавикс табл п/п/о 75mg №100 | E198: ОМС | F198: Да | G198: уп | H198: 274 | I198: 3418.4 | J198: 936,641.60
A199: B01AC04 | B199: антиагрегантное средство | C199: Клопидогрел | D199: Плавикс табл п/п/о 75mg №100 | E199: ПЛАТ | F199: Да | G199: уп | H199: 10 | I199: 3418.4 | J199: 34,184.00
A200: B01AC06 | B200: антиагрегантное средство | C200: Ацетилсалициловая кислота | D200: Ацекардол табл п/к/р/о 300mg №30 | E200: ОМС | F200: Да | G200: уп | H200: 40 | I200: 42.7 | J200: 1,708.00
... 1206 more rows
